Period,Quarter,"Recipient Name",City,Province,Country,Title,Language,Genre,Date,"Final Value","Original Value",Type,Purpose,Comments
2023-2024,P1,"Werther Motion Picture Corporation",Hamilton,Ontario,Canada,"Young Werther",English,Comedy,2023-06-20,2364746.00,2214746.00,Investment,"Production Program","Amended Contract Signed 16-Mar-2023"
2023-2024,P1,"Good Deed Entertainment, llc",Ashland,Ohio,"United States","You Can Live Forever",English,Drama,2023-05-05,33511.00,33511.00,Contribution,"Export Assistance Program",
2023-2024,P1,"Virtual Insurance Films Inc.",Vancouver,"British Columbia",Canada,"With Love and a Major Organ",English,Comedy,2023-05-31,2000.00,2000.00,Contribution,"International Marketing Program",
2023-2024,P1,"Mongrel Media Inc.",Toronto,Ontario,Canada,Wildhood,English,Drama,2023-05-01,57060.00,68937.00,Advance,"Marketing Program","Amended Contract Signed 21-Mar-2022"
2023-2024,P1,"9164-6828 Qu�bec Inc. (d/b/a Productions Loaded Pictures)",Montreal,Quebec,Canada,Wildfire,English,Documentary,2023-04-28,4000.00,4000.00,Contribution,"International Marketing Program",
2023-2024,P1,"9164-6828 Qu�bec Inc. (d/b/a Productions Loaded Pictures)",Montreal,Quebec,Canada,Wildfire,English,Documentary,2023-04-28,4000.00,4000.00,Contribution,"International Marketing Program",
2023-2024,P1,"Christal Films Productions Inc.",Montr�al,Quebec,Canada,Villeneuve,French,"Historical Drama",2023-06-27,287000.00,287000.00,Advance,"Production Program",
2023-2024,P1,"VFC Cin�ma adaptatif Inc.",Montr�al,Quebec,Canada,"V F C",French,Horror,2023-05-12,4000.00,4000.00,Contribution,"International Marketing Program",
2023-2024,P1,"SSMT Productions Inc.",Vancouver,"British Columbia",Canada,"Until Branches Bend (Formerly Invasions)",English,Drama,2023-06-02,2000.00,2000.00,Contribution,"International Marketing Program",
2023-2024,P1,"Le Foyer Films inc.",Montreal,Quebec,Canada,"Une splendeur de vivre",French,Drama,2023-05-08,4000.00,4000.00,Contribution,"International Marketing Program",
2023-2024,P1,"Corporation de d�veloppement et de production ACPAV Inc.",Montr�al,Quebec,Canada,"UNE FEMME RESPECTABLE",French,Drama,2023-06-02,641344.00,500000.00,Advance,"Production Program","Amended Contract Signed 01-Dec-2021"
2023-2024,P1,"Productions Undocumented Inc.",Bromont,Quebec,Canada,Undocumented,English,Drama,2023-06-28,5000.00,5000.00,Contribution,"International Marketing Program",
2023-2024,P1,"PRODUCTIONS UGH INC.",Montr�al,Quebec,Canada,"Un grand homme Fonds d'indemnisation � court terme 2022-2023  PRODUCTIONS UGH INC.",0,0,2023-05-30,177508.94,0.00,Contribution,"COVID-19 Emergency Relief Fund","Amended Contract Signed 29-Aug-2022"
2023-2024,P1,"Eye Steel Film Distribution inc.",Montr�al,Quebec,Canada,"Twice Colonized",English,Documentary,2023-06-27,68839.00,68839.00,Advance,"Marketing Program",
2023-2024,P1,"Echo Media T&B Film Production Inc.",Montr�al,Quebec,Canada,"Toupie et Binou, Le Film",French,Action/Adventure,2023-05-23,15000.00,15000.00,Contribution,"International Marketing Program",
2023-2024,P1,"This Place Film Incorporated","North York",Ontario,Canada,"This Place",English,Drama,2023-04-27,2000.00,2000.00,Contribution,"International Marketing Program",
2023-2024,P1,"This Place Film Incorporated","North York",Ontario,Canada,"This Place",English,Drama,2023-04-27,2000.00,2000.00,Contribution,"International Marketing Program",
2023-2024,P1,"This Place Film Incorporated","North York",Ontario,Canada,"This Place",English,Drama,2023-05-23,2000.00,2000.00,Contribution,"International Marketing Program",
2023-2024,P1,"This Place Film Incorporated","North York",Ontario,Canada,"This Place",English,Drama,2023-06-10,2000.00,2000.00,Contribution,"International Marketing Program",
2023-2024,P1,"GAME THEORY FILMS INC.",Toronto,Ontario,Canada,"The Young Arsonists",English,Drama,2023-06-17,32490.00,32490.00,Advance,"Marketing Program",
2023-2024,P1,"Party Hunks Inc.",Toronto,Ontario,Canada,"The Second Woman",English,Horror,2023-05-04,4000.00,4000.00,Contribution,"International Marketing Program",
2023-2024,P1,"Miss Magic Productions Inc.",Toronto,Ontario,Canada,"The Future Above Us",English,Drama,2023-05-02,2000.00,2000.00,Contribution,"International Marketing Program",
2023-2024,P1,"H2L Productions Inc.",Montr�al,Quebec,Canada,"The Death Tour",English,Documentary,2023-05-30,4000.00,4000.00,Contribution,"International Marketing Program",
2023-2024,P1,"Departure Lounge, Inc.",Vancouver,"British Columbia",Canada,"The Dark",English,Musical,2023-05-16,5000.00,5000.00,Contribution,"International Marketing Program",
2023-2024,P1,"Almost Bradley Films Inc.",Toronto,Ontario,Canada,"The Comics",English,Comedy,2023-05-16,2000.00,2000.00,Contribution,"International Marketing Program",
2023-2024,P1,"Level Film Inc.",Toronto,Ontario,Canada,"The Boathouse",English,Thriller,2023-06-06,27714.75,39690.00,Advance,"Marketing Program","Amended Contract Signed 15-Nov-2021"
2023-2024,P1,"Productions Welcome Aboard",Montr�al,Quebec,Canada,"Summer Nights",French,Documentary,2023-05-11,2000.00,2000.00,Contribution,"International Marketing Program",
2023-2024,P1,"Sullivan's Crossing Productions S1 Inc.",Bedford,"Nova Scotia",Canada,"Sullivan's Crossing Short-Term Compensation Fund 2022-2023  Sullivan's Crossing Productions S1 inc.",0,0,2023-06-01,801973.62,0.00,Contribution,"COVID-19 Emergency Relief Fund","Amended Contract Signed 14-Jun-2022"
2023-2024,P1,"Sphere Sort Of 2 Inc.",Toronto,Ontario,Canada,"SORT OF (Season 2) Short-Term Compensation Fund 2022-2023  Sphere Sort Of 2 Inc.",0,0,2023-04-20,657798.00,0.00,Contribution,"COVID-19 Emergency Relief Fund","Amended Contract Signed 14-Apr-2022"
2023-2024,P1,"Fra Diavolo Films Inc.","King City",Ontario,Canada,"Something You Said Last Night",English,Drama,2023-04-29,2000.00,2000.00,Contribution,"International Marketing Program",
2023-2024,P1,"Fra Diavolo Films Inc.","King City",Ontario,Canada,"Something You Said Last Night",English,Drama,2023-05-18,2000.00,2000.00,Contribution,"International Marketing Program",
2023-2024,P1,"Young Tribe Productions Inc.",Toronto,Ontario,Canada,"Soft (formerly Tribe)",English,Drama,2023-06-27,2000.00,2000.00,Contribution,"International Marketing Program",
2023-2024,P1,"Metafilms Inc.",Montr�al,Quebec,Canada,"Simple comme Sylvain",French,"Romantic Comedy",2023-05-10,25000.00,25000.00,Contribution,"International Marketing Program",
2023-2024,P1,"Maison 4:3 Inc.",Montr�al,Quebec,Canada,"SAULES AVEUGLES, FEMME ENDORMIE",French,Drama,2023-05-19,39862.00,39862.00,Advance,"Marketing Program",
2023-2024,P1,"Rumours Production Inc.",Winnipeg,Manitoba,Canada,Rumours,English,Comedy,2023-06-05,248908.00,248908.00,Advance,"Production Program",
2023-2024,P1,"Robyn Hood Productions Limited",Toronto,Ontario,Canada,"Robyn Hood  Short-Term Compensation Fund 2022-2023  Robyn Hood Productions Limited",0,0,2023-05-29,881101.25,0.00,Contribution,"COVID-19 Emergency Relief Fund","Amended Contract Signed 13-Jun-2022"
2023-2024,P1,"Ride Season One Inc.",Calgary,Alberta,Canada,"Ride  Short-Term Compensation Fund 2022-2023  Ride Season One Inc.",0,0,2023-04-27,333929.62,0.00,Contribution,"COVID-19 Emergency Relief Fund","Amended Contract Signed 02-Aug-2022"
2023-2024,P1,"Le Foyer Films inc.",Montreal,Quebec,Canada,Richelieu,French,Drama,2023-05-01,15000.00,15000.00,Contribution,"International Marketing Program",
2023-2024,P1,"Le Foyer Films inc.",Montreal,Quebec,Canada,Richelieu,French,Drama,2023-06-12,2000.00,2000.00,Contribution,"International Marketing Program",
2023-2024,P1,"Visions Ouest Productions",Vancouver,"British Columbia",Canada,"Rendez-vous du cin�ma qu�b�cois et francophone de Vancouver 2024",0,0,2023-06-20,15000.00,15000.00,Contribution,"Promotion Program",
2023-2024,P1,"Rencontres internationales du documentaire de Montr�al",Montr�al,Quebec,Canada,"Rencontres internationales du documentaire de Montr�al 2023",0,0,2023-05-25,96029.00,96029.00,Contribution,"Medium to Large-Scale Festivals",
2023-2024,P1,"Productions KOTV IX Inc.",Montr�al,Quebec,Canada,"PLAN B I (V.A.) Fonds d'indemnisation � court terme 2022-2023  Productions KOTV IX Inc.",0,0,2023-05-02,328792.94,0.00,Contribution,"COVID-19 Emergency Relief Fund","Amended Contract Signed 14-Jul-2022"
2023-2024,P1,"CME Spring Productions Inc.",Etobicoke,Ontario,Canada,"Pairs Well With Love Short-Term Compensation Fund 2022-2023  CME Spring Productions Inc.",0,0,2023-04-05,6929.25,0.00,Contribution,"COVID-19 Emergency Relief Fund","Amended Contract Signed 06-Sep-2022"
2023-2024,P1,"Productions Festives",Trois-Rivieres,Quebec,Canada,Oasis,French,Documentary,2023-05-30,2000.00,2000.00,Contribution,"International Marketing Program",
2023-2024,P1,"9365-6429 Qu�bec inc.",Montreal,Quebec,Canada,"Nuit blonde",French,Drama,2023-04-26,2000.00,2000.00,Contribution,"International Marketing Program",
2023-2024,P1,"9365-6429 Qu�bec inc.",Montreal,Quebec,Canada,"Nuit blonde",French,Drama,2023-04-27,2000.00,2000.00,Contribution,"International Marketing Program",
2023-2024,P1,"UGO Multimedia Internet Stands Inc.",Montr�al,Quebec,Canada,NU,French,Horror,2023-05-17,2000.00,2000.00,Contribution,"International Marketing Program",
2023-2024,P1,"Strange Animals (Copperheart) Productions Inc.",Toronto,Ontario,Canada,"Night of the Zoopocalypse",English,Comedy,2023-06-16,0.00,150000.00,Advance,"Production Program","Amended Contract Signed 17-Mar-2021"
2023-2024,P1,"Strange Animals (Copperheart) Productions Inc.",Toronto,Ontario,Canada,"Night of the Zoopocalypse",English,Comedy,2023-06-16,500000.00,150000.00,Investment,"Production Program","Amended Contract Signed 17-Mar-2021"
2023-2024,P1,"Strange Animals (Copperheart) Productions Inc.",Toronto,Ontario,Canada,"Night of the Zoopocalypse",English,Comedy,2023-06-14,3500000.00,3500000.00,Investment,"Production Program",
2023-2024,P1,"BOSSA NOVA PRODUCTIONS, INC. dba Level 33 Entertainment","Los Angeles",California,"United States","Montreal Girls",English,Drama,2023-06-12,13550.00,13550.00,Contribution,"Export Assistance Program",
2023-2024,P1,"Filmoption International Inc.",Westmount,Quebec,Canada,"Montreal Girls",English,Drama,2023-06-29,24930.00,24930.00,Advance,"Marketing Program",
2023-2024,P1,"CMW Mountain Productions Inc.",Burnaby,"British Columbia",Canada,"Modeled With Love Short-Term Compensation Fund 2022-2023  CMW Mountain Productions Inc.",0,0,2023-04-11,56211.79,0.00,Contribution,"COVID-19 Emergency Relief Fund","Amended Contract Signed 21-Oct-2022"
2023-2024,P1,"Les Films Opale Inc.",Montr�al,Quebec,Canada,"Memory Box",French,Drama,2023-04-26,24773.00,65532.00,Advance,"Marketing Program","Amended Contract Signed 04-Jun-2021"
2023-2024,P1,"Argus Films Inc.",Montr�al,Quebec,Canada,"March� de coproduction - sans projet sp�cifique",French,Drama,2023-06-14,2000.00,2000.00,Contribution,"International Marketing Program",
2023-2024,P1,"Metafilms Inc.",Montr�al,Quebec,Canada,"Mama no himitsu",Other,Documentary,2023-05-02,4000.00,4000.00,Contribution,"International Marketing Program",
2023-2024,P1,"Kybele Films Inc.",Toronto,Ontario,Canada,Loya,English,Drama,2023-04-26,2000.00,2000.00,Contribution,"International Marketing Program",
2023-2024,P1,"SHAFTESBURY LIFE WITH LUCA I INC.",Toronto,Ontario,Canada,"Life With Luca  Short-Term Compensation Fund 2022-2023  SHAFTESBURY LIFE WITH LUCA I INC.",0,0,2023-05-01,42761.97,0.00,Contribution,"COVID-19 Emergency Relief Fund","Amended Contract Signed 01-Aug-2022"
2023-2024,P1,"Les Productions N�m�sis Films inc.",Montr�al,Quebec,Canada,"L'�t� des chaleurs",French,Drama,2023-04-26,2000.00,2000.00,Contribution,"International Marketing Program",
2023-2024,P1,"Coop Vid�o de Montr�al",Montr�al,Quebec,Canada,"Les rois",French,Drama,2023-04-28,2000.00,2000.00,Contribution,"International Marketing Program",
2023-2024,P1,"Fondation Qu�bec cin�ma",Montr�al,Quebec,Canada,"Les Rendez-vous Qu�bec Cin�ma 2024",0,0,2023-05-25,109747.00,109747.00,Contribution,"Medium to Large-Scale Festivals",
2023-2024,P1,"Encore t�l�vision - LMP Inc.",Montr�al,Quebec,Canada,"Les Moments Parfaits saison 2 Fonds d'indemnisation � court terme 2022-2023  Encore t�l�vision - LMP Inc.",0,0,2023-05-02,76101.36,0.00,Contribution,"COVID-19 Emergency Relief Fund","Amended Contract Signed 01-Aug-2022"
2023-2024,P1,"A M�dia II inc.",Montr�al,Quebec,Canada,"Les Mecs III Fonds d'indemnisation � court terme 2022-2023  A M�dia II inc.",0,0,2023-04-18,134347.42,0.00,Contribution,"COVID-19 Emergency Relief Fund","Amended Contract Signed 20-May-2022"
2023-2024,P1,"Production les hommes de ma m�re inc.",Mont-Saint-Hilaire,Quebec,Canada,"Les hommes de ma m�re Fonds d'indemnisation � court terme 2022-2023  Production les hommes de ma m�re inc.",0,0,2023-04-12,253938.64,0.00,Contribution,"COVID-19 Emergency Relief Fund","Amended Contract Signed 16-Sep-2022"
2023-2024,P1,"Les Productions N�m�sis Films inc.",Montr�al,Quebec,Canada,"Les chambres rouges",French,Thriller,2023-05-30,795000.00,750000.00,Investment,"Production Program","Amended Contract Signed 16-Aug-2022"
2023-2024,P1,"N�m�sis Films Inc.",Montr�al,Quebec,Canada,"Les chambres rouges",French,Thriller,2023-06-09,15000.00,15000.00,Contribution,"International Marketing Program",
2023-2024,P1,"Colonelle films inc.",Montr�al,Quebec,Canada,"LES BATTUES (The Fading)",French,Thriller,2023-05-18,2000.00,2000.00,Contribution,"International Marketing Program",
2023-2024,P1,"Mongrel Media Inc.",Toronto,Ontario,Canada,"Learn To Swim",English,Drama,2023-04-26,34100.00,64800.00,Advance,"Marketing Program","Amended Contract Signed 21-Mar-2022"
2023-2024,P1,"9286-4883 Qu�bec (F.A.S.  L'embuscade Films)",Montr�al,Quebec,Canada,"La mort n'existe pas",French,"Science fiction/Fantasy/Tale",2023-06-13,800000.00,650000.00,Investment,"Production Program","Amended Contract Signed 06-Dec-2021"
2023-2024,P1,"Krypto Films Inc",Vancouver,"British Columbia",Canada,Krypto,English,"Science fiction/Fantasy/Tale",2023-06-27,880000.00,800000.00,Investment,"Production Program","Amended Contract Signed 25-Feb-2022"
2023-2024,P1,"Productions 10e Ave Inc.",Saint-Augustin-de-Desmaures,Quebec,Canada,"Katak le brave b�luga",French,Action/Adventure,2023-06-12,15000.00,15000.00,Contribution,"International Marketing Program",
2023-2024,P1,"Maison 4:3 Inc.",Montr�al,Quebec,Canada,"JULES AU PAYS D'ASHA",French,"Science fiction/Fantasy/Tale",2023-06-06,179580.00,179580.00,Advance,"Marketing Program",
2023-2024,P1,"9224-0241 Qu�bec Inc.",Montr�al,Quebec,Canada,"Jour de Chasse",French,Drama,2023-05-02,4000.00,4000.00,Contribution,"International Marketing Program",
2023-2024,P1,"Productions Welcome Aboard",Montr�al,Quebec,Canada,"Joie de Vivre",French,Drama,2023-05-10,2000.00,2000.00,Contribution,"International Marketing Program",
2023-2024,P1,"Sph�re M�dia 2011 Inc.",Montr�al,Quebec,Canada,"IXE-13 Fonds d'indemnisation � court terme 2022-2023  Sph�re M�dia 2011 Inc.",0,0,2023-05-01,38911.02,0.00,Contribution,"COVID-19 Emergency Relief Fund","Amended Contract Signed 29-Aug-2022"
2023-2024,P1,"Productions Welcome Aboard",Montr�al,Quebec,Canada,"Insta Gay",English,Comedy,2023-06-23,2000.00,2000.00,Contribution,"International Marketing Program",
2023-2024,P1,"Productions TOSKA inc.",Sherbrooke,Quebec,Canada,Insomnie,French,"Science fiction/Fantasy/Tale",2023-05-08,2000.00,2000.00,Contribution,"International Marketing Program",
2023-2024,P1,"R�alisatrices �quitables",Montr�al,Quebec,Canada,"Initiatives de promotion de R�alisatrices �quitables 2023-2024",0,0,2023-06-27,10000.00,10000.00,Contribution,"Promotion Program",
2023-2024,P1,"Elevation Pictures Corp.",Toronto,Ontario,Canada,"Infinity Pool",English,Horror,2023-06-28,409285.00,409285.00,Advance,"Marketing Program",
2023-2024,P1,"CityLights Media Inc.",Mississauga,Ontario,Canada,"In Flames (previously known as Mariam)",English,Horror,2023-05-09,32000.00,32000.00,Contribution,"International Marketing Program",
2023-2024,P1,"Limbic Films Inc.",Toronto,Ontario,Canada,"I Never Promised You A Jasmine Garden",Other,Drama,2023-05-08,2000.00,2000.00,Contribution,"International Marketing Program",
2023-2024,P1,"Lightning Mill Inc",Edmonton,Alberta,Canada,"Hey Viktor!",English,Comedy,2023-05-17,15000.00,15000.00,Contribution,"International Marketing Program",
2023-2024,P1,"CME Summer Productions Inc.",Etobicoke,Ontario,Canada,"Her Highness the Princess of Christmas Short-Term Compensation Fund 2022-2023  CME Summer Productions Inc.",0,0,2023-05-31,67931.98,0.00,Contribution,"COVID-19 Emergency Relief Fund","Amended Contract Signed 06-Dec-2022"
2023-2024,P1,"Rescued Horse Season Sixteen Inc.",Calgary,Alberta,Canada,"Heartland (XVI) Short-Term Compensation Fund 2022-2023  Rescued Horse Season Sixteen Inc.",0,0,2023-06-05,548534.38,0.00,Contribution,"COVID-19 Emergency Relief Fund","Amended Contract Signed 20-May-2022"
2023-2024,P1,"Golden Delicious Films Inc.",Vancouver,"British Columbia",Canada,"Golden Delicious",English,Drama,2023-05-26,2000.00,2000.00,Contribution,"International Marketing Program",
2023-2024,P1,"Mystic Point Productions Inc.",Vancouver,"British Columbia",Canada,"FLAVIA DE LUCE",English,Mystery/Crime/Police,2023-05-16,250000.00,250000.00,Advance,"Production Program",
2023-2024,P1,"Caravane Films Productions",Chicoutimi,Quebec,Canada,"Festival REGARD 2024",0,0,2023-06-19,94676.00,94676.00,Contribution,"Medium to Large-Scale Festivals",
2023-2024,P1,"Mouvement d'implication francophone d'Orl�ans",Orl�ans,Ontario,Canada,"Festival Objectif Cin�ma Desjardins 2023",0,0,2023-06-20,5000.00,5000.00,Contribution,"Promotion Program",
2023-2024,P1,"Festival International du Film sur l'Art",Montr�al,Quebec,Canada,"Festival International du Film sur l'Art 2024",0,0,2023-05-25,96029.00,96029.00,Contribution,"Medium to Large-Scale Festivals",
2023-2024,P1,"Festival international du film pour enfants de Montr�al",Montr�al,Quebec,Canada,"Festival international du film pour enfants de Montr�al 2024",0,0,2023-05-25,26460.00,26460.00,Contribution,"Medium to Large-Scale Festivals",
2023-2024,P1,"Film Zone Inc.",Moncton,"New Brunswick",Canada,"Festival international du cin�ma francophone en Acadie 2023",0,0,2023-05-19,55012.00,55012.00,Contribution,"Medium to Large-Scale Festivals",
2023-2024,P1,Filministes,Montreal,Quebec,Canada,"Festival Filministes 2024",0,0,2023-06-21,10000.00,10000.00,Contribution,"Promotion Program",
2023-2024,P1,"Festival du film de l'Outaouais",Montr�al,Quebec,Canada,"Festival du film de l'Outaouais 2024",0,0,2023-05-26,15554.00,15554.00,Contribution,"Medium to Large-Scale Festivals",
2023-2024,P1,"Productions Sc�nat de L'Abitibi-Temiscamingue",Rouyn-Noranda,Quebec,Canada,"Festival du cin�ma internat. en Abitibi-T�miscamingue 2023",0,0,2023-06-02,53992.00,53992.00,Contribution,"Medium to Large-Scale Festivals",
2023-2024,P1,"Festival de Films Cin�mania",MONTR�AL,Quebec,Canada,"Festival de films francophones CINEMANIA 2023",0,0,2023-06-01,99410.00,99410.00,Contribution,"Medium to Large-Scale Festivals",
2023-2024,P1,"FLS3 Productions Inc.",Calgary,Alberta,Canada,"Family Law Season 3 Short-Term Compensation Fund 2022-2023  FLS3 Productions Inc.",0,0,2023-05-29,484906.44,0.00,Contribution,"COVID-19 Emergency Relief Fund","Amended Contract Signed 19-May-2022"
2023-2024,P1,"Ho Ho Heist Productions Inc.",Toronto,Ontario,Canada,"Faith Heist 2 - Christmas Heist Short-Term Compensation Fund 2022-2023  Ho Ho Heist Productions Inc.",0,0,2023-04-12,23918.82,0.00,Contribution,"COVID-19 Emergency Relief Fund","Amended Contract Signed 23-Jun-2022"
2023-2024,P1,"Maison 4:3 Inc.",Montr�al,Quebec,Canada,"Dounia et la princesse d'Alep",French,Drama,2023-06-07,53298.00,53298.00,Advance,"Marketing Program",
2023-2024,P1,"9382-3714 Qu�bec inc.",Montr�al,Quebec,Canada,"D'o� viens-tu, berger?",French,Drama,2023-06-02,1775000.00,1775000.00,Investment,"Production Program",
2023-2024,P1,"9382-3714 Qu�bec inc.",Montr�al,Quebec,Canada,"D'o� viens-tu, berger?",French,Drama,2023-05-03,500000.00,500000.00,Advance,"Production Program",
2023-2024,P1,"9382-3714 Qu�bec inc.",Montr�al,Quebec,Canada,"D'o� viens-tu, berger?",French,Drama,2023-06-05,0.00,500000.00,Advance,"Production Program","Amended Contract Signed 03-May-2023"
2023-2024,P1,"9382-3714 Qu�bec inc.",Montr�al,Quebec,Canada,"D'o� viens-tu, berger?",French,Drama,2023-06-05,500000.00,500000.00,Investment,"Production Program","Amended Contract Signed 03-May-2023"
2023-2024,P1,"The Whatever Institute Inc.",Vancouver,"British Columbia",Canada,"Doppelganger Paul",English,Comedy,2023-04-27,68000.00,85000.00,Advance,"Production Program","Amended Contract Signed 04-Oct-2011"
2023-2024,P1,"Level Film Inc.",Toronto,Ontario,Canada,"DonkeyHead (formerly Indians in Cowtown)",English,Comedy,2023-04-05,27625.00,30060.00,Advance,"Marketing Program","Amended Contract Signed 21-Mar-2022"
2023-2024,P1,"A M�dia II inc.",Montr�al,Quebec,Canada,"Discussions avec mes parents V Fonds d'indemnisation � court terme 2022-2023  A M�dia II inc.",0,0,2023-04-21,128306.54,0.00,Contribution,"COVID-19 Emergency Relief Fund","Amended Contract Signed 27-Apr-2022"
2023-2024,P1,"9401-1863 Qu�bec Inc.",Montreal,Quebec,Canada,"Desv�o de noche",French,Documentary,2023-05-03,2000.00,2000.00,Contribution,"International Marketing Program",
2023-2024,P1,"Corporation de d�veloppement et de production ACPAV Inc.",Montr�al,Quebec,Canada,"Dernier repas (Le)",French,Drama,2023-05-18,1650000.00,1550000.00,Advance,"Production Program","Amended Contract Signed 24-Aug-2022"
2023-2024,P1,"Cheval Films Inc.",Beloeil,Quebec,Canada,"DEHORS SERGE DEHORS",French,Documentary,2023-06-27,13388.00,17000.00,Advance,"Marketing Program","Amended Contract Signed 16-Nov-2021"
2023-2024,P1,"Productions sur le rythme Inc.",ST-LAURENT,Quebec,Canada,"D�FENSE D'ENTRER ! 3 (53-65) Fonds d'indemnisation � court terme 2022-2023  Productions sur le rythme Inc.",0,0,2023-04-05,61506.93,0.00,Contribution,"COVID-19 Emergency Relief Fund","Amended Contract Signed 08-Sep-2022"
2023-2024,P1,"Filmoption International Inc.",Westmount,Quebec,Canada,"Dark Nature",English,Horror,2023-06-26,222289.00,222289.00,Advance,"Marketing Program",
2023-2024,P1,"Course Estrie","North Hatley",Quebec,Canada,"Course des r�gions pancanadienne (prix �mergent) 2023-2024",0,0,2023-06-21,40000.00,40000.00,Contribution,"Promotion Program",
2023-2024,P1,"Azimut Films Inc.",Saint-Bruno-de-Montarville,Quebec,Canada,"Coproduction Market - No specific project",English,Drama,2023-06-13,2000.00,2000.00,Contribution,"International Marketing Program",
2023-2024,P1,"Azimut Films Inc.",Saint-Bruno-de-Montarville,Quebec,Canada,"Coproduction Market - No specific project",English,Drama,2023-06-14,2000.00,2000.00,Contribution,"International Marketing Program",
2023-2024,P1,"Conquering Lion Pictures Inc.",Toronto,Ontario,Canada,"Coproduction Market - No specific project",English,Drama,2023-05-10,2000.00,2000.00,Contribution,"International Marketing Program",
2023-2024,P1,"Les Films Opale Inc.",Montr�al,Quebec,Canada,"Coeur de slush",French,Drama,2023-06-06,233346.00,233346.00,Advance,"Marketing Program",
2023-2024,P1,"Les Films Opale Inc.",Montr�al,Quebec,Canada,"Coeur de slush",French,Drama,2023-05-02,5000.00,5000.00,Contribution,"International Marketing Program",
2023-2024,P1,"Cin�mental inc.",Winnipeg,Manitoba,Canada,"Cin�mental 2023",0,0,2023-06-28,10000.00,10000.00,Contribution,"Promotion Program",
2023-2024,P1,"eMerge Enterprises Ltd",Montr�al,Quebec,Canada,"CHEWDAISM: A TASTE OF JEWISH MONTREAL",English,Drama,2023-06-23,4000.00,4000.00,Contribution,"International Marketing Program",
2023-2024,P1,"Elevation Pictures Corp.",Toronto,Ontario,Canada,Charlotte,English,"Historical Drama",2023-04-19,105840.00,124466.00,Advance,"Marketing Program","Amended Contract Signed 14-Dec-2022"
2023-2024,P1,"Sph�re M�dia 2002 Inc.",Montr�al,Quebec,Canada,"Cerebrum II Fonds d'indemnisation � court terme 2022-2023  Sph�re M�dia 2002 Inc.",0,0,2023-05-11,31676.22,0.00,Contribution,"COVID-19 Emergency Relief Fund","Amended Contract Signed 29-Mar-2022"
2023-2024,P1,"Carrousel international du film de Rimouski (Le)",Rimouski,Quebec,Canada,"Carrousel international du film de Rimouski 2024",0,0,2023-06-01,26460.00,26460.00,Contribution,"Medium to Large-Scale Festivals",
2023-2024,P1,"9365-6429 Qu�bec inc.",Montreal,Quebec,Canada,"Caiti blues",French,Documentary,2023-05-24,5000.00,5000.00,Contribution,"International Marketing Program",
2023-2024,P1,"9365-6429 Qu�bec inc.",Montreal,Quebec,Canada,"Caiti blues",French,Documentary,2023-05-24,2000.00,2000.00,Contribution,"International Marketing Program",
2023-2024,P1,"Hawkeye Pictures Inc.",Toronto,Ontario,Canada,BROTHER,English,Drama,2023-06-02,2000.00,2000.00,Contribution,"International Marketing Program",
2023-2024,P1,"Encore T�l�vision - Bracelets Rouges Inc.",Montr�al,Quebec,Canada,"Bracelets rouges - saison 2 Fonds d'indemnisation � court terme 2022-2023  Encore T�l�vision - Bracelets Rouges Inc.",0,0,2023-05-01,203158.84,0.00,Contribution,"COVID-19 Emergency Relief Fund","Amended Contract Signed 24-Aug-2022"
2023-2024,P1,"Elevation Pictures Corp.",Toronto,Ontario,Canada,"BONES OF CROWS",English,"Historical Drama",2023-05-30,623904.00,623904.00,Advance,"Marketing Program",
2023-2024,P1,"Elevation Pictures Corp.",Toronto,Ontario,Canada,BLACKBERRY,English,Drama,2023-06-26,803320.50,803320.50,Advance,"Marketing Program",
2023-2024,P1,"CMW Mountain Productions Inc.",Burnaby,"British Columbia",Canada,"Been There All Along Short-Term Compensation Fund 2022-2023  CMW Mountain Productions Inc.",0,0,2023-04-03,39297.86,0.00,Contribution,"COVID-19 Emergency Relief Fund","Amended Contract Signed 12-Oct-2022"
2023-2024,P1,"Videographe Inc.",Montr�al,Quebec,Canada,"Bedroom People",English,"Science fiction/Fantasy/Tale",2023-06-30,2000.00,2000.00,Contribution,"International Marketing Program",
2023-2024,P1,"BEB BINGO ENTERTAINMENT INC.",Vancouver,"British Columbia",Canada,Asog,Other,Comedy,2023-04-28,4000.00,4000.00,Contribution,"International Marketing Program",
2023-2024,P1,"BEB BINGO ENTERTAINMENT INC.",Vancouver,"British Columbia",Canada,Asog,Other,Comedy,2023-05-01,15000.00,15000.00,Contribution,"International Marketing Program",
2023-2024,P1,"Level Film Inc.",Toronto,Ontario,Canada,"AND STILL I SING",English,Documentary,2023-06-12,21408.75,23130.00,Advance,"Marketing Program","Amended Contract Signed 21-Dec-2022"
2023-2024,P1,"Musubi Arts Inc.",Burnaby,"British Columbia",Canada,AKASHI,Other,Drama,2023-05-02,2000.00,2000.00,Contribution,"International Marketing Program",
2023-2024,P1,"Parce Que Films inc.",Montr�al,Quebec,Canada,"Adam change lentement",French,Comedy,2023-05-02,15000.00,15000.00,Contribution,"International Marketing Program",
2023-2024,P1,"9187-1608 Qu�bec inc",Longueuil,Quebec,Canada,Ababouin�,French,"Romantic Comedy",2023-06-30,1850000.00,1500000.00,Investment,"Production Program","Amended Contract Signed 09-Dec-2022"
2023-2024,P1,"Colonelle films inc.",Montr�al,Quebec,Canada,"� MORT LE BIKINI!",French,Comedy,2023-05-30,2000.00,2000.00,Contribution,"International Marketing Program",
2023-2024,P1,"Colonelle films inc.",Montr�al,Quebec,Canada,"� la vie � l'amor",French,Drama,2023-05-30,2000.00,2000.00,Contribution,"International Marketing Program",
2023-2024,P1,"Corporation Wapikoni Mobile",Montr�al,Quebec,Canada,"6 minutes/km",Indigenous,Documentary,2023-05-10,2000.00,2000.00,Contribution,"International Marketing Program",
2023-2024,P1,"Vancouver International Mountain Film Festival Society","North Vancouver","British Columbia",Canada,"2024 VIMFF February Festival",0,0,2023-06-29,10000.00,10000.00,Contribution,"Promotion Program",
2023-2024,P1,"Victoria Independent Film and Video Festival",Victoria,"British Columbia",Canada,"2024 Victoria Film Festival",0,0,2023-05-19,23493.00,23493.00,Contribution,"Medium to Large-Scale Festivals",
2023-2024,P1,"Toronto Black Film Festival",Toronto,Ontario,Canada,"2024 Toronto Black Film Festival",0,0,2023-05-31,14860.00,14860.00,Contribution,"Medium to Large-Scale Festivals",
2023-2024,P1,"Kingston Canadian Film Festival",Kingston,Ontario,Canada,"2024 Kingston Canadian Film Festival",0,0,2023-05-19,50955.00,50955.00,Contribution,"Medium to Large-Scale Festivals",
2023-2024,P1,"Invermere Film Festival",Toronto,Ontario,Canada,"2024 Invermere Film Festival",0,0,2023-06-22,10000.00,10000.00,Contribution,"Promotion Program",
2023-2024,P1,"Halifax Black Film Festival",Halifax,"Nova Scotia",Canada,"2024 Halifax Black Film Festival",0,0,2023-05-31,12151.00,12151.00,Contribution,"Medium to Large-Scale Festivals",
2023-2024,P1,"Gender Equity in Media Society Vancouver",Vancouver,"British Columbia",Canada,"2024 Gender Equity in Media Festival",0,0,2023-06-28,15000.00,15000.00,Contribution,"Promotion Program",
2023-2024,P1,"Storyline Fx Inc.",Winnipeg,Manitoba,Canada,"2024 Freeze Frame Int Film Festival for Kids of All Ages",0,0,2023-06-28,10000.00,10000.00,Contribution,"Promotion Program",
2023-2024,P1,"Dawson City Arts Society","Dawson City",Yukon,Canada,"2024 Dawson City International Short Film Festival",0,0,2023-06-23,10000.00,10000.00,Contribution,"Promotion Program",
2023-2024,P1,"Canadian Filmmakers Festival",Toronto,Ontario,Canada,"2024 Canadian Filmmakers Festival",0,0,2023-06-30,10000.00,10000.00,Contribution,"Promotion Program",
2023-2024,P1,"Yukon Film Society",Whitehorse,Yukon,Canada,"2024 Available Light Film Festival",0,0,2023-05-25,34132.00,34132.00,Contribution,"Medium to Large-Scale Festivals",
2023-2024,P1,"Western Arctic Moving Pictures",Yellowknife,"Northwest Territories",Canada,"2023 Yellowknife International Film Festival",0,0,2023-06-26,10000.00,10000.00,Contribution,"Promotion Program",
2023-2024,P1,"Whistler Film Festival Society",Whistler,"British Columbia",Canada,"2023 Whistler Film Festival",0,0,2023-05-31,94676.00,94676.00,Contribution,"Medium to Large-Scale Festivals",
2023-2024,P1,"The Vancouver Horror Show Film Festival (The VHS)",Vancouver,"British Columbia",Canada,"2023 Vancouver Horror Show Film Festival",0,0,2023-06-28,10000.00,10000.00,Contribution,"Promotion Program",
2023-2024,P1,"Vancouver Asian Film Festival Society",Vancouver,"British Columbia",Canada,"2023 Vancouver Asian Film Festival",0,0,2023-05-19,15585.00,15585.00,Contribution,"Medium to Large-Scale Festivals",
2023-2024,P1,"Toronto Reel Asian International Film Festival",Toronto,Ontario,Canada,"2023 Toronto Reel Asian International Film Festival",0,0,2023-05-30,92513.00,92513.00,Contribution,"Medium to Large-Scale Festivals",
2023-2024,P1,"St. John's International Women's Film Festival, Inc.","St. John's",Newfoundland/Labrador,Canada,"2023 St. John's International Women's Film Festival",0,0,2023-05-25,61283.00,61283.00,Contribution,"Medium to Large-Scale Festivals",
2023-2024,P1,"Spark Computer Graphics Society",Vancouver,"British Columbia",Canada,"2023 SPARK ANIMATION",0,0,2023-06-29,10000.00,10000.00,Contribution,"Promotion Program",
2023-2024,P1,"Workman Arts Project of Ontario",Toronto,Ontario,Canada,"2023 Rendezvous With Madness",0,0,2023-06-27,15000.00,15000.00,Contribution,"Promotion Program",
2023-2024,P1,"Regent Park Film Festival Inc.",Toronto,Ontario,Canada,"2023 Regent Park Film Festival",0,0,2023-06-27,15000.00,15000.00,Contribution,"Promotion Program",
2023-2024,P1,"Reelworld Screen Institute",Toronto,Ontario,Canada,"2023 Reelworld Film Festival",0,0,2023-06-01,47854.00,47854.00,Contribution,"Medium to Large-Scale Festivals",
2023-2024,P1,"MENA Film Festival Society","North Vancouver","British Columbia",Canada,"2023 MENA Film Festival",0,0,2023-06-26,10000.00,10000.00,Contribution,"Promotion Program",
2023-2024,P1,"The Centre for Aboriginal Media (Ontario)",Toronto,Ontario,Canada,"2023 imagineNATIVE Film + Media Arts Festival",0,0,2023-06-23,199133.00,199133.00,Contribution,"Medium to Large-Scale Festivals",
2023-2024,P1,"Diffusions gaies et lesbiennes du Qu�bec",Montr�al,Quebec,Canada,"2023 image+nation. festival film LGBT2SQ+ Montr�al",0,0,2023-05-25,46226.00,46226.00,Contribution,"Medium to Large-Scale Festivals",
2023-2024,P1,"Forest City Film Festival",London,Ontario,Canada,"2023 Forest City Film Festival",0,0,2023-06-13,48179.00,48179.00,Contribution,"Medium to Large-Scale Festivals",
2023-2024,P1,"Edmonton Short Film Festival",Edmonton,Alberta,Canada,"2023 Edmonton Short Film Festival",0,0,2023-06-26,10000.00,10000.00,Contribution,"Promotion Program",
2023-2024,P1,"Slow Motion Food Film Fest Society",Wolfville,"Nova Scotia",Canada,"2023 Devour! The Food Film Fest",0,0,2023-05-19,11226.00,11226.00,Contribution,"Medium to Large-Scale Festivals",
2023-2024,P1,"Chilliwack Film Society",Chilliwack,"British Columbia",Canada,"2023 Chilliwack Independent Film Festival",0,0,2023-06-22,10000.00,10000.00,Contribution,"Promotion Program",
2023-2024,P1,"The Charlottetown Film Society, Inc.",Charlottetown,"Prince Edward Island",Canada,"2023 Charlottetown Film Festival",0,0,2023-06-21,10000.00,10000.00,Contribution,"Promotion Program",
2023-2024,P1,"Blood in the Snow Canadian Film Festival",Toronto,Ontario,Canada,"2023 Blood in the Snow Canadian Film Festival",0,0,2023-06-24,5000.00,5000.00,Contribution,"Promotion Program",
2023-2024,P1,"Diffusion Multi-Monde inc.",Montr�al,Quebec,Canada,"2012/ Dans le coeur",French,Documentary,2023-06-29,16900.00,16900.00,Advance,"Marketing Program",
2023-2024,P1,"Mundane Media Inc.",Richmond,"British Columbia",Canada,"100 Days",English,Drama,2023-05-03,2000.00,2000.00,Contribution,"International Marketing Program",
2023-2024,P1,"Fathom Film Group Ltd.",Toronto,Ontario,Canada,#WhileBlack,English,Documentary,2023-06-12,2000.00,2000.00,Contribution,"International Marketing Program",
2023-2024,P2,"1000008980 ONTARIO INC.",Ontario,Canada,Canada,"I Don't Know Who You Are",English,Drama,2023-09-27,110450.00,110450.00,Contribution,"Production Program",
2023-2024,P2,"12545951 Canada Inc.",Quebec,Canada,Canada,"You Can Live Forever",English,Drama,2023-09-13,2000.00,2000.00,Contribution,"International Marketing Program",
2023-2024,P2,"1373039 B.C. LTD.","British Columbia",Canada,Canada,Levels,English,"Science fiction/Fantasy/Tale",2023-09-11,125000.00,125000.00,Advance,"Production Program",
2023-2024,P2,"14051483 Canada Inc.",Quebec,Canada,Canada,"Le temps d'un �t�",French,Comedy,2023-08-22,292249.00,262249.00,Advance,"Marketing Program","Amended Contract Signed 19-Jul-2023"
2023-2024,P2,"14051483 Canada Inc.",Quebec,Canada,Canada,"LES HOMMES DE MA M�RE",French,Drama,2023-08-03,240439.00,240439.00,Advance,"Marketing Program",
2023-2024,P2,"14051483 Canada Inc.",Quebec,Canada,Canada,"Le temps d'un �t�",French,Comedy,2023-07-19,262249.00,262249.00,Advance,"Marketing Program",
2023-2024,P2,"14217233 CANADA INC.",Quebec,Canada,Canada,"The G",English,Thriller,2023-09-05,750000.00,500000.00,Contribution,"Production Program","Amended Contract Signed 05-Mar-2020"
2023-2024,P2,"14217233 CANADA INC.",Quebec,Canada,Canada,"The G",English,Thriller,2023-09-01,5000.00,5000.00,Contribution,"International Marketing Program",
2023-2024,P2,"4046862 Canada inc.",Quebec,Canada,Canada,"Les mondes de Hamdi",French,Drama,2023-08-22,4000.00,4000.00,Contribution,"International Marketing Program",
2023-2024,P2,"9097-4767 Qu�bec Inc.",Quebec,Canada,Canada,"Que le silence ne l'emporte pas",French,Documentary,2023-09-11,4000.00,4000.00,Contribution,"International Marketing Program",
2023-2024,P2,"9167-7286 Qu�bec inc.",Quebec,Canada,Canada,"Dans la for�t",French,Documentary,2023-09-27,270000.00,270000.00,Contribution,"Theatrical Documentary Program",
2023-2024,P2,"9337-3447 Qu�bec Inc.",Quebec,Canada,Canada,"�cho � Delta",French,Drama,2023-09-25,2000.00,2000.00,Contribution,"International Marketing Program",
2023-2024,P2,"9339-6299 Qu�bec Inc.",Quebec,Canada,Canada,"Faire un Enfant",French,Drama,2023-07-24,2000.00,2000.00,Contribution,"International Marketing Program",
2023-2024,P2,"9352-4486 Qu�bec inc.",Quebec,Canada,Canada,"La Petite et le Vieux",French,Comedy,2023-07-27,500000.00,500000.00,Investment,"Production Program",
2023-2024,P2,"9382-7004 Qu�bec Inc.",Quebec,Canada,Canada,"Les rayons gamma",French,Drama,2023-08-30,15000.00,15000.00,Contribution,"International Marketing Program",
2023-2024,P2,"9382-7004 Qu�bec Inc.",Quebec,Canada,Canada,"Vampire Humaniste cherche suicidaire consentant",French,Comedy,2023-07-14,25000.00,25000.00,Contribution,"International Marketing Program",
2023-2024,P2,"9382-7004 Qu�bec Inc.",Quebec,Canada,Canada,"Mademoiselle Kenopsia",French,Drama,2023-07-12,15000.00,15000.00,Contribution,"International Marketing Program",
2023-2024,P2,"9445-0954 Quebec inc.",Quebec,Canada,Canada,"JULES AU PAYS D'ASHA",French,"Science fiction/Fantasy/Tale",2023-09-15,2000.00,2000.00,Contribution,"International Marketing Program",
2023-2024,P2,"9458-7979 Qu�bec inc.",Quebec,Canada,Canada,"QUITTER LA NUIT",French,Drama,2023-08-11,10958.00,10958.00,Contribution,"International Marketing Program",
2023-2024,P2,"9495-8519 Qu�bec Inc.",Quebec,Canada,Canada,Ka�ros,French,Drama,2023-09-14,650000.00,650000.00,Investment,"Production Program",
2023-2024,P2,"Aberdeen Pictures Inc.",Manitoba,Canada,Canada,Aberdeen,English,Drama,2023-08-28,800000.00,800000.00,Investment,"Production Program",
2023-2024,P2,"Acad�mie canadienne du cin�ma et de la t�l�vision - Section Qu�bec",Quebec,Canada,Canada,"Pitch des sc�naristes - cin�ma 2023-2024",,,2023-08-24,20000.00,20000.00,Contribution,"Promotion Program",
2023-2024,P2,"Academy Of Canadian Cinema And Television - Acad�mie Canadienne du Cin�ma et de la T�l�vision",Ontario,Canada,Canada,"Academy Partnership (Various Initiatives)",,,2023-08-03,275000.00,275000.00,Contribution,"Promotion Program",
2023-2024,P2,"Alberta Media Production Industries  Association (AMPIA)",Alberta,Canada,Canada,"2023-2024 AMPIA Professional Development Initiatives",,,2023-09-06,15000.00,15000.00,Contribution,"Promotion Program",
2023-2024,P2,"Alcina Pictures Ltd.",Ontario,Canada,Canada,"The VENERABLE",English,Horror,2023-09-27,0.00,15000.00,Advance,"Development Program","Amended Contract Signed 18-Dec-2017"
2023-2024,P2,"Ann Destry and Danny Productions Inc.",Ontario,Canada,Canada,"East Bay",English,Drama,2023-07-12,2000.00,2000.00,Contribution,"International Marketing Program",
2023-2024,P2,"Another World Entertainment ApS",,Danemark,Denmark,BlackBerry,English,Drama,2023-08-14,2967.00,2967.00,Contribution,"Export Assistance Program",
2023-2024,P2,"art et essai inc.",Quebec,Canada,Canada,"March� de coproduction - sans projet sp�cifique",French,Comedy,2023-09-05,2000.00,2000.00,Contribution,"International Marketing Program",
2023-2024,P2,"art et essai inc.",Quebec,Canada,Canada,"An Empty Seat",English,Drama,2023-08-16,2000.00,2000.00,Contribution,"International Marketing Program",
2023-2024,P2,"Atlantic Filmmakers Cooperative Limited","Nova Scotia",Canada,Canada,"2023-2024 - FILM 5",,,2023-07-04,20000.00,20000.00,Contribution,"Promotion Program",
2023-2024,P2,"Axia Films inc.",Quebec,Canada,Canada,Solo,French,Drama,2023-07-19,196800.00,196800.00,Advance,"Marketing Program",
2023-2024,P2,"Azimut Films Inc.",Quebec,Canada,Canada,Fronti�res,French,"Science fiction/Fantasy/Tale",2023-07-05,2000.00,2000.00,Contribution,"International Marketing Program",
2023-2024,P2,"Baby Daal Productions Inc.",Ontario,Canada,Canada,"THE QUEEN OF MY DREAMS",English,Drama,2023-08-31,15000.00,15000.00,Contribution,"International Marketing Program",
2023-2024,P2,"Banner House Productions Inc.",Quebec,Canada,Canada,"One Year Later",English,"Romantic Comedy",2023-09-28,37500.00,37500.00,Advance,"Development Program",
2023-2024,P2,"BEB BINGO ENTERTAINMENT INC.","British Columbia",Canada,Canada,ASOG,Other,Comedy,2023-09-22,2000.00,2000.00,Contribution,"International Marketing Program",
2023-2024,P2,"BEB BINGO ENTERTAINMENT INC.","British Columbia",Canada,Canada,ASOG,Other,Comedy,2023-09-11,2000.00,2000.00,Contribution,"International Marketing Program",
2023-2024,P2,"BEB BINGO ENTERTAINMENT INC.","British Columbia",Canada,Canada,ASOG,Other,Comedy,2023-08-31,2000.00,2000.00,Contribution,"International Marketing Program",
2023-2024,P2,"BEB BINGO ENTERTAINMENT INC.","British Columbia",Canada,Canada,ASOG,Other,Comedy,2023-08-31,2000.00,2000.00,Contribution,"International Marketing Program",
2023-2024,P2,"BEB BINGO ENTERTAINMENT INC.","British Columbia",Canada,Canada,ASOG,Other,Comedy,2023-07-11,2000.00,2000.00,Contribution,"International Marketing Program",
2023-2024,P2,"Bittersweat Productions Ltd.",Ontario,Canada,Canada,Backspot,English,Drama,2023-07-27,790000.00,740000.00,Investment,"Production Program","Amended Contract Signed 05-Jan-2023"
2023-2024,P2,"Black Dog Films Inc.","Nova Scotia",Canada,Canada,Maidens,English,Comedy,2023-09-26,37500.00,37500.00,Advance,"Development Program",
2023-2024,P2,"Blood in the Snow Canadian Film Festival",Ontario,Canada,Canada,"2023 BITS Horror Development Lab",,,2023-07-04,25000.00,25000.00,Contribution,"Promotion Program",
2023-2024,P2,"BOAF FILMS EFF INC.","British Columbia",Canada,Canada,"Birth Of A Family",English,Drama,2023-08-22,208384.00,208384.00,Advance,"Production Program",
2023-2024,P2,"Bonjour Movie Canada Inc.",Ontario,Canada,Canada,"Bonjour Tristesse",English,Drama,2023-08-01,1900000.00,1900000.00,Investment,"Production Program",
2023-2024,P2,"Brother Movie Inc.",Ontario,Canada,Canada,Brother,English,Drama,2023-07-26,45000.00,45000.00,Contribution,"Export Assistance Program",
2023-2024,P2,"Building a Legacy in Acting, Cinema & Knowledge (B.L.A.C.K.) Canada",Ontario,Canada,Canada,"Write Your Legacy",,,2023-07-26,0.00,50000.00,Contribution,"Promotion Program","Amended Contract Signed 26-Mar-2021"
2023-2024,P2,"Bunbury Films Inc.",Quebec,Canada,Canada,"Soleil de nuit",French,Drama,2023-07-24,2000.00,2000.00,Contribution,"International Marketing Program",
2023-2024,P2,"Canadian Film Institute",Ontario,Canada,Canada,"2024 The International Film Festival of Ottawa (IFFO)",,,2023-09-27,10000.00,10000.00,Contribution,"Promotion Program",
2023-2024,P2,"Cat's Cry Productions Inc.",Ontario,Canada,Canada,"Cat's Cry",Other,Drama,2023-09-26,247000.00,247000.00,Investment,"Production Program",
2023-2024,P2,"Chopping Boy Films Inc.",Ontario,Canada,Canada,"Chopping Boy",English,"Historical Drama",2023-09-07,712500.00,712500.00,Investment,"Production Program",
2023-2024,P2,"CIGAW Productions Ltd.","British Columbia",Canada,Canada,"CAN I GET A WITNESS?",English,"Science fiction/Fantasy/Tale",2023-07-04,1400000.00,1400000.00,Investment,"Production Program",
2023-2024,P2,Cin�franco,Ontario,Canada,Canada,"cin�franco jeunesse",,,2023-09-19,7500.00,12500.00,Contribution,"Promotion Program","Amended Contract Signed 06-Jun-2022"
2023-2024,P2,"Cin�maginaire Inc.",Quebec,Canada,Canada,"Fille de ma m�re",French,Drama,2023-07-31,0.00,15000.00,Advance,"Development Program","Amended Contract Signed 05-Feb-2020"
2023-2024,P2,"Cin�maginaire Inc.",Quebec,Canada,Canada,"R�volution 60",French,Drama,2023-07-31,0.00,20000.00,Advance,"Development Program","Amended Contract Signed 05-Feb-2020"
2023-2024,P2,"Cin�maginaire Inc.",Quebec,Canada,Canada,Testament,French,Drama,2023-07-19,5000.00,5000.00,Contribution,"International Marketing Program",
2023-2024,P2,"Cinematic Movement Collective BC Inc.","British Columbia",Canada,Canada,"The Art of Dance",English,Documentary,2023-09-28,225000.00,150000.00,Investment,"Theatrical Documentary Program","Amended Contract Signed 18-Mar-2022"
2023-2024,P2,"CityLights Media Inc.",Ontario,Canada,Canada,"In Flames (previously known as Mariam)",English,Horror,2023-09-19,2000.00,2000.00,Contribution,"International Marketing Program",
2023-2024,P2,"CityLights Media Inc.",Ontario,Canada,Canada,"In Flames (previously known as Mariam)",English,Horror,2023-07-28,2000.00,2000.00,Contribution,"International Marketing Program",
2023-2024,P2,"CityLights Media Inc.",Ontario,Canada,Canada,"In Flames (previously known as Mariam)",English,Horror,2023-07-28,2000.00,2000.00,Contribution,"International Marketing Program",
2023-2024,P2,"Compass Productions Inc.",Quebec,Canada,Canada,"La Source",French,Drama,2023-09-07,4000.00,4000.00,Contribution,"International Marketing Program",
2023-2024,P2,"Compy Films Inc.",Ontario,Canada,Canada,"The Sandbox",English,Documentary,2023-09-26,2000.00,2000.00,Contribution,"International Marketing Program",
2023-2024,P2,"Conquering Lion Pictures Inc.",Ontario,Canada,Canada,"Coproduction market - no specific project",English,Drama,2023-09-14,2000.00,2000.00,Contribution,"International Marketing Program",
2023-2024,P2,"Conquering Lion Pictures Inc.",Ontario,Canada,Canada,"Steal Away Home",English,Thriller,2023-07-24,250000.00,250000.00,Advance,"Production Program",
2023-2024,P2,"Curzon Film World Limited",,Royaume-Uni,"United Kingdom",Brother,English,Drama,2023-07-17,45000.00,45000.00,Contribution,"Export Assistance Program",
2023-2024,P2,"Darius-Warrior Productions Inc.",Ontario,Canada,Canada,"Warrior Strong",English,Drama,2023-08-10,750000.00,650000.00,Investment,"Production Program","Amended Contract Signed 19-Aug-2022"
2023-2024,P2,"Dark Lullabies Inc. (doing business as DLI Productions)",Quebec,Canada,Canada,"First to Stand: the Cases and Causes of Irwin Cotler",English,Documentary,2023-07-21,45000.00,20000.00,Advance,"Marketing Program","Amended Contract Signed 08-Feb-2023"
2023-2024,P2,"Documentary Organization of Canada",Ontario,Canada,Canada,"2024 Festival Concierge",,,2023-07-11,8000.00,8000.00,Contribution,"Promotion Program",
2023-2024,P2,"Elevation Pictures Corp.",Ontario,Canada,Canada,"NORTH OF NORMAL",English,Drama,2023-09-01,238869.00,238869.00,Advance,"Marketing Program",
2023-2024,P2,"Elevation Pictures Corp.",Ontario,Canada,Canada,"Door Mouse",English,Thriller,2023-07-23,121289.00,121289.00,Advance,"Marketing Program",
2023-2024,P2,"Elevation Pictures Corp.",Ontario,Canada,Canada,Brother,English,Drama,2023-07-17,351738.75,351738.75,Advance,"Marketing Program",
2023-2024,P2,"Entract Films Inc.",Quebec,Canada,Canada,"LES CHAMBRES ROUGES",French,Thriller,2023-07-21,149225.00,149225.00,Advance,"Marketing Program",
2023-2024,P2,EUROZOOM,Other,France,France,"Katak le brave b�luga",French,Action/Adventure,2023-09-13,45000.00,45000.00,Contribution,"Export Assistance Program",
2023-2024,P2,"Everest Dark Films Inc.",Manitoba,Canada,Canada,"Everest Dark",English,Documentary,2023-09-29,250000.00,150000.00,Investment,"Theatrical Documentary Program","Amended Contract Signed 13-Jan-2022"
2023-2024,P2,"Fae Pictures Inc.",Ontario,Canada,Canada,Diaspora,English,Horror,2023-07-07,2000.00,2000.00,Contribution,"International Marketing Program",
2023-2024,P2,"Fae Pictures Inc.",Ontario,Canada,Canada,"Granny Lee",English,Drama,2023-07-07,2000.00,2000.00,Contribution,"International Marketing Program",
2023-2024,P2,"Femmes du cinema, de la television et des m�dias num�riques",Quebec,Canada,Canada,"Gala-b�n�fice Allia 2023",,,2023-08-21,5000.00,5000.00,Contribution,"Promotion Program",
2023-2024,P2,"Femmes du cinema, de la television et des m�dias num�riques",Quebec,Canada,Canada,"Programmation annuelle Allia 2023-2024",,,2023-07-19,10000.00,10000.00,Contribution,"Promotion Program",
2023-2024,P2,"Festival du nouveau cin�ma de Montr�al",Quebec,Canada,Canada,"Festival du nouveau cin�ma 2023",,,2023-08-23,250000.00,250000.00,Contribution,"Medium to Large-Scale Festivals",
2023-2024,P2,"Festival Pleins �crans",Quebec,Canada,Canada,"Festival Plein(s) �cran(s) 2024",,,2023-07-19,20000.00,20000.00,Contribution,"Promotion Program",
2023-2024,P2,"Film Movement LLC","New York",�tats-Unis,"United States","Into the Weeds",English,Documentary,2023-08-03,26894.00,26894.00,Contribution,"Export Assistance Program",
2023-2024,P2,"Filmoption International Inc.",Quebec,Canada,Canada,Polaris,English,Drama,2023-09-12,108180.00,108180.00,Advance,"Marketing Program",
2023-2024,P2,"Filmoption International Inc.",Quebec,Canada,Canada,"�cho � Delta",French,Drama,2023-09-12,5000.00,5000.00,Contribution,"International Marketing Program",
2023-2024,P2,"Films S�ville Inc. (Les)",Quebec,Canada,Canada,"Lignes de fuite",French,Drama,2023-07-31,105392.00,243501.00,Advance,"Marketing Program","Amended Contract Signed 06-Dec-2022"
2023-2024,P2,"First Take Entertainment Ltd.",Ontario,Canada,Canada,Count,English,Drama,2023-09-11,17268.16,22838.00,Advance,"Development Program","Amended Contract Signed 26-Jan-2021"
2023-2024,P2,"Follow Art Distribution S.R.L.",,Roumanie,Romania,"Falcon Lake",French,Drama,2023-08-03,4350.00,4350.00,Contribution,"Export Assistance Program",
2023-2024,P2,"Fondation Qu�bec cin�ma",Quebec,Canada,Canada,"Tourn�e Qu�bec Cin�ma 2023-2024",,,2023-08-03,63000.00,63000.00,Contribution,"Promotion Program",
2023-2024,P2,"Forum Films 2005 Inc.",Quebec,Canada,Canada,"Pas d'chicane dans ma cabane!",French,Comedy,2023-08-31,2000.00,2000.00,Contribution,"International Marketing Program",
2023-2024,P2,"Forum Films 2005 Inc.",Quebec,Canada,Canada,"Pas d'chicane dans ma cabane!",French,Comedy,2023-08-02,2000.00,2000.00,Contribution,"International Marketing Program",
2023-2024,P2,"Frenetic Films AG",,Suisse,Switzerland,"Simple comme Sylvain",French,"Romantic Comedy",2023-08-24,43236.00,43236.00,Contribution,"Export Assistance Program",
2023-2024,P2,"Fri Bands Inc.","Nova Scotia",Canada,Canada,Lakeview,English,Drama,2023-09-26,400000.00,400000.00,Contribution,"Production Program",
2023-2024,P2,"Front des r�alisateurs ind�pendants du Canada (FRIC)",Ontario,Canada,Canada,"Initiatives du FRIC pour les r�alisateurs issus des CLOSM 2023-2024",,,2023-08-15,20000.00,20000.00,Contribution,"Promotion Program",
2023-2024,P2,"Funfilm Distribution Inc.",Quebec,Canada,Canada,Richelieu,French,Drama,2023-08-21,117000.00,65000.00,Advance,"Marketing Program","Amended Contract Signed 26-Jul-2023"
2023-2024,P2,"Funfilm Distribution Inc.",Quebec,Canada,Canada,Richelieu,French,Drama,2023-07-26,65000.00,65000.00,Advance,"Marketing Program",
2023-2024,P2,"Go Films L.P.R.S. Inc.",Quebec,Canada,Canada,1994-95,French,Comedy,2023-09-27,0.00,153440.00,Advance,"Production Program","Amended Contract Signed 13-Jul-2023"
2023-2024,P2,"Go Films L.P.R.S. Inc.",Quebec,Canada,Canada,1994-95,French,Comedy,2023-09-27,153440.00,153440.00,Investment,"Production Program","Amended Contract Signed 13-Jul-2023"
2023-2024,P2,"Go Films L.P.R.S. Inc.",Quebec,Canada,Canada,1994-95,French,Comedy,2023-07-13,153440.00,153440.00,Advance,"Production Program",
2023-2024,P2,"Golden Delicious Films Inc.","British Columbia",Canada,Canada,"Golden Delicious",English,Drama,2023-08-30,2000.00,2000.00,Contribution,"International Marketing Program",
2023-2024,P2,"H2LShiners Inc.",Quebec,Canada,Canada,"The Death Tour",English,Documentary,2023-08-22,75000.00,75000.00,Contribution,"Theatrical Documentary Program",
2023-2024,P2,"Hellifax Horror Society","Nova Scotia",Canada,Canada,"2023 Hellifax Horror Fest",,,2023-07-04,5000.00,5000.00,Contribution,"Promotion Program",
2023-2024,P2,"HOLY CITY VR INC.",Ontario,Canada,Canada,WinterOver,English,"Science fiction/Fantasy/Tale",2023-09-22,2000.00,2000.00,Contribution,"International Marketing Program",
2023-2024,P2,"Humane Productions Inc.",Ontario,Canada,Canada,Humane,English,Thriller,2023-07-26,1185000.00,1100000.00,Investment,"Production Program","Amended Contract Signed 24-Mar-2022"
2023-2024,P2,"Independent Edge Films Inc.","British Columbia",Canada,Canada,"Selling It",English,Comedy,2023-09-27,25000.00,25000.00,Advance,"Development Program",
2023-2024,P2,"Independent Edge Films Inc.","British Columbia",Canada,Canada,"The Driver",English,Horror,2023-09-27,28000.00,28000.00,Advance,"Development Program",
2023-2024,P2,"Independent Edge Films Inc.","British Columbia",Canada,Canada,"SECOND SIGHT",English,Mystery/Crime/Police,2023-09-27,22000.00,22000.00,Advance,"Development Program",
2023-2024,P2,"Island Media Arts Co-Operative Limited","Prince Edward Island",Canada,Canada,"2023 - 2024 FIlm4Ward",,,2023-07-04,15000.00,15000.00,Contribution,"Promotion Program",
2023-2024,P2,"Isuma Distribution International Ltd.",Quebec,Canada,Canada,"Tautuktavuk: What We See",Indigenous,Drama,2023-09-14,75000.00,75000.00,Advance,"Marketing Program",
2023-2024,P2,"Italian Contemporary Film Festival",Ontario,Canada,Canada,"2023 ICFF Industry Days",,,2023-07-05,10000.00,10000.00,Contribution,"Promotion Program",
2023-2024,P2,"Jill and Jackfish Productions Inc.","Northwest Territories",Canada,Canada,Scammers,English,Drama,2023-09-26,30353.00,30353.00,Advance,"Development Program",
2023-2024,P2,"Jill and Jackfish Productions Inc.","Northwest Territories",Canada,Canada,"The Sea Snake",English,"Science fiction/Fantasy/Tale",2023-09-26,44647.00,44647.00,Advance,"Development Program",
2023-2024,P2,"Just Wanted srl",,Italie,Italy,"Simple comme Sylvain",French,"Romantic Comedy",2023-08-03,44440.00,44440.00,Contribution,"Export Assistance Program",
2023-2024,P2,"Kamloops Film Society","British Columbia",Canada,Canada,"2024 Kamloops Film Festival",,,2023-07-10,10000.00,10000.00,Contribution,"Promotion Program",
2023-2024,P2,"La 115e",Quebec,Canada,Canada,"Jour de merde",French,Comedy,2023-08-22,5000.00,5000.00,Contribution,"International Marketing Program",
2023-2024,P2,"La F�te Content & Concept Inc.",Quebec,Canada,Canada,"Coco Ferme",French,Comedy,2023-08-30,2000.00,2000.00,Contribution,"International Marketing Program",
2023-2024,P2,"La fonte des glaces inc.",Quebec,Canada,Canada,"La fonte des glaces",French,Drama,2023-08-11,100000.00,100000.00,Contribution,"Production Program",
2023-2024,P2,"Lakeside Animation Inc.",Ontario,Canada,Canada,"In The Heat",English,Thriller,2023-07-12,2000.00,2000.00,Contribution,"International Marketing Program",
2023-2024,P2,"Le Foyer Films inc.",Quebec,Canada,Canada,"Une splendeur de vivre",French,Drama,2023-09-26,4000.00,4000.00,Contribution,"International Marketing Program",
2023-2024,P2,"Les Films du Ventre inc",Quebec,Canada,Canada,"Oublier Charlotte",French,Mystery/Crime/Police,2023-07-11,775000.00,725000.00,Advance,"Production Program","Amended Contract Signed 18-Nov-2022"
2023-2024,P2,"Les Films Ext�rieur Jour Inc.",Quebec,Canada,Canada,"Quand les Sprakkars se l�vent",French,Documentary,2023-09-11,0.00,100000.00,Contribution,"Theatrical Documentary Program","Amended Contract Signed 08-Jul-2022"
2023-2024,P2,"Les Films Opale Inc.",Quebec,Canada,Canada,"Coeur de slush",French,Drama,2023-08-21,2000.00,2000.00,Contribution,"International Marketing Program",
2023-2024,P2,"Les Films R�deurs inc.",Quebec,Canada,Canada,Ph�nix,French,Drama,2023-08-09,432000.00,432000.00,Contribution,"Production Program",
2023-2024,P2,"Long Haul Big Hearts Productions Inc.",Ontario,Canada,Canada,"The Land, The Sea, The People",English,Documentary,2023-09-18,0.00,15000.00,Advance,"Development Program","Amended Contract Signed 19-Feb-2021"
2023-2024,P2,"Mad Samurai Productions Inc.","British Columbia",Canada,Canada,"The Crying Boy",English,Horror,2023-09-26,37500.00,37500.00,Advance,"Development Program",
2023-2024,P2,"Maison 4:3 Inc.",Quebec,Canada,Canada,"La l�gende du papillon",French,Comedy,2023-09-29,340512.00,340512.00,Advance,"Marketing Program",
2023-2024,P2,"Maison 4:3 Inc.",Quebec,Canada,Canada,"Les jours heureux",French,Drama,2023-08-11,180825.00,180825.00,Advance,"Marketing Program",
2023-2024,P2,"Metafilms Inc.",Quebec,Canada,Canada,"Le Successeur",French,Drama,2023-09-26,15000.00,15000.00,Contribution,"International Marketing Program",
2023-2024,P2,"Metafilms Inc.",Quebec,Canada,Canada,"Simple comme Sylvain",French,"Romantic Comedy",2023-09-19,2000.00,2000.00,Contribution,"International Marketing Program",
2023-2024,P2,"Miriam Films Inc.",Ontario,Canada,Canada,"THE INCIDENT REPORT",English,Drama,2023-07-25,575000.00,400000.00,Investment,"Production Program","Amended Contract Signed 21-Dec-2020"
2023-2024,P2,"Mlle Bottine Inc.",Quebec,Canada,Canada,"Mlle Bottine",French,Comedy,2023-09-06,1900000.00,1800000.00,Advance,"Production Program","Amended Contract Signed 11-Jan-2023"
2023-2024,P2,"Mongrel Media Inc.",Ontario,Canada,Canada,"So Much Tenderness",English,Drama,2023-08-10,40050.00,40050.00,Advance,"Marketing Program",
2023-2024,P2,"Motel WFTBU Inc.",Ontario,Canada,Canada,"We Forgot to Break Up",English,Drama,2023-08-24,1150000.00,1050000.00,Investment,"Production Program","Amended Contract Signed 22-Mar-2022"
2023-2024,P2,"Moxy Fox Studio Inc.","New Brunswick",Canada,Canada,"Qaqsoss naka Wahuntsis",Indigenous,Horror,2023-09-26,134000.00,134000.00,Contribution,"Production Program",
2023-2024,P2,"National Screen Institute - Canada",Manitoba,Canada,Canada,"NSI Shadow Forward Mentorship - Pilot 2023-2024",,,2023-08-02,22692.00,22692.00,Contribution,"Promotion Program",
2023-2024,P2,"National Screen Institute - Canada",Manitoba,Canada,Canada,"NSI Elevate 2023-2025",,,2023-08-02,98500.00,98500.00,Contribution,"Promotion Program",
2023-2024,P2,"National Screen Institute - Canada",Manitoba,Canada,Canada,"NSI Intro to Production 2023-2024",,,2023-08-02,20000.00,20000.00,Contribution,"Promotion Program",
2023-2024,P2,"N�m�sis Films Inc.",Quebec,Canada,Canada,"LES CHAMBRES ROUGES",French,Thriller,2023-09-21,2000.00,2000.00,Contribution,"International Marketing Program",
2023-2024,P2,"N�m�sis Films Inc.",Quebec,Canada,Canada,"LES CHAMBRES ROUGES",French,Thriller,2023-09-18,2000.00,2000.00,Contribution,"International Marketing Program",
2023-2024,P2,"N�m�sis Films Inc.",Quebec,Canada,Canada,"L'�t� des chaleurs",French,Drama,2023-09-06,2000.00,2000.00,Contribution,"International Marketing Program",
2023-2024,P2,"NonStop Entertainment AB",,Su�de,Sweden,BlackBerry,English,Drama,2023-07-21,42066.00,42066.00,Contribution,"Export Assistance Program",
2023-2024,P2,"Nootka Street Film Company Inc.","British Columbia",Canada,Canada,"Satan Wants You",English,Documentary,2023-09-22,2000.00,2000.00,Contribution,"International Marketing Program",
2023-2024,P2,"Nootka Street Film Company Inc.","British Columbia",Canada,Canada,"Satan Wants You",English,Documentary,2023-09-06,2000.00,2000.00,Contribution,"International Marketing Program",
2023-2024,P2,"ON SCREEN MANITOBA INCORPORATED",Manitoba,Canada,Canada,"2024 ALL ACCESS",,,2023-09-06,17000.00,17000.00,Contribution,"Promotion Program",
2023-2024,P2,"ORGANISATION COMMUNICATIONS ET SOCI�T� OCS INC.",Quebec,Canada,Canada,"Cin�cole 2023-2024",,,2023-07-27,20000.00,20000.00,Contribution,"Promotion Program",
2023-2024,P2,"Oskar Fisher Productions Inc.",Ontario,Canada,Canada,"The Invisibles",English,Drama,2023-08-17,1264500.00,1164500.00,Investment,"Production Program","Amended Contract Signed 13-Jan-2023"
2023-2024,P2,"Perfect Son Productions Inc.",Ontario,Canada,Canada,Kipkemboi,English,Drama,2023-07-24,600000.00,350000.00,Investment,"Production Program","Amended Contract Signed 13-Nov-2020"
2023-2024,P2,"P�riph�ria Films Inc",Quebec,Canada,Canada,FREDY,French,Documentary,2023-08-22,3146.53,3146.53,Contribution,"International Marketing Program",
2023-2024,P2,"P�riph�ria Productions Inc.",Quebec,Canada,Canada,"Kidnapping S.A.",French,Comedy,2023-07-07,137500.00,110000.00,Contribution,"Production Program","Amended Contract Signed 26-Aug-2019"
2023-2024,P2,"Photon Films and Media Inc.",Ontario,Canada,Canada,"When Morning Comes",English,Drama,2023-08-14,15817.50,15817.50,Advance,"Marketing Program",
2023-2024,P2,"Pimiento M�dias 6 Inc.",Quebec,Canada,Canada,Compos�es,French,Documentary,2023-08-25,200000.00,200000.00,Contribution,"Theatrical Documentary Program",
2023-2024,P2,"Planet in Focus: International Environmental Film & Video Festival",Ontario,Canada,Canada,"2023 Planet in Focus Environmental Film Festival",,,2023-07-28,10000.00,10000.00,Contribution,"Promotion Program",
2023-2024,P2,"Prix coll�gial du cin�ma qu�b�cois",Quebec,Canada,Canada,"Prix coll�gial du cin�ma qu�b�cois 2023",,,2023-07-20,20000.00,20000.00,Contribution,"Promotion Program",
2023-2024,P2,"Production les hommes de ma m�re inc.",Quebec,Canada,Canada,"LES HOMMES DE MA M�RE",French,Drama,2023-09-26,755000.00,730000.00,Investment,"Production Program","Amended Contract Signed 20-Oct-2022"
2023-2024,P2,"Productions de la Ruelle Inc.",Quebec,Canada,Canada,"Je vous salue salope: La Misogynie au temps du num�rique",French,Documentary,2023-07-07,6113.00,6113.00,Contribution,"Export Assistance Program",
2023-2024,P2,"Productions Figure 55 Inc.",Quebec,Canada,Canada,"As I lay dead (aka Unfashionable Victims)",Other,Drama,2023-08-15,2000.00,2000.00,Contribution,"International Marketing Program",
2023-2024,P2,"Productions pas seuls inc.",Quebec,Canada,Canada,"Vous n'�tes pas seuls",French,"Romantic Comedy",2023-07-13,935000.00,935000.00,Advance,"Production Program",
2023-2024,P2,"Productions Sons of Manual Inc.",Quebec,Canada,Canada,"La b�te",French,Thriller,2023-09-29,6909.00,6909.00,Contribution,"International Marketing Program",
2023-2024,P2,"Reel to Real: A Celebration Of Moving Images For Youth Society","British Columbia",Canada,Canada,"2023 The Our World Legacy Project",,,2023-07-19,25000.00,25000.00,Contribution,"Promotion Program",
2023-2024,P2,"Reelworld Screen Institute",Ontario,Canada,Canada,"2023-2024 E20 Program",,,2023-07-18,25000.00,25000.00,Contribution,"Promotion Program",
2023-2024,P2,"Retrouvailles Inc.",Ontario,Canada,Canada,"Honey Bunch",English,Thriller,2023-08-02,1375000.00,1375000.00,Investment,"Production Program",
2023-2024,P2,"Rialto Distribution PTY Ltd.",,Australie,Australia,Simulant,English,Thriller,2023-09-26,45000.00,45000.00,Contribution,"Export Assistance Program",
2023-2024,P2,"Rumours Production Inc.",Manitoba,Canada,Canada,Rumours,English,Comedy,2023-09-29,1800000.00,1800000.00,Investment,"Production Program",
2023-2024,P2,"Rumours Production Inc.",Manitoba,Canada,Canada,Rumours,English,Comedy,2023-09-29,0.00,248908.00,Advance,"Production Program","Amended Contract Signed 05-Jun-2023"
2023-2024,P2,"Rumours Production Inc.",Manitoba,Canada,Canada,Rumours,English,Comedy,2023-09-29,500000.00,248908.00,Investment,"Production Program","Amended Contract Signed 05-Jun-2023"
2023-2024,P2,"Rumours Production Inc.",Manitoba,Canada,Canada,Rumours,English,Comedy,2023-08-23,500000.00,248908.00,Advance,"Production Program","Amended Contract Signed 05-Jun-2023"
2023-2024,P2,"Salt Spring Film Festival Society","British Columbia",Canada,Canada,"2024 Salt Spring Film Festival",,,2023-07-13,10000.00,10000.00,Contribution,"Promotion Program",
2023-2024,P2,"Savath Pictures Inc.","British Columbia",Canada,Canada,"Daddy And The Big Boy",English,Comedy,2023-09-27,57857.14,57857.14,Advance,"Development Program",
2023-2024,P2,"Savath Pictures Inc.","British Columbia",Canada,Canada,"Alone In The Woods",English,Thriller,2023-09-27,67142.86,67142.86,Advance,"Development Program",
2023-2024,P2,"SC Productions Inc.",Ontario,Canada,Canada,"SECRET TALKER",English,Mystery/Crime/Police,2023-09-22,2000.00,2000.00,Contribution,"International Marketing Program",
2023-2024,P2,"SCINTILLA Cin�ma Immersif Inc.",Quebec,Canada,Canada,Tartupaluk,English,"Science fiction/Fantasy/Tale",2023-08-28,1500.00,1500.00,Contribution,"International Marketing Program",
2023-2024,P2,"Screen Nova Scotia Industry Association","Nova Scotia",Canada,Canada,"2023 Nova Scotia Content Market",,,2023-07-11,5000.00,5000.00,Contribution,"Promotion Program",
2023-2024,P2,"Shut Up & Colour Pictures Inc.","Nova Scotia",Canada,Canada,"Skite'kmujua'kik (Place of Ghosts)",English,Thriller,2023-08-30,250000.00,250000.00,Advance,"Production Program",
2023-2024,P2,"Sph�re Films inc.",Quebec,Canada,Canada,"Toupie et Binou, Le Film",French,Action/Adventure,2023-07-21,436344.00,436344.00,Advance,"Marketing Program",
2023-2024,P2,"Sph�re Films inc.",Quebec,Canada,Canada,"The Wolf and the Lion",English,Drama,2023-07-04,333900.00,550185.00,Advance,"Marketing Program","Amended Contract Signed 25-Mar-2021"
2023-2024,P2,"Sph�re Films Un Inc.",Quebec,Canada,Canada,"Le plongeur",French,Drama,2023-07-26,5000.00,5000.00,Contribution,"International Marketing Program",
2023-2024,P2,"Sph�re M�dia 1994-95 Inc.",Quebec,Canada,Canada,1994-95,French,Comedy,2023-09-26,2346560.00,2346560.00,Investment,"Production Program",
2023-2024,P2,"Sph�re M�dia Ethel Inc.",Quebec,Canada,Canada,ETHEL,English,"Historical Drama",2023-08-11,2000.00,2000.00,Contribution,"International Marketing Program",
2023-2024,P2,"Sphere Media Toronto Inc.",Ontario,Canada,Canada,"Another Country",English,Drama,2023-07-10,0.00,15000.00,Advance,"Development Program","Amended Contract Signed 26-Mar-2021"
2023-2024,P2,"Sphere Media Toronto Inc.",Ontario,Canada,Canada,Inheritance,English,Horror,2023-07-10,0.00,15000.00,Advance,"Development Program","Amended Contract Signed 26-Mar-2021"
2023-2024,P2,"Spindle Films Inc.",Ontario,Canada,Canada,"Really Happy Someday",English,Drama,2023-08-28,208050.00,208050.00,Contribution,"Production Program",
2023-2024,P2,"St Laurent TV International Inc.",Quebec,Canada,Canada,"BON MATIN CHUCK",French,Comedy,2023-09-29,15000.00,15000.00,Contribution,"International Marketing Program",
2023-2024,P2,"Stowarzyszenie Nowe Horyzonty",,Pologne,Poland,"Katak le brave b�luga",French,Action/Adventure,2023-07-25,39000.00,39000.00,Contribution,"Export Assistance Program",
2023-2024,P2,"STUDIOS H264 INC.",Quebec,Canada,Canada,"March� de coproduction - sans projet sp�cifique",French,Action/Adventure,2023-09-15,2000.00,2000.00,Contribution,"International Marketing Program",
2023-2024,P2,"STUDIOS H264 INC.",Quebec,Canada,Canada,"Vampire Humaniste cherche suicidaire consentant",French,Comedy,2023-08-04,119070.00,119070.00,Advance,"Marketing Program",
2023-2024,P2,"THE LAST VIDEO STORE ON. LTD.",Ontario,Canada,Canada,"The Last Video Store",English,Comedy,2023-08-21,5000.00,5000.00,Contribution,"International Marketing Program",
2023-2024,P2,"This Place Film Incorporated",Ontario,Canada,Canada,"This Place",English,Drama,2023-09-01,2000.00,2000.00,Contribution,"International Marketing Program",
2023-2024,P2,"Ugly Duckling Media Inc.",Ontario,Canada,Canada,"Swan Song",English,Documentary,2023-09-13,15000.00,15000.00,Contribution,"International Marketing Program",
2023-2024,P2,"Vancouver Black Film Festival",Alberta,Canada,Canada,"2023 Vancouver International Black Film Festival",,,2023-07-04,10000.00,10000.00,Contribution,"Promotion Program",
2023-2024,P2,"Vortex Media Limited",Ontario,Canada,Canada,"Golden Delicious",English,Drama,2023-08-25,48735.00,48735.00,Advance,"Marketing Program",
2023-2024,P2,"Vortex Media Limited",Ontario,Canada,Canada,"This Place",English,Drama,2023-07-12,51390.00,51390.00,Advance,"Marketing Program",
2023-2024,P2,"Vues dans la t�te de Rivi�re-du-Loup",Quebec,Canada,Canada,"Vues dans la t�te de... 2024",,,2023-07-14,10000.00,10000.00,Contribution,"Promotion Program",
2023-2024,P2,"Water Horse Productions Inc.","British Columbia",Canada,Canada,"Cry From the Sea",English,"Historical Drama",2023-08-16,1638000.00,1338000.00,Investment,"Production Program","Amended Contract Signed 30-Mar-2021"
2023-2024,P2,"Whistler Film Festival Society","British Columbia",Canada,Canada,"2024 Whistler Film Festival Producers Lab",,,2023-08-02,27000.00,27000.00,Contribution,"Promotion Program",
2023-2024,P2,"Whistler Film Festival Society","British Columbia",Canada,Canada,"2024 Whistler Film Festival Screenwriter's Lab",,,2023-08-02,13500.00,13500.00,Contribution,"Promotion Program",
2023-2024,P2,"WIFT-AT Women in Film and Television Inc.","Nova Scotia",Canada,Canada,"2024 Making Waves Conference",,,2023-07-11,7500.00,7500.00,Contribution,"Promotion Program",
2023-2024,P2,"Women In Film & Television Toronto Inc.",Ontario,Canada,Canada,"2023-2024 WIFT Connect Mentorship Program",,,2023-07-13,20000.00,20000.00,Contribution,"Promotion Program",
2023-2024,P2,"WWE Rights B.V.",,Pays-Bas,Netherlands,"The Swearing Jar",English,Musical,2023-07-26,40888.00,40888.00,Contribution,"Export Assistance Program",
2023-2024,P2,"Yzanakio Films inc.",Quebec,Canada,Canada,"Allah n'est pas oblig�",French,Drama,2023-09-13,4000.00,4000.00,Contribution,"International Marketing Program",
2023-2024,P3,"Intuitive Pictures Inc.",Montréal,Quebec,Canada,"The Mad World of Harvey Kurtzman",English,Documentary,2023-12-01,2000.00,2000.00,Contribution,"International Marketing Program",
2023-2024,P3,"Service Street Pictures Inc.",Vancouver,"British Columbia",Canada,1020,English,Drama,2023-12-18,37500.00,37500.00,Advance,"Development Program",
2023-2024,P3,"Copperheart Entertainment Inc.",Toronto,Ontario,Canada,"15 Dogs",English,Drama,2023-12-15,37500.00,37500.00,Advance,"Development Program",
2023-2024,P3,"Caribbean Tales",Toronto,Ontario,Canada,"2023 CineFAM Film Festival",0,0,2023-10-25,10000.00,10000.00,Contribution,"Promotion Program",
2023-2024,P3,"Atlantic Film Festival Association",Halifax,"Nova Scotia",Canada,"2023 FIN Kids Festival Tour",0,0,2023-11-21,25000.00,25000.00,Contribution,"Promotion Program",
2023-2024,P3,"New Brunswick Filmmakers Co-operative Limited",Fredericton,"New Brunswick",Canada,"2023 Silver Wave Film Festival",0,0,2023-10-13,5000.00,5000.00,Contribution,"Promotion Program",
2023-2024,P3,"Fondation Fabienne Colas",Montréal,Quebec,Canada,"2023-2024 Being Black in Canada",0,0,2023-12-04,95000.00,95000.00,Contribution,"Promotion Program",
2023-2024,P3,"Atlantic Film Festival Association",Halifax,"Nova Scotia",Canada,"2024 Atlantic International Film Festival",0,0,2023-10-11,157201.00,157201.00,Contribution,"Medium to Large-Scale Festivals",
2023-2024,P3,"Calgary Black Film Festival Festival du Film Black de Calgary",Calgary,Alberta,Canada,"2024 Calgary Black Film Festival",0,0,2023-12-04,10000.00,10000.00,Contribution,"Promotion Program",
2023-2024,P3,"Calgary International Film Festival Society",Calgary,Alberta,Canada,"2024 Calgary International Film Festival",0,0,2023-11-03,168983.00,168983.00,Contribution,"Medium to Large-Scale Festivals",
2023-2024,P3,"Caribbean Tales",Toronto,Ontario,Canada,"2024 CaribbeanTales Film Festival",0,0,2023-10-18,25508.00,25508.00,Contribution,"Medium to Large-Scale Festivals",
2023-2024,P3,"Cinéfest: The Sudbury Film Festival Inc.",Sudbury,Ontario,Canada,"2024 Cinefest Sudbury International Film Festival",0,0,2023-10-16,89497.00,89497.00,Contribution,"Medium to Large-Scale Festivals",
2023-2024,P3,"Comox Valley Film Society",Royston,"British Columbia",Canada,"2024 Comox Valley International Film Festival",0,0,2023-12-06,5000.00,5000.00,Contribution,"Promotion Program",
2023-2024,P3,"Edmonton International Film Festival Society",Edmonton,Alberta,Canada,"2024 Edmonton International Film Festival",0,0,2023-10-16,17729.00,17729.00,Contribution,"Medium to Large-Scale Festivals",
2023-2024,P3,"Gimli International Film Festival Inc.",Gimli,Manitoba,Canada,"2024 Gimli International Film Festival",0,0,2023-10-17,27532.00,27532.00,Contribution,"Medium to Large-Scale Festivals",
2023-2024,P3,"Hot Docs",Toronto,Ontario,Canada,"2024 Hot Docs Festival",0,0,2023-11-07,250000.00,250000.00,Contribution,"Medium to Large-Scale Festivals",
2023-2024,P3,"Hudson Festival of Canadian Film",Hudson,Quebec,Canada,"2024 Hudson Festival of Canadian Film",0,0,2023-11-29,5000.00,5000.00,Contribution,"Promotion Program",
2023-2024,P3,"Italian Contemporary Film Festival",Toronto,Ontario,Canada,"2024 ICFF - IncluCity Festival",0,0,2023-10-12,27193.00,27193.00,Contribution,"Medium to Large-Scale Festivals",
2023-2024,P3,"Northern Visions Independent Video & Film Association",Toronto,Ontario,Canada,"2024 Images Festival",0,0,2023-11-01,13349.00,13349.00,Contribution,"Medium to Large-Scale Festivals",
2023-2024,P3,"The Inside Out Lesbian and Gay Film Festival Inc.",Toronto,Ontario,Canada,"2024 Inside Out Film Festival",0,0,2023-11-23,127851.00,127851.00,Contribution,"Medium to Large-Scale Festivals",
2023-2024,P3,"Okotoks Film Festival Society",Okotoks,Alberta,Canada,"2024 Okotoks Film Festival",0,0,2023-11-29,10000.00,10000.00,Contribution,"Promotion Program",
2023-2024,P3,"Ottawa Black Film Festival - Festival du Film Black d'Ottawa",Ottawa,Ontario,Canada,"2024 Ottawa Black Film Festival",0,0,2023-10-13,10000.00,10000.00,Contribution,"Promotion Program",
2023-2024,P3,"Canadian Film Institute",Ottawa,Ontario,Canada,"2024 Ottawa International Animation Festival",0,0,2023-12-04,90155.00,90155.00,Contribution,"Medium to Large-Scale Festivals",
2023-2024,P3,"Reel to Real: A Celebration Of Moving Images For Youth Society",Vancouver,"British Columbia",Canada,"2024 Reel 2 Real International Film Festival",0,0,2023-12-06,10000.00,10000.00,Contribution,"Promotion Program",
2023-2024,P3,"CastlePoint Inc.",Edmonton,Alberta,Canada,"2024 Reel Rave International Film Festival",0,0,2023-12-04,5000.00,5000.00,Contribution,"Promotion Program",
2023-2024,P3,"Cine-Vic Society Of Independent Filmmakers",Victoria,"British Columbia",Canada,"2024 Short Circuit Pacific Rim Film Festival",0,0,2023-12-07,5000.00,5000.00,Contribution,"Medium to Large-Scale Festivals",
2023-2024,P3,"Toronto Arab Film",Toronto,Ontario,Canada,"2024 Toronto Arab Film Festival",0,0,2023-12-07,5000.00,5000.00,Contribution,"Medium to Large-Scale Festivals",
2023-2024,P3,"Greater Vancouver International Film Festival Society",Vancouver,"British Columbia",Canada,"2024 Vancouver International Film Festival",0,0,2023-10-17,250000.00,250000.00,Contribution,"Medium to Large-Scale Festivals",
2023-2024,P3,"The Vancouver Out On Screen Film and Video Society",Vancouver,"British Columbia",Canada,"2024 Vancouver Queer Film Festival",0,0,2023-10-18,94761.00,94761.00,Contribution,"Medium to Large-Scale Festivals",
2023-2024,P3,"Weengushk International Film Festival",M'Chigeeng,Ontario,Canada,"2024 Weengushk International Film Festival",0,0,2023-11-30,10000.00,10000.00,Contribution,"Medium to Large-Scale Festivals",
2023-2024,P3,"Yorkton Short Film and Video Festival Inc.",Yorkton,Saskatchewan,Canada,"2024 Yorkton Film Festival",0,0,2023-11-29,10000.00,10000.00,Contribution,"Medium to Large-Scale Festivals",
2023-2024,P3,"Caribbean Tales",Toronto,Ontario,Canada,"2024-2025 CaribbeanTales - Creators of Colour Incubator",0,0,2023-12-13,25000.00,25000.00,Contribution,"Medium to Large-Scale Festivals",
2023-2024,P3,"Canadian Film Centre",Toronto,Ontario,Canada,"2024-2025 CFC Norman Jewison Film Program",0,0,2023-12-18,175000.00,175000.00,Contribution,"Medium to Large-Scale Festivals",
2023-2024,P3,"Documentary Organization of Canada",Toronto,Ontario,Canada,"2024-2025 DOC Atlantic Breakthrough Program",0,0,2023-12-14,25000.00,25000.00,Contribution,"Medium to Large-Scale Festivals",
2023-2024,P3,"Canadian Film in the Schools",Toronto,Ontario,Canada,"2024-2025 Our Film in Our Schools & Welcome to Canada",0,0,2023-12-14,50000.00,50000.00,Contribution,"Medium to Large-Scale Festivals",
2023-2024,P3,"Newfoundland Independent Filmmakers Co-Operative","St. John's",Newfoundland/Labrador,Canada,"2024-2025 Picture Start",0,0,2023-11-17,44000.00,44000.00,Contribution,"Medium to Large-Scale Festivals",
2023-2024,P3,"Canadian Film in the Schools",Toronto,Ontario,Canada,"2024-2025 Reel Opportunities",0,0,2023-12-15,24000.00,24000.00,Contribution,"Medium to Large-Scale Festivals",
2023-2024,P3,"New Brunswick Filmmakers Co-operative Limited",Fredericton,"New Brunswick",Canada,"2024-2025 Short Film Venture Program",0,0,2023-11-28,15000.00,15000.00,Contribution,"Medium to Large-Scale Festivals",
2023-2024,P3,"Toronto International Film Festival Inc.",Toronto,Ontario,Canada,"2024-2025 TIFF Film Circuit",0,0,2023-12-18,100000.00,100000.00,Contribution,"Medium to Large-Scale Festivals",
2023-2024,P3,"Trinica Entertainment Consultants Inc.",Montréal,Quebec,Canada,"26 Knots",English,Drama,2023-10-24,17360.00,20000.00,Advance,"Medium to Large-Scale Festivals","Amended Contract Signed 30-Jan-2020"
2023-2024,P3,"1376993 B.C. Ltd.","Garden Bay","British Columbia",Canada,"500 Days in the Wild",English,Documentary,2023-11-21,350000.00,250000.00,Investment,"Medium to Large-Scale Festivals","Amended Contract Signed 10-Nov-2022"
2023-2024,P3,"Thirty-one Sixty Pictures Inc.","East York",Ontario,Canada,"90 MINS",English,Thriller,2023-11-09,95000.00,95000.00,Advance,"Medium to Large-Scale Festivals",
2023-2024,P3,"A Cree Production Inc.",Vancouver,"British Columbia",Canada,"A Cree Approach",English,Documentary,2023-12-18,150000.00,150000.00,Contribution,"Talent To Watch Program",
2023-2024,P3,"Zargara Productions Inc.",Ottawa,Ontario,Canada,"A Good Day Will Come",Other,Drama,2023-12-20,2000.00,2000.00,Contribution,"International Marketing Program",
2023-2024,P3,"Colonelle films inc.",Montréal,Quebec,Canada,"À MORT LE BIKINI!",French,Comedy,2023-12-20,2000.00,2000.00,Contribution,"International Marketing Program",
2023-2024,P3,"Buzz Film Group Inc.",Vancouver,"British Columbia",Canada,"A THOUSAND WORDS",French,"Historical Drama",2023-12-22,37500.00,37500.00,Advance,"Development Program",
2023-2024,P3,"Films Outsiders Inc. (Les)",Verdun,Quebec,Canada,"À train perdu",French,Drama,2023-11-24,75000.00,75000.00,Advance,"Development Program",
2023-2024,P3,"Afro Dynamic Films Inc.",Verdun,Quebec,Canada,"À travers toi",French,Drama,2023-12-18,37500.00,37500.00,Advance,"Development Program",
2023-2024,P3,"MAAM Productions Inc.",Ajax,Ontario,Canada,"A Tribe Called Love",English,Drama,2023-11-24,855000.00,855000.00,Investment,"Medium to Large-Scale Festivals",
2023-2024,P3,"Euclid 431 Pictures Inc.",Thornbury,Ontario,Canada,Acorn,English,Drama,2023-10-10,44800.00,44800.00,Advance,"Development Program",
2023-2024,P3,"Association des cinémas parallèles du Québec",Montréal,Quebec,Canada,"ACPQ Réseau Plus 2024-2025",0,0,2023-12-11,100000.00,100000.00,Contribution,"Promotion Program",
2023-2024,P3,"Wildling Pictures Inc.",Dundas,Ontario,Canada,Agent-A12,English,"Historical Drama",2023-10-12,52500.00,52500.00,Advance,"Development Program",
2023-2024,P3,"Eye Steel Film Inc.",Montréal,Quebec,Canada,Amateurs,English,Documentary,2023-11-01,40000.00,40000.00,Advance,"Development Program",
2023-2024,P3,"Mercury Films Inc.",Toronto,Ontario,Canada,Amplified,English,Documentary,2023-10-10,75000.00,75000.00,Advance,"Development Program",
2023-2024,P3,"Némésis Films Inc.",Montréal,Quebec,Canada,"Anna nous parlera",French,Comedy,2023-11-14,37500.00,37500.00,Advance,"Development Program",
2023-2024,P3,"Great Canadian Film Factory Inc.",Winnipeg,Manitoba,Canada,Anorgasmia,English,Drama,2023-12-07,200000.00,200000.00,Contribution,"Production Program",
2023-2024,P3,"2033161 Ontario Limited o/a Films We Like",Toronto,Ontario,Canada,ARCHANGEL,English,Drama,2023-10-30,25000.00,25000.00,Advance,"Marketing Program",
2023-2024,P3,"Les Films Opale Inc.",Montréal,Quebec,Canada,"Au revoir le bonheur",French,Comedy,2023-11-09,493882.00,351476.00,Advance,"Marketing Program","Amended Contract Signed 09-Nov-2021"
2023-2024,P3,"Voyelles Films Productions inc.",Montréal,Quebec,Canada,"Au revoir Pluton",French,Comedy,2023-12-20,150000.00,150000.00,Advance,"Production Program",
2023-2024,P3,"Couronne Nord Inc.",Montréal,Quebec,Canada,Aubade,French,Drama,2023-12-21,37500.00,37500.00,Advance,"Development Program",
2023-2024,P3,"Les Productions Oshun inc.",Laval,Quebec,Canada,Aube,French,Documentary,2023-12-18,37500.00,37500.00,Advance,"Development Program",
2023-2024,P3,"2495834 Ontario Inc.",Toronto,Ontario,Canada,"AUDIOPHILIA: ADVENTURES IN THE WORLD OF HI-FI",English,Documentary,2023-12-12,200000.00,125000.00,Investment,"Theatrical Documentary Program","Amended Contract Signed 21-Dec-2022"
2023-2024,P3,"The Crip Trip Inc.",Edmonton,Alberta,Canada,"Autonomy & Dignity",English,Documentary,2023-12-19,150000.00,150000.00,Contribution,"Talent To Watch Program",
2023-2024,P3,"Sphere Media Toronto Inc.",Toronto,Ontario,Canada,"Ayesha at Last",English,"Romantic Comedy",2023-12-20,37500.00,37500.00,Advance,"Development Program",
2023-2024,P3,"Peep Media Inc.",Dartmouth,"Nova Scotia",Canada,Baby,English,Drama,2023-12-15,27000.00,27000.00,Advance,"Development Program",
2023-2024,P3,"Back Home Productions Inc.",Vancouver,"British Columbia",Canada,"back home",English,Documentary,2023-12-18,2000.00,2000.00,Contribution,"International Marketing Program",
2023-2024,P3,"Slykid inc.",Montréal,Quebec,Canada,"Bad Beauty",English,Horror,2023-12-18,37490.00,37490.00,Advance,"Development Program",
2023-2024,P3,"Violator Films Inc.",Vancouver,"British Columbia",Canada,"Bad Bitches",English,Drama,2023-11-09,37500.00,37500.00,Advance,"Development Program",
2023-2024,P3,"Chronicle Pictures Incorporated",Halifax,"Nova Scotia",Canada,"Bagpipes and Bodychecks (She Shoots, She Scores)",English,Drama,2023-11-08,37500.00,37500.00,Advance,"Development Program",
2023-2024,P3,"Conquering Lion Pictures Inc.",Toronto,Ontario,Canada,"Behind You",English,Drama,2023-12-15,37500.00,37500.00,Advance,"Development Program",
2023-2024,P3,"BOAF FILMS EFF INC.","New Westminster","British Columbia",Canada,"Birth Of A Family",English,Drama,2023-10-17,1416616.00,1416616.00,Investment,"Production Program",
2023-2024,P3,"BOAF FILMS EFF INC.","New Westminster","British Columbia",Canada,"Birth Of A Family",English,Drama,2023-10-19,0.00,208384.00,Advance,"Production Program","Amended Contract Signed 22-Aug-2023"
2023-2024,P3,"BOAF FILMS EFF INC.","New Westminster","British Columbia",Canada,"Birth Of A Family",English,Drama,2023-10-19,208384.00,208384.00,Investment,"Production Program","Amended Contract Signed 22-Aug-2023"
2023-2024,P3,"Urbansoul Inc.",Toronto,Ontario,Canada,"Black Magic",English,Horror,2023-10-13,35000.00,35000.00,Advance,"Development Program",
2023-2024,P3,"Black Zombie Productions Inc.",Toronto,Ontario,Canada,"BLACK ZOMBIE",English,Documentary,2023-11-17,114294.00,114294.00,Investment,"Theatrical Documentary Program",
2023-2024,P3,"Another World Entertainment Norway AS",Oslo,,Norway,BlackBerry,English,Drama,2023-10-23,2967.00,2967.00,Contribution,"Export Assistance Program",
2023-2024,P3,"Microscope Inc.",Montréal,Quebec,Canada,"BONNE RETRAITE, JOCELYNE",French,Comedy,2023-12-05,25500.00,25500.00,Advance,"Development Program",
2023-2024,P3,"Buffalo Gal Pictures Inc.",Winnipeg,Manitoba,Canada,"Boob Job",English,Comedy,2023-11-07,45000.00,45000.00,Advance,"Development Program",
2023-2024,P3,"Item 7 Inc.",Montréal,Quebec,Canada,Bornéo,French,Drama,2023-11-03,65000.00,65000.00,Advance,"Development Program",
2023-2024,P3,"Shining Trauma Pictures Inc",Toronto,Ontario,Canada,"Boys of Sin",English,Drama,2023-12-12,37500.00,37500.00,Advance,"Development Program",
2023-2024,P3,"Buffy Documentary Productions Manitoba Inc.",Winnipeg,Manitoba,Canada,"Buffy Sainte-Marie: Carry It On",English,Documentary,2023-12-04,2500.00,2500.00,Contribution,"International Marketing Program",
2023-2024,P3,"White Pine Pictures Inc.",Toronto,Ontario,Canada,"Buffy Sainte-Marie: Carry It On",English,Documentary,2023-12-13,2500.00,2500.00,Contribution,"International Marketing Program",
2023-2024,P3,"Gold Star Productions Inc.","West Vancouver","British Columbia",Canada,"Caleb Tanner",English,Western,2023-12-18,70000.00,70000.00,Advance,"Development Program",
2023-2024,P3,"Experimental Forest Films Inc.","New Westminster","British Columbia",Canada,Canyon,English,Drama,2023-12-13,37500.00,37500.00,Advance,"Development Program",
2023-2024,P3,"Film Celestine inc.",Montreal,Quebec,Canada,Celestine,English,Drama,2023-11-20,750000.00,700000.00,Contribution,"Production Program","Amended Contract Signed 17-Feb-2022"
2023-2024,P3,"Terre Innue Productions (IV) inc.",Wendake,Quebec,Canada,"Ces liens que nous ne voyons pas",French,Documentary,2023-10-27,275000.00,275000.00,Contribution,"Theatrical Documentary Program",
2023-2024,P3,"EMA FILMS INC.",Montréal,Quebec,Canada,"CHAIR OBSCURE",French,"Science fiction/Fantasy/Tale",2023-12-11,25000.00,25000.00,Advance,"Development Program",
2023-2024,P3,"Rezolution Pictures International Inc.",Outremont,Quebec,Canada,"Chasing Destiny",English,Drama,2023-12-22,37500.00,37500.00,Advance,"Development Program",
2023-2024,P3,"Farpoint Films Inc.",Winnipeg,Manitoba,Canada,"Children Of A Reckless God",English,Thriller,2023-12-18,37500.00,37500.00,Advance,"Development Program",
2023-2024,P3,"Les Productions des Films de l'Autre Inc.",Montréal,Quebec,Canada,"Chroniques d'une quarantaine",French,Comedy,2023-12-22,37500.00,37500.00,Advance,"Development Program",
2023-2024,P3,"Production Jaxa Inc.",Montréal,Quebec,Canada,"Cibles Rouges",French,Documentary,2023-11-02,1500.00,1500.00,Contribution,"International Marketing Program",
2023-2024,P3,Paraloeil,Rimouski,Quebec,Canada,"Cinéma Paraloeil - Du cinéma qui nous regarde 2024-2025",0,0,2023-12-13,8140.00,8140.00,Contribution,"Promotion Program",
2023-2024,P3,"CUT/OFF/TAIL Pictures Inc.","West Pennant","Nova Scotia",Canada,Cloven,English,Thriller,2023-11-28,25000.00,25000.00,Advance,"Development Program",
2023-2024,P3,"CUT/OFF/TAIL Pictures Inc.","West Pennant","Nova Scotia",Canada,"Colour of the Snake's Eye",English,Horror,2023-11-28,15000.00,15000.00,Advance,"Development Program",
2023-2024,P3,"Les Moyens de Production Ltée.",Montreal,Quebec,Canada,"COMMENT FAIRE DES CORNICHONS",French,Mystery/Crime/Police,2023-11-03,37500.00,37500.00,Advance,"Development Program",
2023-2024,P3,"feux follets productions inc.",Montréal,Quebec,Canada,"Con Nhang I Enfants d'encens (aka Bàc Quang)",French,Documentary,2023-12-22,150000.00,150000.00,Contribution,"Talent To Watch Program",
2023-2024,P3,"Bêtes Lumineuses administration inc.",Montréal,Quebec,Canada,"Confession d'un arabe hétérosexuel",French,Drama,2023-12-12,37500.00,37500.00,Advance,"Development Program",
2023-2024,P3,"Landslide Entertainment Inc.",Regina,Saskatchewan,Canada,Cosplayers,English,Comedy,2023-12-13,37500.00,37500.00,Advance,"Development Program",
2023-2024,P3,"Lyla Films Inc.",Montréal,Quebec,Canada,"Cours toujours",French,Drama,2023-10-13,37500.00,37500.00,Advance,"Development Program",
2023-2024,P3,"Band With Pictures Film Inc. / Les Films Band With Pictures Inc.",Montréal,Quebec,Canada,"Dead of Night",English,Thriller,2023-11-02,37500.00,37500.00,Advance,"Development Program",
2023-2024,P3,"CarpeDiem Film & TV Inc.",Montréal,Quebec,Canada,"Débridés (aka L'Écurie en folie) / Unstable",English,Comedy,2023-10-11,75000.00,75000.00,Advance,"Development Program",
2023-2024,P3,"Cinémaginaire Inc.",Montréal,Quebec,Canada,"Denys Arcand - documentaire",French,Documentary,2023-11-23,28250.00,28250.00,Advance,"Development Program",
2023-2024,P3,"9500-4750 Québec Inc.",Montréal,Quebec,Canada,"Deux femmes en or",French,Comedy,2023-11-28,1225000.00,1225000.00,Investment,"Production Program",
2023-2024,P3,"Maison du Bonheur Films Inc.",Toronto,Ontario,Canada,"Development Phase",English,Comedy,2023-12-15,37500.00,37500.00,Advance,"Development Program",
2023-2024,P3,"Reign Films Inc.",Vancouver,"British Columbia",Canada,Dolores,English,Drama,2023-12-21,37500.00,37500.00,Advance,"Development Program",
2023-2024,P3,"Silène films inc.",Québec,Quebec,Canada,"Donc, Socrate est mortel",French,Drama,2023-11-03,2000.00,2000.00,Contribution,"International Marketing Program",
2023-2024,P3,"Orange Médias Inc.",Rosemère,Quebec,Canada,"DOUBLE TROUBLE",English,Comedy,2023-10-03,37500.00,37500.00,Advance,"Development Program",
2023-2024,P3,"9219-3010 Québec Inc.",Montréal,Quebec,Canada,"Douce Prière",French,Drama,2023-11-27,25000.00,25000.00,Advance,"Development Program",
2023-2024,P3,"Drive Back Home Productions Inc.",Toronto,Ontario,Canada,"Drive Back Home",English,Drama,2023-11-15,840000.00,740000.00,Investment,"Production Program","Amended Contract Signed 23-Nov-2022"
2023-2024,P3,"Films Portage inc.",Montreal,Quebec,Canada,"Duty of Care",English,Documentary,2023-12-13,37500.00,37500.00,Advance,"Development Program",
2023-2024,P3,"Films du Boulevard Inc.",Montréal,Quebec,Canada,Écho,French,Thriller,2023-11-22,37500.00,37500.00,Advance,"Development Program",
2023-2024,P3,"H Is For Productions Inc.",Picton,Ontario,Canada,ECLIPSE,English,Drama,2023-12-13,37500.00,37500.00,Advance,"Development Program",
2023-2024,P3,"El Padrote film Inc.",Montréal,Quebec,Canada,"El Padrote",Other,Drama,2023-12-21,250000.00,250000.00,Contribution,"Talent To Watch Program",
2023-2024,P3,"1000690702 ONTARIO INC.",Toronto,Ontario,Canada,"Ending It All",English,Documentary,2023-12-11,240000.00,240000.00,Investment,"Theatrical Documentary Program",
2023-2024,P3,"Elevation Pictures Productions Corp.",Toronto,Ontario,Canada,"Ends of the Earth",English,Drama,2023-11-24,35000.00,35000.00,Advance,"Development Program",
2023-2024,P3,"Les Productions Provado Inc.",Montréal,Quebec,Canada,"Épreuve d'amour",French,Drama,2023-12-20,34300.00,34300.00,Advance,"Development Program",
2023-2024,P3,"Aimer Films Inc.","New Westminster","British Columbia",Canada,"ERROR 404",Other,Mystery/Crime/Police,2023-12-19,30000.00,30000.00,Advance,"Development Program",
2023-2024,P3,"K.O. 24 Inc.",Longueuil,Quebec,Canada,"Et si on se quittait",French,"Romantic Comedy",2023-11-24,50000.00,50000.00,Advance,"Development Program",
2023-2024,P3,"Eye Steel Film Inc.",Montréal,Quebec,Canada,"Exit the Dragon",English,Documentary,2023-11-01,35000.00,35000.00,Advance,"Development Program",
2023-2024,P3,"136469 Canada Limited o/a Sphinx Productions",Toronto,Ontario,Canada,"Extinction Dance",English,Documentary,2023-10-23,37500.00,37500.00,Advance,"Development Program",
2023-2024,P3,"Honalee Productions Inc.",Vancouver,"British Columbia",Canada,"False Eyelashes",English,Horror,2023-11-21,50000.00,50000.00,Advance,"Development Program",
2023-2024,P3,"Festival cinéma du monde de Sherbrooke",Sherbrooke,Quebec,Canada,"Festival cinéma du monde de Sherbrooke 2024",0,0,2023-10-11,46287.00,46287.00,Contribution,"Medium to Large-Scale Festivals",
2023-2024,P3,"Productions Welcome Aboard",Montréal,Quebec,Canada,"Festival Courts d'un soir 2024",0,0,2023-12-08,10000.00,10000.00,Contribution,"Promotion Program",
2023-2024,P3,"Festival de Cinéma de la Ville de Québec",Québec,Quebec,Canada,"Festival de cinéma de la Ville de Québec 2024",0,0,2023-10-11,92787.00,92787.00,Contribution,"Medium to Large-Scale Festivals",
2023-2024,P3,"Rendez-vous culturels de Saint-Casimir",Saint-Casimir,Quebec,Canada,"Festival de films pour l'environnement 2024",0,0,2023-12-07,10000.00,10000.00,Contribution,"Promotion Program",
2023-2024,P3,"Festival du film de Saint-Séverin","Saint-Séverin de Beauce",Quebec,Canada,"Festival du film du Saint-Séverin (Festifilm de la Beauce) 2024",0,0,2023-11-30,10000.00,10000.00,Contribution,"Promotion Program",
2023-2024,P3,"Association du Cinéma Québécois Émergent",Montréal,Quebec,Canada,"Festival Émergence de Montréal 2024",0,0,2023-12-07,5000.00,5000.00,Contribution,"Promotion Program",
2023-2024,P3,"Festival Fantasia",Montréal,Quebec,Canada,"Festival Fantasia 2024",0,0,2023-10-12,215337.00,215337.00,Contribution,"Medium to Large-Scale Festivals",
2023-2024,P3,"Les Percéides, Festival international de cinéma et d'art de Percé",Perce,Quebec,Canada,"Festival international de cinéma et d'art Les Percéides 2024",0,0,2023-10-13,11077.00,11077.00,Contribution,"Medium to Large-Scale Festivals",
2023-2024,P3,"Vues d'Afrique",Montréal,Quebec,Canada,"Festival international de cinéma Vues d'Afrique 2024",0,0,2023-10-11,49593.00,49593.00,Contribution,"Medium to Large-Scale Festivals",
2023-2024,P3,"Festival international du film ethnographique du Québec - Ville de Montréal",Montréal,Quebec,Canada,"Festival international du film ethnographique du Québec 2024",0,0,2023-12-14,5000.00,5000.00,Contribution,"Promotion Program",
2023-2024,P3,"Terres en vues / Société pour la diffusion de la culture autochtone",Montréal,Quebec,Canada,"Festival international Présence autochtone 2024",0,0,2023-12-13,15000.00,15000.00,Contribution,"Promotion Program",
2023-2024,P3,"Le Cinélune de Gaspé Inc.",Gaspé,Quebec,Canada,"Festival Vues sur mer 2024",0,0,2023-12-07,10000.00,10000.00,Contribution,"Promotion Program",
2023-2024,P3,"Festival de films d'auteurs de Val-Morin",Val-Morin,Quebec,Canada,"FFAVM 2024",0,0,2023-12-01,5000.00,5000.00,Contribution,"Promotion Program",
2023-2024,P3,"Vieille Amérique Inc.",Montréal,Quebec,Canada,"Filles publiques",French,Action/Adventure,2023-10-03,60000.00,60000.00,Advance,"Development Program",
2023-2024,P3,"Saffron Blonde Productions Ltd.","North Vancouver","British Columbia",Canada,Foreigner,English,Horror,2023-12-15,250000.00,250000.00,Contribution,"Talent To Watch Program",
2023-2024,P3,"Aircraft Pictures Limited",Toronto,Ontario,Canada,"Forever Halloween",English,"Science fiction/Fantasy/Tale",2023-12-20,15000.00,15000.00,Advance,"Development Program",
2023-2024,P3,"Coalition M.É.D.I.A",Montréal,Quebec,Canada,"Formation entrepreneuriale M.É.D.I.A. 2024",0,0,2023-12-19,25000.00,25000.00,Contribution,"Promotion Program",
2023-2024,P3,"Vues d'Afrique",Montréal,Quebec,Canada,"Formation producteurs destinée aux professionnels émergents 2023",0,0,2023-11-21,5000.00,5000.00,Contribution,"Promotion Program",
2023-2024,P3,"January Films Ltd.",Toronto,Ontario,Canada,"FORTY YEARS",English,Drama,2023-12-13,37500.00,37500.00,Advance,"Development Program",
2023-2024,P3,"Productions l'unité centrale inc.",Montréal,Quebec,Canada,Fossiles,French,Drama,2023-12-11,32000.00,32000.00,Advance,"Development Program",
2023-2024,P3,"Voyelles Films Productions inc.",Montréal,Quebec,Canada,"Françoise, 17 ans, orpheline et héritière",French,Drama,2023-12-20,30000.00,30000.00,Advance,"Development Program",
2023-2024,P3,"EMA FILMS INC.",Montréal,Quebec,Canada,"Frankenstein de Bergerac",French,Horror,2023-12-11,30000.00,30000.00,Advance,"Development Program",
2023-2024,P3,"Association coopérative de productions audio-visuelles",Montréal,Quebec,Canada,"FRED ET LUCE",French,Drama,2023-11-21,35718.00,35718.00,Advance,"Development Program",
2023-2024,P3,"Echo Media Inc.",Montréal,Quebec,Canada,FURIES,French,Comedy,2023-12-08,37500.00,37500.00,Advance,"Development Program",
2023-2024,P3,Kino'00,Montréal,Quebec,Canada,"Gala Kino 2024",0,0,2023-12-18,5000.00,5000.00,Contribution,"Promotion Program",
2023-2024,P3,"EMA FILMS INC.",Montréal,Quebec,Canada,GÉANTES,French,"Historical Drama",2023-12-11,30000.00,30000.00,Advance,"Development Program",
2023-2024,P3,"Media Plaster Productions Inc.","North Vancouver","British Columbia",Canada,"Ghost Fair",English,Horror,2023-12-19,15000.00,15000.00,Advance,"Development Program",
2023-2024,P3,"Motion 58 Entertainment Inc.",Vancouver,"British Columbia",Canada,"Ghost Thriller",English,Drama,2023-10-11,75000.00,75000.00,Advance,"Development Program",
2023-2024,P3,"AMF Productions Inc.",Vancouver,"British Columbia",Canada,"GIFT HORSE",English,"Science fiction/Fantasy/Tale",2023-10-11,25000.00,25000.00,Advance,"Development Program",
2023-2024,P3,"Rebel Labs Inc. / Labs Rebelles inc.",Montreal,Quebec,Canada,"Giselle et Max",French,Comedy,2023-11-09,30000.00,30000.00,Advance,"Development Program",
2023-2024,P3,"Iylond Entertainment Inc.",Okotoks,Alberta,Canada,Glorified,English,Drama,2023-12-19,30000.00,30000.00,Advance,"Development Program",
2023-2024,P3,"Corporation Les films Média Star Inc.",Boucherville,Quebec,Canada,"GO, ZACH G0 !",French,Drama,2023-12-13,36000.00,36000.00,Advance,"Development Program",
2023-2024,P3,"6909060 Canada Inc.",Montréal,Quebec,Canada,Goliath,English,Drama,2023-11-03,34500.00,34500.00,Advance,"Development Program",
2023-2024,P3,"First Take Entertainment Ltd.",Oakville,Ontario,Canada,"Grand Theft Wedding",English,Comedy,2023-10-23,75000.00,75000.00,Advance,"Development Program",
2023-2024,P3,"WTSF Films Inc.",Vancouver,"British Columbia",Canada,"GRANDMA'S GOT A GUN",English,Comedy,2023-10-12,37500.00,37500.00,Advance,"Development Program",
2023-2024,P3,"Wire Walker Studios Canada",Lachine,Quebec,Canada,"Gurdeep of the Yukon",English,Drama,2023-12-08,125000.00,125000.00,Advance,"Development Program",
2023-2024,P3,"Christal Films Productions Inc.",Montréal,Quebec,Canada,"Guy Lafleur",French,Drama,2023-11-22,71000.00,71000.00,Advance,"Development Program",
2023-2024,P3,"Six Island Productions Inc.",Toronto,Ontario,Canada,Hag,English,Horror,2023-12-20,24660.00,24660.00,Advance,"Development Program",
2023-2024,P3,"Resonance Films Inc.",Vancouver,"British Columbia",Canada,"HAL & CHARLIE, 1963",English,Drama,2023-12-19,550000.00,550000.00,Investment,"Production Program",
2023-2024,P3,"Snail Mail Media Inc.",Vaughan,Ontario,Canada,"Halfway Boy",English,Drama,2023-12-13,21500.00,21500.00,Advance,"Development Program",
2023-2024,P3,"Mongrel Media Inc.",Toronto,Ontario,Canada,"Hands That Bind",English,Drama,2023-12-11,16650.00,16650.00,Advance,"Marketing Program",
2023-2024,P3,"Hangashore Films, Inc.","PETTY HARBOUR",Newfoundland/Labrador,Canada,"Hangashore (Ainniseoir)",English,Thriller,2023-12-20,400000.00,400000.00,Investment,"Production Program",
2023-2024,P3,"Aircraft Pictures Limited",Toronto,Ontario,Canada,"Haroun and the Sea of Stories",English,Drama,2023-12-20,60000.00,60000.00,Advance,"Development Program",
2023-2024,P3,"Canesugar Filmworks Inc.",Toronto,Ontario,Canada,"Hawk Killer",English,Thriller,2023-10-12,23208.00,23208.00,Advance,"Development Program",
2023-2024,P3,"First Generation Films Inc.",Toronto,Ontario,Canada,"Heather of the Valley",English,Comedy,2023-12-06,47000.00,47000.00,Advance,"Development Program",
2023-2024,P3,"Baby Daal Productions Inc.",Toronto,Ontario,Canada,Heirloom,English,Comedy,2023-12-18,37500.00,37500.00,Advance,"Development Program",
2023-2024,P3,"Serendipity Point Films Inc.",Toronto,Ontario,Canada,Hellbus,English,Horror,2023-11-14,25000.00,25000.00,Advance,"Development Program",
2023-2024,P3,"Femme Flannel Films Inc.",Toronto,Ontario,Canada,"Her Last Supper",English,Drama,2023-12-18,250000.00,250000.00,Contribution,"Talent To Watch Program",
2023-2024,P3,"Productions Caramel Film Inc.",Montréal,Quebec,Canada,"Histoire d'amour - Métis",French,Drama,2023-12-20,33953.00,33953.00,Advance,"Development Program",
2023-2024,P3,"Productions 10e Ave Inc.",Saint-Augustin-de-Desmaures,Quebec,Canada,"Histoire de fous",French,Action/Adventure,2023-11-14,110000.00,110000.00,Advance,"Development Program",
2023-2024,P3,"The Kolasky Company Inc.",Toronto,Ontario,Canada,"History of the New World",English,"Science fiction/Fantasy/Tale",2023-12-15,23487.10,23487.10,Advance,"Development Program",
2023-2024,P3,"Clement Virgo Productions Inc.",Toronto,Ontario,Canada,"How Black Mothers Say I Love You",English,Drama,2023-10-03,0.00,18000.00,Advance,"Development Program","Amended Contract Signed 03-Mar-2021"
2023-2024,P3,"Item 7 Inc.",Montréal,Quebec,Canada,"Humans and Elephants",English,Drama,2023-11-03,30000.00,30000.00,Advance,"Development Program",
2023-2024,P3,"Plausible Communications Corporation",Toronto,Ontario,Canada,"Hype Machine",English,Drama,2023-10-25,125000.00,125000.00,Advance,"Development Program",
2023-2024,P3,"ILMMD The Film Inc.",Hamilton,Ontario,Canada,"I Let My Mother Drown",English,Drama,2023-12-20,37500.00,37500.00,Advance,"Development Program",
2023-2024,P3,"Never Forget Films Inc.","St. John's",Newfoundland/Labrador,Canada,"I Will Not Forget You (Working Title)",English,Documentary,2023-11-28,300000.00,300000.00,Contribution,"Theatrical Documentary Program",
2023-2024,P3,"K.O. 24 Inc.",Longueuil,Quebec,Canada,"Ils finiront bien par t'avoir",French,Horror,2023-11-24,50000.00,50000.00,Advance,"Development Program",
2023-2024,P3,"Zygote Pictures Inc.",Toronto,Ontario,Canada,"In A Violent Nature",English,Horror,2023-11-30,25000.00,25000.00,Contribution,"International Marketing Program",
2023-2024,P3,"CityLights Media Inc.",Mississauga,Ontario,Canada,"IN FLAMES",English,Horror,2023-11-03,50000.00,50000.00,Contribution,"International Marketing Program",
2023-2024,P3,"CityLights Media Inc.",Mississauga,Ontario,Canada,"IN FLAMES",English,Horror,2023-12-11,1500.00,1500.00,Contribution,"International Marketing Program",
2023-2024,P3,"Little Bear Big Wolf Pictures Corp.",Toronto,Ontario,Canada,"In the Shadow of the Valley",English,Drama,2023-12-18,37500.00,37500.00,Advance,"Development Program",
2023-2024,P3,"Neon Rated, LLC","New York","New York","United States","Infinity Pool",English,Horror,2023-10-24,45000.00,45000.00,Contribution,"Export Assistance Program",
2023-2024,P3,"Corporation Wapikoni Mobile",Montréal,Quebec,Canada,"Initiatives du Wapikoni 2024-2025",0,0,2023-12-18,50000.00,50000.00,Contribution,"Promotion Program",
2023-2024,P3,"Les films Cosmos inc./Cosmos films inc.",Montréal,Quebec,Canada,Intercepted,Other,Documentary,2023-10-18,135000.00,135000.00,Contribution,"Theatrical Documentary Program",
2023-2024,P3,"DM FILMS INC.",Toronto,Ontario,Canada,Interlopers,English,"Science fiction/Fantasy/Tale",2023-11-22,62500.00,62500.00,Advance,"Development Program",
2023-2024,P3,"Canadian Filmmakers Distribution Centre (CFMDC)",Toronto,Ontario,Canada,Intersextion,English,Musical,2023-10-19,2000.00,2000.00,Contribution,"International Marketing Program",
2023-2024,P3,"Les Films du Récif Inc.",Montreal,Quebec,Canada,INVISIBLES,French,Drama,2023-11-10,250000.00,250000.00,Contribution,"Talent To Watch Program",
2023-2024,P3,Paraloeil,Rimouski,Quebec,Canada,Jacques,French,Documentary,2023-12-20,15000.00,15000.00,Advance,"Marketing Program",
2023-2024,P3,"Félix & Paul Studios Inc.",Montréal,Quebec,Canada,"Jim Henson's The Storyteller : The Seven Ravens",English,Action/Adventure,2023-10-25,5000.00,5000.00,Contribution,"International Marketing Program",
2023-2024,P3,"White Lelou Media Inc.",Bedford,"Nova Scotia",Canada,"Joan's Kitchen Table: Stirring The Revolution",English,Documentary,2023-12-21,150000.00,150000.00,Contribution,"Talent To Watch Program",
2023-2024,P3,"Couzin Films Inc.",Montréal,Quebec,Canada,"Journée blanche (aka Après ski)",French,Comedy,2023-11-24,37500.00,37500.00,Advance,"Development Program",
2023-2024,P3,"Arcana Studio Inc.",Burnaby,"British Columbia",Canada,"Kade: Land of the Rising Sun",English,Action/Adventure,2023-11-27,2000.00,2000.00,Contribution,"International Marketing Program",
2023-2024,P3,"White Pine Pictures Inc.",Toronto,Ontario,Canada,"Karina versus the World",English,Documentary,2023-11-15,25000.00,25000.00,Advance,"Development Program",
2023-2024,P3,"Périphéria Films Inc",Montréal,Quebec,Canada,"Kidnapping Inc. (a.k.a. Kidnapping S.A.)",French,Comedy,2023-11-24,25000.00,25000.00,Contribution,"International Marketing Program",
2023-2024,P3,"Genco Pictures Inc.",Toronto,Ontario,Canada,"Kill Me Now",English,Drama,2023-11-28,137200.00,137200.00,Advance,"Production Program",
2023-2024,P3,"Les Films de L'Isle Inc.",Montréal,Quebec,Canada,"Kilomètre Zéro",French,Drama,2023-12-21,35000.00,35000.00,Advance,"Development Program",
2023-2024,P3,"Let's Get The Grail Productions Inc.",Vancouver,"British Columbia",Canada,"King Arthur's Night",English,Documentary,2023-10-10,159405.00,159405.00,Investment,"Theatrical Documentary Program",
2023-2024,P3,"Urbansoul Inc.",Toronto,Ontario,Canada,KINGDOM,English,Thriller,2023-10-13,40000.00,40000.00,Advance,"Development Program",
2023-2024,P3,Kino'00,Montréal,Quebec,Canada,"Kino Mentorat 2024",0,0,2023-12-18,8000.00,8000.00,Contribution,"Promotion Program",
2023-2024,P3,"Buffalo Gal Pictures Inc.",Winnipeg,Manitoba,Canada,Koshetz,English,"Historical Drama",2023-11-07,15000.00,15000.00,Advance,"Development Program",
2023-2024,P3,"XSKY production inc.",Montreal,Quebec,Canada,KUBANA,English,Documentary,2023-12-15,149102.00,149102.00,Contribution,"Talent To Watch Program",
2023-2024,P3,"9249-7189 Québec inc.",Montréal,Quebec,Canada,"La bataille de Saint-Léonard",French,Documentary,2023-11-03,100000.00,100000.00,Contribution,"Theatrical Documentary Program",
2023-2024,P3,"Possibles Média inc.",Montréal,Quebec,Canada,"La campagne",French,Drama,2023-11-07,37500.00,37500.00,Advance,"Development Program",
2023-2024,P3,"Christal Films Productions Inc.",Montréal,Quebec,Canada,"La dernière sœur",French,Drama,2023-11-22,54000.00,54000.00,Advance,"Development Program",
2023-2024,P3,"Metafilms Inc.",Montréal,Quebec,Canada,"La Garde Blanche",French,Documentary,2023-10-04,5000.00,5000.00,Contribution,"International Marketing Program",
2023-2024,P3,"Colonelle films inc.",Montréal,Quebec,Canada,"La grande fugue",French,Drama,2023-11-09,37500.00,37500.00,Advance,"Development Program",
2023-2024,P3,"Les productions Carpediem (BT) Inc.",Outremont,Quebec,Canada,"La légende du papillon / Butterfly Tale",French,Comedy,2023-11-24,2000.00,2000.00,Contribution,"International Marketing Program",
2023-2024,P3,"Vortex Media Limited",Toronto,Ontario,Canada,"La légende du papillon / Butterfly Tale",French,Comedy,2023-12-05,149625.00,149625.00,Advance,"Marketing Program",
2023-2024,P3,"9219-3010 Québec Inc.",Montréal,Quebec,Canada,"La mère du facteur",French,Thriller,2023-11-27,15000.00,15000.00,Advance,"Development Program",
2023-2024,P3,"KaFé Productions Inc.",Toronto,Ontario,Canada,"LA MULE",French,Drama,2023-12-14,37500.00,37500.00,Advance,"Development Program",
2023-2024,P3,"Lulo Films Inc.",Toronto,Ontario,Canada,Labranza,English,Drama,2023-12-22,25000.00,25000.00,Advance,"Development Program",
2023-2024,P3,"K.O. 24 Inc.",Longueuil,Quebec,Canada,"Lac Adélard",French,Thriller,2023-11-24,25000.00,25000.00,Advance,"Development Program",
2023-2024,P3,"696263 NB Inc.",Moncton,"New Brunswick",Canada,"Lac au cheval",French,Drama,2023-11-07,37500.00,37500.00,Advance,"Development Program",
2023-2024,P3,"Films Séville Inc. (Les)",Montréal,Quebec,Canada,"L'arracheuse de temps",French,"Science fiction/Fantasy/Tale",2023-12-05,309690.00,328620.00,Advance,"Marketing Program","Amended Contract Signed 01-Oct-2021"
2023-2024,P3,"Majika Pictures Inc.",Saint-Lambert,Quebec,Canada,"Last Resort",Other,Comedy,2023-12-13,37500.00,37500.00,Advance,"Development Program",
2023-2024,P3,"2551028 ALBERTA LIMITED (DBA Last Stop Videos)",Morinville,Alberta,Canada,"Last Stop Video Rentals",English,Comedy,2023-12-15,245525.00,245525.00,Contribution,"Talent To Watch Program",
2023-2024,P3,"Wildling Pictures Inc.",Dundas,Ontario,Canada,"Laura Dean Keeps Breaking Up with Me",English,Drama,2023-10-12,15850.14,15850.14,Advance,"Development Program",
2023-2024,P3,"franc doc films (bis) inc.",Saint-Alexandre,Quebec,Canada,L'aventurine,French,Documentary,2023-12-19,15000.00,15000.00,Advance,"Development Program",
2023-2024,P3,"Azimut Films Inc.",Saint-Bruno-de-Montarville,Quebec,Canada,"Le Boulevard",French,Drama,2023-11-22,37500.00,37500.00,Advance,"Development Program",
2023-2024,P3,"Productions Douanière inc.",Montréal,Quebec,Canada,"Le chef et la douanière",French,Comedy,2023-10-26,2600000.00,1900373.00,Advance,"Production Program","Amended Contract Signed 14-Mar-2023"
2023-2024,P3,"Microscope Inc.",Montréal,Quebec,Canada,"LE DERNIER RÉFÉRENDUM",French,Comedy,2023-12-05,23500.00,23500.00,Advance,"Development Program",
2023-2024,P3,"La Fête Content & Concept Inc.",Frelighsburg,Quebec,Canada,"Le petit astronaute",French,Drama,2023-12-12,37500.00,37500.00,Advance,"Development Program",
2023-2024,P3,"Kavalo Productions Inc.",Ridgeway,Ontario,Canada,"Le petit prince de l'Atlas",French,"Science fiction/Fantasy/Tale",2023-12-18,37500.00,37500.00,Advance,"Development Program",
2023-2024,P3,"Les Films Alice Pierrette Inc.",Montreal,Quebec,Canada,"Le Pont Qui Mène Là",French,Documentary,2023-12-22,36000.00,36000.00,Advance,"Development Program",
2023-2024,P3,"Microscope Inc.",Montréal,Quebec,Canada,"Le printemps sauvage",French,Comedy,2023-12-05,42000.00,42000.00,Advance,"Development Program",
2023-2024,P3,"Manito Média Inc.",Winnipeg,Manitoba,Canada,"Le profil d'Elsa",French,"Romantic Comedy",2023-12-13,19838.00,19838.00,Advance,"Development Program",
2023-2024,P3,"Entract Films Inc.",Montréal,Quebec,Canada,"LE SUCCESSEUR",French,Drama,2023-12-20,115000.00,115000.00,Advance,"Marketing Program",
2023-2024,P3,"9207-6256 Québec Inc.",Montréal,Quebec,Canada,"Le temps",French,Drama,2023-11-06,60000.00,60000.00,Contribution,"Production Program",
2023-2024,P3,"OBJECTIF 9 INC.",Montréal,Quebec,Canada,"Le Vet",French,Comedy,2023-12-22,37500.00,37500.00,Advance,"Development Program",
2023-2024,P3,"CUT/OFF/TAIL Pictures Inc.","West Pennant","Nova Scotia",Canada,"Leave Your Body",English,Horror,2023-11-28,15000.00,15000.00,Advance,"Development Program",
2023-2024,P3,"A Missing Peace Productions Inc.",Toronto,Ontario,Canada,"Leilani's Fortune",English,Documentary,2023-12-11,2000.00,2000.00,Contribution,"International Marketing Program",
2023-2024,P3,"Lux Films Inc.",Morin-Heights,Quebec,Canada,Lenz,French,Drama,2023-12-18,37500.00,37500.00,Advance,"Development Program",
2023-2024,P3,"Productions Avenida inc.",Montréal,Quebec,Canada,"Les bienveillants",French,Drama,2023-10-27,37500.00,37500.00,Advance,"Development Program",
2023-2024,P3,"Némésis Films Inc.",Montréal,Quebec,Canada,"Les chambres rouges",French,Thriller,2023-11-23,2000.00,2000.00,Contribution,"International Marketing Program",
2023-2024,P3,"Microscope Inc.",Montréal,Quebec,Canada,"Les enfants du large",French,Documentary,2023-10-17,2000.00,2000.00,Contribution,"International Marketing Program",
2023-2024,P3,"Productions Ocho inc.",Montréal,Quebec,Canada,"Les fleurs du désert",French,Drama,2023-12-20,37500.00,37500.00,Advance,"Development Program",
2023-2024,P3,"Productions Ocho inc.",Montréal,Quebec,Canada,"Les fleurs du désert",French,Drama,2023-11-27,2000.00,2000.00,Contribution,"International Marketing Program",
2023-2024,P3,"Amalga Créations Médias Inc.",Montréal,Quebec,Canada,"Les foyers",French,Drama,2023-11-20,75000.00,75000.00,Advance,"Development Program",
2023-2024,P3,"Item 7 Inc.",Montréal,Quebec,Canada,"Les gags",French,Comedy,2023-11-03,30000.00,30000.00,Advance,"Development Program",
2023-2024,P3,"Maison 4:3 Inc.",Montréal,Quebec,Canada,"Les jours",French,Documentary,2023-11-06,15000.00,15000.00,Advance,"Marketing Program",
2023-2024,P3,"Vieille Amérique Inc.",Montréal,Quebec,Canada,"Les midinettes",French,"Historical Drama",2023-10-03,15000.00,15000.00,Advance,"Development Program",
2023-2024,P3,"Coop Vidéo de Montréal",Montréal,Quebec,Canada,"Les origines de la musique",French,Documentary,2023-12-06,15000.00,15000.00,Advance,"Development Program",
2023-2024,P3,"Les Films Opale Inc.",Montréal,Quebec,Canada,"Les rayons gamma",French,Drama,2023-11-10,30000.00,30000.00,Advance,"Marketing Program",
2023-2024,P3,"Cinémathèque Québécoise",Montréal,Quebec,Canada,"Les Sommets du cinéma d'animation 2024",0,0,2023-12-11,10000.00,10000.00,Contribution,"Promotion Program",
2023-2024,P3,"Max Films Inc.",Montréal,Quebec,Canada,"Letter From A stranger",English,Drama,2023-11-17,37500.00,37500.00,Advance,"Development Program",
2023-2024,P3,"Périphéria Productions Inc.",Montréal,Quebec,Canada,"LIGHT OF UNGAVA",English,Drama,2023-11-16,37500.00,37500.00,Advance,"Development Program",
2023-2024,P3,"Lignes F inc.",Montreal,Quebec,Canada,"Lignes de fuite",French,Drama,2023-10-10,2150706.00,2220000.00,Advance,"Production Program","Amended Contract Signed 02-Mar-2021"
2023-2024,P3,"Maison 4:3 Inc.",Montréal,Quebec,Canada,"L'Océan vu du coeur",French,Documentary,2023-11-10,59256.00,59256.00,Advance,"Marketing Program",
2023-2024,P3,"Afro Viking Pictures Inc.",Halifax,"Nova Scotia",Canada,"Look At Me",English,Drama,2023-12-18,5000.00,5000.00,Contribution,"International Marketing Program",
2023-2024,P3,"Rayon Verde Inc.",Toronto,Ontario,Canada,"Los Turistas (The Tourists)",English,Drama,2023-12-19,37500.00,37500.00,Advance,"Development Program",
2023-2024,P3,"Productions Caramel Film Inc.",Montréal,Quebec,Canada,"Lou Sur la Glace",French,Comedy,2023-12-20,35047.00,35047.00,Advance,"Development Program",
2023-2024,P3,"PUNK Films Inc.",Toronto,Ontario,Canada,Lucinda,English,Drama,2023-10-03,24501.00,24501.00,Advance,"Development Program",
2023-2024,P3,"Iylond Entertainment Inc.",Okotoks,Alberta,Canada,Lumi,English,"Science fiction/Fantasy/Tale",2023-12-15,700000.00,700000.00,Investment,"Production Program",
2023-2024,P3,"Les Films du Lac Inc.",Montréal,Quebec,Canada,Lumière,French,"Science fiction/Fantasy/Tale",2023-12-19,75000.00,75000.00,Advance,"Development Program",
2023-2024,P3,"L'OEIL VIF (Faisant affaire sous le nom Les Films du 3 mars)",Montréal,Quebec,Canada,"Ma Sai Gon (aka Saigon, Liberté, Bonheur)",French,Documentary,2023-12-20,25000.00,25000.00,Advance,"Marketing Program",
2023-2024,P3,"STUDIOS H264 INC.",Montréal,Quebec,Canada,"Mademoiselle Kenopsia",French,Drama,2023-11-17,20000.00,20000.00,Advance,"Marketing Program",
2023-2024,P3,"PUNK Films Inc.",Toronto,Ontario,Canada,Magenta,English,Drama,2023-10-03,50499.00,50499.00,Advance,"Development Program",
2023-2024,P3,"Chasseurs Films Inc.",Sherbrooke,Quebec,Canada,MAPLE,French,Thriller,2023-10-04,60000.00,60000.00,Advance,"Development Program",
2023-2024,P3,"Productions 10e Ave Inc.",Saint-Augustin-de-Desmaures,Quebec,Canada,"Marguerite et le Duc",French,"Science fiction/Fantasy/Tale",2023-11-14,15000.00,15000.00,Advance,"Development Program",
2023-2024,P3,"Cinémaginaire Inc.",Montréal,Quebec,Canada,Marjo,French,Musical,2023-11-23,44170.00,44170.00,Advance,"Development Program",
2023-2024,P3,"St. Ignatius Productions Inc.",Toronto,Ontario,Canada,"Matt & Jay Go America",English,Comedy,2023-10-13,1750000.00,1750000.00,Investment,"Production Program",
2023-2024,P3,"Moi & Dave inc.",Toronto,Ontario,Canada,"Medium Béluga",French,Drama,2023-12-20,30000.00,30000.00,Advance,"Development Program",
2023-2024,P3,"Amalga Créations Médias Inc.",Montréal,Quebec,Canada,Menteuse,French,Comedy,2023-12-19,250000.00,250000.00,Advance,"Production Program",
2023-2024,P3,"AMF Productions Inc.",Vancouver,"British Columbia",Canada,"MICE MEN",English,Drama,2023-10-11,25000.00,25000.00,Advance,"Development Program",
2023-2024,P3,"Babel Films inc.",Montréal,Quebec,Canada,Michel,French,Drama,2023-11-20,75000.00,75000.00,Advance,"Development Program",
2023-2024,P3,"Corporation de développement et de production ACPAV Inc.",Montréal,Quebec,Canada,"Michel Brault, l'instinct de vue",French,Documentary,2023-10-25,195000.00,195000.00,Contribution,"Theatrical Documentary Program",
2023-2024,P3,"Chasseurs Films Inc.",Sherbrooke,Quebec,Canada,Mi-temps,French,Thriller,2023-10-04,15000.00,15000.00,Advance,"Development Program",
2023-2024,P3,"9174-5018 Québec inc.",Montréal,Quebec,Canada,"Mon amour c'est pour le restant de mes jours",French,Documentary,2023-12-05,250000.00,250000.00,Contribution,"Theatrical Documentary Program",
2023-2024,P3,"9219-3010 Québec Inc.",Montréal,Quebec,Canada,"Mon année martienne",French,Drama,2023-11-27,35000.00,35000.00,Advance,"Development Program",
2023-2024,P3,"Second Wave Films Ltd.",Kingsburg,"Nova Scotia",Canada,"Monica's News",English,Drama,2023-10-10,545000.00,445000.00,Contribution,"Production Program","Amended Contract Signed 21-Dec-2022"
2023-2024,P3,"Sphere Productions 4 Inc.",Toronto,Ontario,Canada,"Monkey on a Stick",English,Documentary,2023-12-06,450000.00,450000.00,Investment,"Theatrical Documentary Program",
2023-2024,P3,"9097-4767 Québec Inc.",Montréal,Quebec,Canada,"Montréal, ma belle",French,Drama,2023-10-19,1550.00,1550.00,Contribution,"International Marketing Program",
2023-2024,P3,"Compass Productions Inc.",Montreal,Quebec,Canada,"Mother Mary",English,Drama,2023-12-11,2000.00,2000.00,Contribution,"International Marketing Program",
2023-2024,P3,"GATE 67 FILMS INC",Lethbridge,Alberta,Canada,"Mother of None",English,"Science fiction/Fantasy/Tale",2023-12-07,37500.00,37500.00,Advance,"Development Program",
2023-2024,P3,"Cineast Screen Development Limited",Halifax,"Nova Scotia",Canada,"Mother's Fear",English,Horror,2023-11-24,37500.00,37500.00,Advance,"Development Program",
2023-2024,P3,"Niya Production Inc.",Ottawa,Ontario,Canada,"Mute Out Sound",French,Documentary,2023-12-22,150000.00,150000.00,Contribution,"Talent To Watch Program",
2023-2024,P3,"1976 Productions Inc.",Montréal,Quebec,Canada,Nervures,French,Horror,2023-10-19,1550.00,1550.00,Contribution,"International Marketing Program",
2023-2024,P3,"Nervures le Film inc.",Montréal,Quebec,Canada,Nervures,French,Horror,2023-12-14,1300000.00,1300000.00,Investment,"Production Program",
2023-2024,P3,"Lucia Productions Inc.",Toronto,Ontario,Canada,Neverman,English,Drama,2023-12-21,1500000.00,1500000.00,Investment,"Production Program",
2023-2024,P3,"Princess Space Monster Films Inc.",Halifax,"Nova Scotia",Canada,Non-Status,English,Drama,2023-12-16,17900.00,17900.00,Advance,"Development Program",
2023-2024,P3,"Story-Book Entertainment Inc.",Halifax,"Nova Scotia",Canada,"Not Worthy",English,Drama,2023-12-20,35000.00,35000.00,Advance,"Development Program",
2023-2024,P3,"Bravo Charlie inc.",Montréal,Quebec,Canada,"Nous sommes Pauline",French,Drama,2023-10-05,37500.00,37500.00,Advance,"Development Program",
2023-2024,P3,"National Screen Institute - Canada",Winnipeg,Manitoba,Canada,"NSI CBC New Indigenous Voices 2024",0,0,2023-12-14,56758.00,56758.00,Contribution,"Promotion Program",
2023-2024,P3,"Productions GreenGround II Inc.",Montreal,Quebec,Canada,"Opus 28 -  (formerly A Portrait)",English,Drama,2023-10-12,560000.00,500000.00,Investment,"Production Program","Amended Contract Signed 27-Jan-2022"
2023-2024,P3,"AMF Productions Inc.",Vancouver,"British Columbia",Canada,ORCA,English,"Science fiction/Fantasy/Tale",2023-10-11,25000.00,25000.00,Advance,"Development Program",
2023-2024,P3,"Aquatinter Films Ltd.",Vancouver,"British Columbia",Canada,"Over The Next Hill",Other,Drama,2023-12-22,37500.00,37500.00,Advance,"Development Program",
2023-2024,P3,"EMA FILMS INC.",Montréal,Quebec,Canada,"Pamela is Running",English,Comedy,2023-12-11,40000.00,40000.00,Advance,"Development Program",
2023-2024,P3,"9496-5514 Québec Inc.",Montreal,Quebec,Canada,PARADISE,English,Thriller,2023-12-18,1300000.00,1300000.00,Advance,"Production Program",
2023-2024,P3,"Les Films de Jennie Inc.",Montréal,Quebec,Canada,Partir,French,Drama,2023-12-04,37500.00,37500.00,Advance,"Development Program",
2023-2024,P3,"Canesugar Filmworks Inc.",Toronto,Ontario,Canada,Peace,English,"Historical Drama",2023-10-12,23208.00,23208.00,Advance,"Development Program",
2023-2024,P3,"Island Media Arts Co-Operative Limited",Charlottetown,"Prince Edward Island",Canada,"PEI Screenwriters' Bootcamp 2023",0,0,2023-10-04,0.00,15000.00,Contribution,"Promotion Program","Amended Contract Signed 01-Dec-2022"
2023-2024,P3,"JWLX Films Inc","West Pennant","Nova Scotia",Canada,"Permanent Damage",English,Thriller,2023-12-13,517761.00,517761.00,Investment,"Production Program",
2023-2024,P3,"Colonelle films inc.",Montréal,Quebec,Canada,"PETITE ROSE",French,Drama,2023-12-19,100000.00,100000.00,Advance,"Production Program",
2023-2024,P3,"Scythia Films Inc.",Toronto,Ontario,Canada,Pharmakon,English,Thriller,2023-11-17,37500.00,37500.00,Advance,"Development Program",
2023-2024,P3,"Wildling Pictures Inc.",Dundas,Ontario,Canada,Phreaker,English,Drama,2023-10-12,15505.00,15505.00,Advance,"Development Program",
2023-2024,P3,"Nava Projects Inc.",Toronto,Ontario,Canada,"Pigeon Wars",English,Drama,2023-11-20,4000.00,4000.00,Contribution,"International Marketing Program",
2023-2024,P3,"The Kolasky Company Inc.",Toronto,Ontario,Canada,"Places in Between",English,Drama,2023-12-15,25756.46,25756.46,Advance,"Development Program",
2023-2024,P3,"Plastic People Documentary Productions Inc.",Toronto,Ontario,Canada,"Plastic People",English,Documentary,2023-10-10,150000.00,150000.00,Investment,"Theatrical Documentary Program",
2023-2024,P3,"White Pine Pictures Inc.",Toronto,Ontario,Canada,"Plastic People",English,Documentary,2023-10-03,2000.00,2000.00,Contribution,"International Marketing Program",
2023-2024,P3,"GATE 67 FILMS INC",Lethbridge,Alberta,Canada,"Poveglia, the Haunted Island",English,Documentary,2023-12-07,37500.00,37500.00,Advance,"Development Program",
2023-2024,P3,"Thoughts From The Asylum Productions Ltd.",Vancouver,"British Columbia",Canada,PRAYER,English,"Science fiction/Fantasy/Tale",2023-11-22,16792.00,16792.00,Advance,"Development Program",
2023-2024,P3,"Académie canadienne du cinéma et de la télévision - Section Québec",Montréal,Quebec,Canada,"Prix Gémeaux 2024",0,0,2023-12-19,85000.00,85000.00,Contribution,"Promotion Program",
2023-2024,P3,"2416-1200 Québec Inc",Val-d'Or,Quebec,Canada,"Programme d'aide à la diffusion en salle  2416-1200 Québec Inc",0,0,2023-12-13,12889.00,12889.00,Contribution,"Theatrical Exhibition Program",
2023-2024,P3,"2738-4478 Québec Inc. ( Cinéma le scénario)","La Pocatiere",Quebec,Canada,"Programme d'aide à la diffusion en salle  2738-4478 Québec Inc. ( Cinéma le scénario)",0,0,2023-12-12,12889.00,12889.00,Contribution,"Theatrical Exhibition Program",
2023-2024,P3,"2754-5383 Québec Inc (Cinéma Alouette)",Saint-Raymond,Quebec,Canada,"Programme d'aide à la diffusion en salle  2754-5383 Québec Inc (Cinéma Alouette)",0,0,2023-12-12,12889.00,12889.00,Contribution,"Theatrical Exhibition Program",
2023-2024,P3,"2973-8648 Quebec inc.",joliette,Quebec,Canada,"Programme d'aide à la diffusion en salle  2973-8648 Quebec inc.",0,0,2023-12-12,29222.00,29222.00,Contribution,"Theatrical Exhibition Program",
2023-2024,P3,"4417194 Canada Inc. o/s Cinema St-Eustache",St-Eustache,Quebec,Canada,"Programme d'aide à la diffusion en salle  4417194 Canada Inc. o/s Cinema St-Eustache",0,0,2023-12-14,25778.00,25778.00,Contribution,"Theatrical Exhibition Program",
2023-2024,P3,"9001-5967 Québec Inc.",Matane,Quebec,Canada,"Programme d'aide à la diffusion en salle  9001-5967 Québec Inc.",0,0,2023-12-13,12889.00,12889.00,Contribution,"Theatrical Exhibition Program",
2023-2024,P3,"9034-7097 QC Inc.",Rouyn-Noranda,Quebec,Canada,"Programme d'aide à la diffusion en salle  9034-7097 QC Inc.",0,0,2023-12-11,12889.00,12889.00,Contribution,"Theatrical Exhibition Program",
2023-2024,P3,"9042-1330 Quebec Inc.",Amos,Quebec,Canada,"Programme d'aide à la diffusion en salle  9042-1330 Quebec Inc.",0,0,2023-12-13,12889.00,12889.00,Contribution,"Theatrical Exhibition Program",
2023-2024,P3,"9063-5186 Québec Inc. (Cinéma Laurier)",mont-laurier,Quebec,Canada,"Programme d'aide à la diffusion en salle  9063-5186 Québec Inc. (Cinéma Laurier)",0,0,2023-12-12,12889.00,12889.00,Contribution,"Theatrical Exhibition Program",
2023-2024,P3,"9137-1484 Québec inc. (Post-Moderne)",Montreal,Quebec,Canada,"Programme d'aide à la diffusion en salle  9137-1484 Québec inc. (Post-Moderne)",0,0,2023-12-18,12889.00,12889.00,Contribution,"Theatrical Exhibition Program",
2023-2024,P3,"9166-7972 Québec inc.",ROBERVAL,Quebec,Canada,"Programme d'aide à la diffusion en salle  9166-7972 Québec inc.",0,0,2023-12-12,22333.00,22333.00,Contribution,"Theatrical Exhibition Program",
2023-2024,P3,"9185-7342 Quebec Inc. (CINÉMA / CINÉPARC PARADISO)",CHANDLER,Quebec,Canada,"Programme d'aide à la diffusion en salle  9185-7342 Quebec Inc. (CINÉMA / CINÉPARC PARADISO)",0,0,2023-12-20,18889.00,18889.00,Contribution,"Theatrical Exhibition Program",
2023-2024,P3,"9230-2058 Québec Inc.",Sherbrooke,Quebec,Canada,"Programme d'aide à la diffusion en salle  9230-2058 Québec Inc.",0,0,2023-12-14,29222.00,29222.00,Contribution,"Theatrical Exhibition Program",
2023-2024,P3,"9359-1238 Quebec Inc. (Cinéma La Sarre)","La Sarre",Quebec,Canada,"Programme d'aide à la diffusion en salle  9359-1238 Quebec Inc. (Cinéma La Sarre)",0,0,2023-12-22,12889.00,12889.00,Contribution,"Theatrical Exhibition Program",
2023-2024,P3,"Azur Divertissements Inc",Cowansville,Quebec,Canada,"Programme d'aide à la diffusion en salle  Azur Divertissements Inc",0,0,2023-12-11,29222.00,29222.00,Contribution,"Theatrical Exhibition Program",
2023-2024,P3,"Centre Culturel de Caraquet Inc. o/s Cinéma du Centre",Caraquet,"New Brunswick",Canada,"Programme d'aide à la diffusion en salle  Centre Culturel de Caraquet Inc. o/s Cinéma du Centre",0,0,2023-12-12,12889.00,12889.00,Contribution,"Theatrical Exhibition Program",
2023-2024,P3,"Centre d'art et d'essai de la Cinémathèque québécoise",Montréal,Quebec,Canada,"Programme d'aide à la diffusion en salle  Centre d'art et d'essai de la Cinémathèque québécoise",0,0,2023-12-12,16333.00,16333.00,Contribution,"Theatrical Exhibition Program",
2023-2024,P3,"Centre de Conservation de la Biodiversité Boréale (CCBB) Inc. o/s Zoo Sauvage de Saint-Félicien",Saint-Félicien,Quebec,Canada,"Programme d'aide à la diffusion en salle  Centre de Conservation de la Biodiversité Boréale (CCBB) Inc. o/s Zoo Sauvage de Saint-Félicien",0,0,2023-12-11,9444.00,9444.00,Contribution,"Theatrical Exhibition Program",
2023-2024,P3,"CINE-CENTRE VIDEO INC.",Québec,Quebec,Canada,"Programme d'aide à la diffusion en salle  CINE-CENTRE VIDEO INC.",0,0,2023-12-12,18889.00,18889.00,Contribution,"Theatrical Exhibition Program",
2023-2024,P3,"Cinéma centre-ville inc.",Saint-Georges,Quebec,Canada,"Programme d'aide à la diffusion en salle  Cinéma centre-ville inc.",0,0,2023-12-11,12889.00,12889.00,Contribution,"Theatrical Exhibition Program",
2023-2024,P3,"Cinéma Le Clap PSF inc.",Québec,Quebec,Canada,"Programme d'aide à la diffusion en salle  Cinéma Le Clap PSF inc.",0,0,2023-12-18,29222.00,29222.00,Contribution,"Theatrical Exhibition Program",
2023-2024,P3,"Cinéma le Tapis Rouge Inc.",Trois-Rivières,Quebec,Canada,"Programme d'aide à la diffusion en salle  Cinéma le Tapis Rouge Inc.",0,0,2023-12-12,16333.00,16333.00,Contribution,"Theatrical Exhibition Program",
2023-2024,P3,"Cinema Louise inc",St-Pacôme,Quebec,Canada,"Programme d'aide à la diffusion en salle  Cinema Louise inc",0,0,2023-12-11,9444.00,9444.00,Contribution,"Theatrical Exhibition Program",
2023-2024,P3,"Cinema Megantic",FRONTENAC,Quebec,Canada,"Programme d'aide à la diffusion en salle  Cinema Megantic",0,0,2023-12-11,9444.00,9444.00,Contribution,"Theatrical Exhibition Program",
2023-2024,P3,"Cinema Peninsule Ltée",Tracadie,"New Brunswick",Canada,"Programme d'aide à la diffusion en salle  Cinema Peninsule Ltée",0,0,2023-12-14,12889.00,12889.00,Contribution,"Theatrical Exhibition Program",
2023-2024,P3,"Cinema Pine Inc",Sainte-Adèle,Quebec,Canada,"Programme d'aide à la diffusion en salle  Cinema Pine Inc",0,0,2023-12-11,25778.00,25778.00,Contribution,"Theatrical Exhibition Program",
2023-2024,P3,"Cinéma Public",Montréal,Quebec,Canada,"Programme d'aide à la diffusion en salle  Cinéma Public",0,0,2023-12-12,19778.00,19778.00,Contribution,"Theatrical Exhibition Program",
2023-2024,P3,"Cinemas Princesse Inc.","Riviere du Loup",Quebec,Canada,"Programme d'aide à la diffusion en salle  Cinemas Princesse Inc.",0,0,2023-12-12,12889.00,12889.00,Contribution,"Theatrical Exhibition Program",
2023-2024,P3,"Coopérative de solidarité socioculturelle de la Matapédia",Amqui,Quebec,Canada,"Programme d'aide à la diffusion en salle  Coopérative de solidarité socioculturelle de la Matapédia",0,0,2023-12-12,12889.00,12889.00,Contribution,"Theatrical Exhibition Program",
2023-2024,P3,"Corporation Augustin-Chénier Inc. (Cinéma du Rift)",Ville-Marie,Quebec,Canada,"Programme d'aide à la diffusion en salle  Corporation Augustin-Chénier Inc. (Cinéma du Rift)",0,0,2023-12-13,12889.00,12889.00,Contribution,"Theatrical Exhibition Program",
2023-2024,P3,"Corporation du Cinéma Beaubien",Montréal,Quebec,Canada,"Programme d'aide à la diffusion en salle  Corporation du Cinéma Beaubien",0,0,2023-12-13,19778.00,19778.00,Contribution,"Theatrical Exhibition Program",
2023-2024,P3,"Corporation du Cinéma du Musée",Montréal,Quebec,Canada,"Programme d'aide à la diffusion en salle  Corporation du Cinéma du Musée",0,0,2023-12-13,12889.00,12889.00,Contribution,"Theatrical Exhibition Program",
2023-2024,P3,"Corporation du Cinéma du Parc",Montréal,Quebec,Canada,"Programme d'aide à la diffusion en salle  Corporation du Cinéma du Parc",0,0,2023-12-13,12889.00,12889.00,Contribution,"Theatrical Exhibition Program",
2023-2024,P3,"Corporation du cinéma Station Vu",Montréal,Quebec,Canada,"Programme d'aide à la diffusion en salle  Corporation du cinéma Station Vu",0,0,2023-12-13,12889.00,12889.00,Contribution,"Theatrical Exhibition Program",
2023-2024,P3,"Filmo Vision Ltée",Lévis,Quebec,Canada,"Programme d'aide à la diffusion en salle  Filmo Vision Ltée",0,0,2023-12-15,25778.00,25778.00,Contribution,"Theatrical Exhibition Program",
2023-2024,P3,"Les Arts de la scène de Montmagny",Montmagny,Quebec,Canada,"Programme d'aide à la diffusion en salle  Les Arts de la scène de Montmagny",0,0,2023-12-11,12889.00,12889.00,Contribution,"Theatrical Exhibition Program",
2023-2024,P3,"Les Cinémas Ciné Entreprise inc",Terrebonne,Quebec,Canada,"Programme d'aide à la diffusion en salle  Les Cinémas Ciné Entreprise inc",0,0,2023-12-11,29222.00,29222.00,Contribution,"Theatrical Exhibition Program",
2023-2024,P3,"Les Cinémas Zenith Ltée",Montreal,Quebec,Canada,"Programme d'aide à la diffusion en salle  Les Cinémas Zenith Ltée",0,0,2023-12-15,16333.00,16333.00,Contribution,"Theatrical Exhibition Program",
2023-2024,P3,"Ville de Dégelis",Dégelis,Quebec,Canada,"Programme d'aide à la diffusion en salle  Ville de Dégelis",0,0,2023-12-18,12889.00,12889.00,Contribution,"Theatrical Exhibition Program",
2023-2024,P3,"Picbois Productions Inc.",Montréal,Quebec,Canada,"Projet Esturgeon",French,Documentary,2023-12-13,37500.00,37500.00,Advance,"Development Program",
2023-2024,P3,"Vroom Productions Inc.",Dewittville,Quebec,Canada,Prude,English,Drama,2023-11-02,37500.00,37500.00,Advance,"Development Program",
2023-2024,P3,"Christie Street Creative Inc.",Courtenay,"British Columbia",Canada,"Purple Hill",English,Mystery/Crime/Police,2023-10-15,37500.00,37500.00,Advance,"Development Program",
2023-2024,P3,"Honalee Productions Inc.",Vancouver,"British Columbia",Canada,Pyramiden,English,Horror,2023-11-21,25000.00,25000.00,Advance,"Development Program",
2023-2024,P3,"Productions ciné-scène inc.",Québec,Quebec,Canada,Québec-Électro,French,Documentary,2023-12-21,37500.00,37500.00,Advance,"Development Program",
2023-2024,P3,"1976 Productions Inc.",Montréal,Quebec,Canada,"Queer Window",English,"Science fiction/Fantasy/Tale",2023-10-06,37500.00,37500.00,Advance,"Development Program",
2023-2024,P3,"Racewalkers Productions Inc.",Mississauga,Ontario,Canada,Racewalkers,English,Comedy,2023-10-17,500000.00,500000.00,Contribution,"Production Program",
2023-2024,P3,"Elevation Pictures Productions Corp.",Toronto,Ontario,Canada,"Red Card",English,Thriller,2023-11-24,40000.00,40000.00,Advance,"Development Program",
2023-2024,P3,"GAME THEORY FILMS INC.",Toronto,Ontario,Canada,"Relax, I'm From the Future",English,Comedy,2023-11-08,29683.50,29683.50,Advance,"Marketing Program",
2023-2024,P3,"Grand Scheme Productions Inc.",Vancouver,"British Columbia",Canada,"RELAX, OPEN YOUR EYES",English,Documentary,2023-12-21,37500.00,37500.00,Advance,"Development Program",
2023-2024,P3,"Collective Pictures Inc.",Mississauga,Ontario,Canada,Resistance,English,Thriller,2023-10-12,125000.00,125000.00,Advance,"Development Program",
2023-2024,P3,"Calibou Films Inc.",Edmonton,Alberta,Canada,"Rêver en néon",French,Drama,2023-12-11,500000.00,500000.00,Investment,"Production Program",
2023-2024,P3,"Artemis Films Inc.",Montréal,Quebec,Canada,"Révolte Vers",French,Documentary,2023-10-27,62500.00,62500.00,Advance,"Development Program",
2023-2024,P3,"Coop Vidéo de Montréal",Montréal,Quebec,Canada,Revolver,French,Drama,2023-12-06,60000.00,60000.00,Advance,"Development Program",
2023-2024,P3,"Riceboy Sleeps Production Inc.",Burnaby,"British Columbia",Canada,"Riceboy Sleeps",English,Drama,2023-11-27,1000.00,1000.00,Contribution,"International Marketing Program",
2023-2024,P3,"Le Foyer Films inc.",Montreal,Quebec,Canada,Richelieu,French,Drama,2023-12-01,2000.00,2000.00,Contribution,"International Marketing Program",
2023-2024,P3,"Maison 4:3 Inc.",Montréal,Quebec,Canada,Rojek,French,Documentary,2023-10-25,23112.00,23112.00,Advance,"Marketing Program",
2023-2024,P3,"Metafilms Inc.",Montréal,Quebec,Canada,Rojek,French,Documentary,2023-10-23,2000.00,2000.00,Contribution,"International Marketing Program",
2023-2024,P3,"Metafilms Inc.",Montréal,Quebec,Canada,Rojek,French,Documentary,2023-10-25,100000.00,100000.00,Contribution,"International Marketing Program",
2023-2024,P3,"9097-4767 Québec Inc.",Montréal,Quebec,Canada,"Rose Trottoir",French,"Romantic Comedy",2023-12-20,37500.00,37500.00,Advance,"Development Program",
2023-2024,P3,"Common Knowledge Films Inc",Vancouver,"British Columbia",Canada,"Rotterdam Lab",English,Drama,2023-12-18,2000.00,2000.00,Contribution,"International Marketing Program",
2023-2024,P3,"14051483 Canada Inc.",Montreal,Quebec,Canada,Ru,French,Drama,2023-12-18,278431.00,278431.00,Advance,"Marketing Program",
2023-2024,P3,"Rebel Labs Inc. / Labs Rebelles inc.",Montreal,Quebec,Canada,"Saber 7",English,Documentary,2023-11-09,45000.00,45000.00,Advance,"Development Program",
2023-2024,P3,"My Sister Miriam Films Inc.",Vancouver,"British Columbia",Canada,"Sacred Creatures",English,Drama,2023-11-01,750000.00,600000.00,Investment,"Production Program","Amended Contract Signed 22-Dec-2022"
2023-2024,P3,"Ball Is Life Entertainment Inc.",Skidegate,"British Columbia",Canada,"SAINTS AND WARRIORS",English,Documentary,2023-11-15,350000.00,350000.00,Investment,"Theatrical Documentary Program",
2023-2024,P3,"Digital Warriors Productions Inc.",Vancouver,"British Columbia",Canada,Sama,English,Drama,2023-12-12,37500.00,37500.00,Advance,"Development Program",
2023-2024,P3,"Microscope Inc.",Montréal,Quebec,Canada,"Sans fond",French,Drama,2023-12-05,34000.00,34000.00,Advance,"Development Program",
2023-2024,P3,"Maison 4:3 Inc.",Montréal,Quebec,Canada,Sapins,French,Comedy,2023-12-04,164700.00,164700.00,Advance,"Marketing Program",
2023-2024,P3,"GAME THEORY FILMS INC.",Toronto,Ontario,Canada,"Satan Wants You",English,Documentary,2023-10-23,33780.00,33780.00,Advance,"Marketing Program",
2023-2024,P3,"Ninis Productions Inc.",Winnipeg,Manitoba,Canada,"Saveurs du Monde",French,Documentary,2023-12-18,27500.00,27500.00,Advance,"Development Program",
2023-2024,P3,"1000374247 Ontario Inc.",Toronto,Ontario,Canada,"Say It Loud",English,Documentary,2023-11-14,175000.00,175000.00,Investment,"Theatrical Documentary Program",
2023-2024,P3,"Ultramagnetic Productions Ltd",Toronto,Ontario,Canada,"Say It Loud",English,Documentary,2023-10-04,2000.00,2000.00,Contribution,"International Marketing Program",
2023-2024,P3,"6909060 Canada Inc.",Montréal,Quebec,Canada,Scorpia,English,"Science fiction/Fantasy/Tale",2023-11-03,40500.00,40500.00,Advance,"Development Program",
2023-2024,P3,"9469-7935 Québec inc.",Montréal,Quebec,Canada,"Se fondre",French,"Science fiction/Fantasy/Tale",2023-10-16,125000.00,125000.00,Contribution,"Production Program",
2023-2024,P3,"Seagrass Films Inc.","New Westminster","British Columbia",Canada,"Seagrass (aka Perigean Tide)",English,Drama,2023-10-16,5000.00,5000.00,Contribution,"International Marketing Program",
2023-2024,P3,"Seagrass Films Inc.","New Westminster","British Columbia",Canada,"Seagrass (aka Perigean Tide)",English,Drama,2023-10-24,2000.00,2000.00,Contribution,"International Marketing Program",
2023-2024,P3,"Alcina Pictures Ltd.",Toronto,Ontario,Canada,"SEE JANE FIGHT",English,Drama,2023-12-18,37500.00,37500.00,Advance,"Development Program",
2023-2024,P3,"Carpe Dee Yum Productions Inc.",Toronto,Ontario,Canada,Seeds,English,Comedy,2023-12-12,1120000.00,920000.00,Investment,"Production Program","Amended Contract Signed 06-Mar-2023"
2023-2024,P3,"Lumanity Productions Inc.",Toronto,Ontario,Canada,"Seeds of Tomorrow",English,"Science fiction/Fantasy/Tale",2023-10-03,75000.00,75000.00,Advance,"Development Program",
2023-2024,P3,"Arpent Films Docs Inc.",Montreal,Quebec,Canada,"Séga : la musique de l'océan Indien (titre de travail)",French,Documentary,2023-12-19,150000.00,150000.00,Contribution,"Talent To Watch Program",
2023-2024,P3,"Studio 104 Entertainment Inc.",Vancouver,"British Columbia",Canada,"Send the Rain",English,Drama,2023-11-30,676425.00,676425.00,Investment,"Production Program",
2023-2024,P3,"Lofty Sky Pictures Inc.",Toronto,Ontario,Canada,"Shanghai Ballade",Other,"Historical Drama",2023-12-12,37500.00,37500.00,Advance,"Development Program",
2023-2024,P3,"Sharp Corner Inc.",Toronto,Ontario,Canada,"Sharp Corner",English,Thriller,2023-11-01,2668412.00,2168412.00,Advance,"Production Program","Amended Contract Signed 06-Mar-2023"
2023-2024,P3,"GreenGround Productions III Inc.",Montreal,Quebec,Canada,"Shifting Baselines",English,Documentary,2023-11-02,260000.00,260000.00,Contribution,"Theatrical Documentary Program",
2023-2024,P3,"14051483 Canada Inc.",Montreal,Quebec,Canada,"Simple comme Sylvain",French,"Romantic Comedy",2023-11-17,246384.00,246384.00,Advance,"Marketing Program",
2023-2024,P3,"Thoughts From The Asylum Productions Ltd.",Vancouver,"British Columbia",Canada,"SIMPLE DEAL",English,Drama,2023-11-22,31280.00,31280.00,Advance,"Development Program",
2023-2024,P3,"Maja Jacob Films Ltd.",Moncton,"New Brunswick",Canada,"Sister Inconnus",English,Horror,2023-10-10,37500.00,37500.00,Advance,"Development Program",
2023-2024,P3,"Devout Productions Ltd.",Victoria,"British Columbia",Canada,"Six Chamber Heart",English,Western,2023-11-02,37500.00,37500.00,Advance,"Development Program",
2023-2024,P3,"Diva Film Productions Inc.",Pickering,Ontario,Canada,"SKA NIGHTS",English,Drama,2023-12-18,37500.00,37500.00,Advance,"Development Program",
2023-2024,P3,"Hi-Vis Film Inc.","Cape North","Nova Scotia",Canada,"Slow Air",English,Drama,2023-12-19,37500.00,37500.00,Advance,"Development Program",
2023-2024,P3,"Association coopérative de productions audio-visuelles",Montréal,Quebec,Canada,"Société utopique",French,Thriller,2023-11-21,43818.00,43818.00,Advance,"Development Program",
2023-2024,P3,"Bravo Charlie inc.",Montréal,Quebec,Canada,Solo,French,Drama,2023-10-11,5000.00,5000.00,Contribution,"International Marketing Program",
2023-2024,P3,"Bravo Charlie inc.",Montréal,Quebec,Canada,Solo,French,Drama,2023-10-05,2000.00,2000.00,Contribution,"International Marketing Program",
2023-2024,P3,"Sweetwater Pictures",Vancouver,"British Columbia",Canada,"Someone Like You",English,Comedy,2023-12-15,37500.00,37500.00,Advance,"Development Program",
2023-2024,P3,"LaRue Productions Inc.",Toronto,Ontario,Canada,"Someone Lives Here",English,Documentary,2023-10-25,5000.00,5000.00,Contribution,"International Marketing Program",
2023-2024,P3,"Understory Films Inc.",Vancouver,"British Columbia",Canada,"Standing with the Ancients",English,Documentary,2023-11-28,2000.00,2000.00,Contribution,"International Marketing Program",
2023-2024,P3,"Substance Production Inc.",Aurora,Ontario,Canada,"Star Stars",English,Comedy,2023-10-16,75000.00,75000.00,Advance,"Development Program",
2023-2024,P3,"Level Film Inc.",Toronto,Ontario,Canada,Stellar,English,Drama,2023-10-31,22050.00,22050.00,Advance,"Marketing Program",
2023-2024,P3,"The Kolasky Company Inc.",Toronto,Ontario,Canada,"Still Kicking",English,Musical,2023-12-15,25756.44,25756.44,Advance,"Development Program",
2023-2024,P3,"Goodbye Productions Inc.",Vancouver,"British Columbia",Canada,"Stranger in Town",English,Drama,2023-10-24,37500.00,37500.00,Advance,"Development Program",
2023-2024,P3,"Quiet Bridge Production Inc.",Ottawa,Ontario,Canada,"Strangers in the Night | (a.k.a. My Private War Criminal)",Other,"Historical Drama",2023-12-05,325000.00,325000.00,Investment,"Production Program",
2023-2024,P3,"Shore Road Pictures Inc.",Fredericton,"New Brunswick",Canada,Strathcona,English,Drama,2023-12-13,37500.00,37500.00,Advance,"Development Program",
2023-2024,P3,"Film Cardinal Inc./Cardinal Film Inc.",Montreal,Quebec,Canada,"Stuntman (The)",English,Comedy,2023-12-18,37500.00,37500.00,Advance,"Development Program",
2023-2024,P3,"Thirty-one Sixty Pictures Inc.","East York",Ontario,Canada,"Subway Sam",English,Drama,2023-11-09,30000.00,30000.00,Advance,"Development Program",
2023-2024,P3,"9382-7004 Québec Inc.",Montréal,Quebec,Canada,"SUCRÉ SEIZE",French,Drama,2023-10-10,5000.00,5000.00,Contribution,"International Marketing Program",
2023-2024,P3,"CityLights Media Inc.",Mississauga,Ontario,Canada,"Suffering is Optional",English,Drama,2023-12-21,37500.00,37500.00,Advance,"Development Program",
2023-2024,P3,"9108-3006 Québec inc.",Montréal,Quebec,Canada,"Sur la terre comme au ciel",French,Drama,2023-12-14,5000.00,5000.00,Contribution,"International Marketing Program",
2023-2024,P3,"701275 NB Ltée",Moncton,"New Brunswick",Canada,"Sur les traces de Beausoleil",French,Documentary,2023-12-22,31920.00,31920.00,Advance,"Development Program",
2023-2024,P3,"Ugly Duckling Media Inc.",Toronto,Ontario,Canada,"Swan Song",English,Documentary,2023-12-22,2000.00,2000.00,Contribution,"International Marketing Program",
2023-2024,P3,"Fela Ocu Inc.",Toronto,Ontario,Canada,Sweetness,English,Thriller,2023-12-20,617500.00,617500.00,Investment,"Production Program",
2023-2024,P3,"Bedbugs Films Inc.",Winnipeg,Manitoba,Canada,"Swimming to Winnipeg",English,Action/Adventure,2023-12-15,37500.00,37500.00,Advance,"Development Program",
2023-2024,P3,"Secteur Films inc.",Montréal,Quebec,Canada,"Ta vie est passée dans la mienne",French,Documentary,2023-12-18,37500.00,37500.00,Advance,"Development Program",
2023-2024,P3,"Stellar Collision Inc.",Montréal,Quebec,Canada,"Tassi Hangbe",French,Documentary,2023-12-21,37500.00,37500.00,Advance,"Development Program",
2023-2024,P3,"Saaren Films Inc.",Toronto,Ontario,Canada,"Taste of Longing",English,Documentary,2023-12-22,220567.00,220567.00,Contribution,"Theatrical Documentary Program",
2023-2024,P3,"Intuitive Pictures Inc.",Montréal,Quebec,Canada,"The Amazing Tale of the Peace River Meteorite",English,Documentary,2023-10-23,2000.00,2000.00,Contribution,"International Marketing Program",
2023-2024,P3,"Horror The Apartment Inc.",Halifax,"Nova Scotia",Canada,"THE APARTMENT",English,Horror,2023-12-07,500000.00,500000.00,Contribution,"Production Program",
2023-2024,P3,"Grizzly Films Inc.",Tiny,Ontario,Canada,"The Art of Adventure",English,Documentary,2023-11-20,200000.00,200000.00,Investment,"Theatrical Documentary Program",
2023-2024,P3,"Banquet Films Inc.",Toronto,Ontario,Canada,"The Banquet",English,Comedy,2023-12-14,912000.00,912000.00,Investment,"Production Program",
2023-2024,P3,"Euclid 431 Pictures Inc.",Thornbury,Ontario,Canada,"THE BEGINNING",English,"Science fiction/Fantasy/Tale",2023-10-10,30200.00,30200.00,Advance,"Development Program",
2023-2024,P3,"H2L Productions Inc.",Montréal,Quebec,Canada,"The Best Rice in the World",English,Documentary,2023-10-10,37500.00,37500.00,Advance,"Development Program",
2023-2024,P3,"Stealing School Inc.",Toronto,Ontario,Canada,"The Bouncer",English,Drama,2023-12-13,25000.00,25000.00,Advance,"Development Program",
2023-2024,P3,"Photon Films and Media Inc.",Toronto,Ontario,Canada,"The Boy in the Woods",English,"Historical Drama",2023-10-11,23512.50,23512.50,Advance,"Marketing Program",
2023-2024,P3,"Raven Banner Releasing Inc.",Toronto,Ontario,Canada,"The Burning Season",English,Drama,2023-11-30,61740.00,61740.00,Advance,"Marketing Program",
2023-2024,P3,"Artemis Films Inc.",Montréal,Quebec,Canada,"The Calling",English,Horror,2023-10-27,62500.00,62500.00,Advance,"Development Program",
2023-2024,P3,"Scythia Films Inc.",Toronto,Ontario,Canada,"The Collection Agency",English,"Science fiction/Fantasy/Tale",2023-11-17,37500.00,37500.00,Advance,"Development Program",
2023-2024,P3,"Compass Productions Inc.",Montreal,Quebec,Canada,"The Crossing",English,Drama,2023-12-21,37500.00,37500.00,Advance,"Development Program",
2023-2024,P3,"Woods Entertainment Canada Inc.",Toronto,Ontario,Canada,"The Epiphany",English,Mystery/Crime/Police,2023-10-05,75000.00,75000.00,Advance,"Development Program",
2023-2024,P3,"Oversherry Productions Ltd.","Portugal Cove-St. Philip's",Newfoundland/Labrador,Canada,"The Eyes of the Gull",English,"Historical Drama",2023-12-15,35000.00,35000.00,Advance,"Development Program",
2023-2024,P3,"Boards and Joists Inc.",Toronto,Ontario,Canada,"The Fallers",English,Drama,2023-11-29,712500.00,712500.00,Investment,"Production Program",
2023-2024,P3,"Oskar Fisher Productions Inc.",Toronto,Ontario,Canada,"The Invisibles",English,Drama,2023-11-01,1329500.00,1164500.00,Investment,"Production Program","Amended Contract Signed 13-Jan-2023"
2023-2024,P3,"Resource Films Inc.",Toronto,Ontario,Canada,"The King Tide",English,"Science fiction/Fantasy/Tale",2023-10-04,15000.00,15000.00,Contribution,"International Marketing Program",
2023-2024,P3,"White Pine Pictures Inc.",Toronto,Ontario,Canada,"The Last of the Explorers",English,Documentary,2023-11-15,25000.00,25000.00,Advance,"Development Program",
2023-2024,P3,"First Generation Films Inc.",Toronto,Ontario,Canada,"The Laurentians",English,Thriller,2023-12-06,28000.00,28000.00,Advance,"Development Program",
2023-2024,P3,"Cloudy Falls Pictures Inc.",Toronto,Ontario,Canada,"The Legacy of Cloudy Falls",English,Comedy,2023-11-02,42008.00,42008.00,Contribution,"Production Program",
2023-2024,P3,"S.N.A.P. Films Inc.",Toronto,Ontario,Canada,"The Light Princess",English,"Science fiction/Fantasy/Tale",2023-10-25,37500.00,37500.00,Advance,"Development Program",
2023-2024,P3,"Buffalo Gal Pictures Inc.",Winnipeg,Manitoba,Canada,"The Lion in Winnipeg",English,"Historical Drama",2023-11-07,15000.00,15000.00,Advance,"Development Program",
2023-2024,P3,"Darius Films Inc.",Toronto,Ontario,Canada,"The Mystery of the Haunted Dancehall",English,Action/Adventure,2023-11-06,61946.00,61946.00,Advance,"Development Program",
2023-2024,P3,"White Pine Pictures Inc.",Toronto,Ontario,Canada,"The Myth of Normal",English,Documentary,2023-11-15,25000.00,25000.00,Advance,"Development Program",
2023-2024,P3,"Zellco Productions Inc.",Winnipeg,Manitoba,Canada,"The Nature of Nicholas",English,Drama,2023-10-25,24000.00,24000.00,Advance,"Marketing Program",
2023-2024,P3,"Kurelek Films Manitoba Inc.",Winnipeg,Manitoba,Canada,"The Passion of Kurelek",English,Documentary,2023-11-30,300000.00,300000.00,Investment,"Theatrical Documentary Program",
2023-2024,P3,"Prowler Film Incorporated",Torono,Ontario,Canada,"The Path Travels Me",English,Drama,2023-12-18,37500.00,37500.00,Advance,"Development Program",
2023-2024,P3,"Intuitive Pictures Inc.",Montréal,Quebec,Canada,"The Peace Piano",English,Documentary,2023-12-14,37500.00,37500.00,Advance,"Development Program",
2023-2024,P3,"Thoughts From The Asylum Productions Ltd.",Vancouver,"British Columbia",Canada,"The Pearl",English,Drama,2023-11-22,26927.00,26927.00,Advance,"Development Program",
2023-2024,P3,"Gobez Media Inc.",Toronto,Ontario,Canada,"The Plot (working title)",English,"Historical Drama",2023-12-14,37500.00,37500.00,Advance,"Development Program",
2023-2024,P3,"Quarterlife Crisis Productions Inc.",Toronto,Ontario,Canada,"The President's Daughter",English,Drama,2023-12-18,37500.00,37500.00,Advance,"Development Program",
2023-2024,P3,"Present Moment Pictures Inc.",Vancouver,"British Columbia",Canada,"The Quietest Game",English,Drama,2023-12-15,37500.00,37500.00,Advance,"Development Program",
2023-2024,P3,"Vortex Media Limited",Toronto,Ontario,Canada,"The Righteous",English,Thriller,2023-11-24,73328.00,81652.50,Advance,"Marketing Program","Amended Contract Signed 09-May-2022"
2023-2024,P3,"Brass Door Productions Inc.",Halifax,"Nova Scotia",Canada,"The Shuttle",English,Drama,2023-12-18,35000.00,35000.00,Advance,"Development Program",
2023-2024,P3,"Honalee Productions Inc.",Vancouver,"British Columbia",Canada,"The Smoking Man",English,Thriller,2023-11-21,50000.00,50000.00,Advance,"Development Program",
2023-2024,P3,"Darius Films Inc.",Toronto,Ontario,Canada,"The Subtweet",English,Drama,2023-11-06,63054.00,63054.00,Advance,"Development Program",
2023-2024,P3,"Pitchblack Pictures Inc.",Burnaby,"British Columbia",Canada,"The Untitled Tommy Prince Story",English,Drama,2023-12-19,37500.00,37500.00,Advance,"Development Program",
2023-2024,P3,"9500-6987 Québec inc.",Montréal,Quebec,Canada,"The Visitors",English,Documentary,2023-11-07,230940.00,230940.00,Contribution,"Theatrical Documentary Program",
2023-2024,P3,"Terminal City Pictures Ltd.",Vancouver,"British Columbia",Canada,"The Widows' Club",English,Comedy,2023-12-18,37500.00,37500.00,Advance,"Development Program",
2023-2024,P3,"0859098 B.C. Ltd.",Trail,"British Columbia",Canada,"Theatrical Exhibition Program  0859098 B.C. Ltd.",0,0,2023-12-11,15444.00,15444.00,Contribution,"Theatrical Exhibition Program",
2023-2024,P3,"1901355 Ontario Inc.",GRAVENHURST,Ontario,Canada,"Theatrical Exhibition Program  1901355 Ontario Inc.",0,0,2023-12-14,9444.00,9444.00,Contribution,"Theatrical Exhibition Program",
2023-2024,P3,"2018180 Ontario Ltd.",Windsor,Ontario,Canada,"Theatrical Exhibition Program  2018180 Ontario Ltd.",0,0,2023-12-12,18889.00,18889.00,Contribution,"Theatrical Exhibition Program",
2023-2024,P3,"344476 B.C. Limited dba Historic Gem Theatre","Grand Forks","British Columbia",Canada,"Theatrical Exhibition Program  344476 B.C. Limited dba Historic Gem Theatre",0,0,2023-12-11,9444.00,9444.00,Contribution,"Theatrical Exhibition Program",
2023-2024,P3,"363909 British Columbia Ltd.",Markham,Ontario,Canada,"Theatrical Exhibition Program  363909 British Columbia Ltd.",0,0,2023-12-12,9444.00,9444.00,Contribution,"Theatrical Exhibition Program",
2023-2024,P3,"Carnival Cinemas Corp.","Red Deer",Alberta,Canada,"Theatrical Exhibition Program  Carnival Cinemas Corp.",0,0,2023-12-20,9444.00,9444.00,Contribution,"Theatrical Exhibition Program",
2023-2024,P3,"CINE STARZ LANGELIER INC.",Saint-Leonard,Quebec,Canada,"Theatrical Exhibition Program  CINE STARZ LANGELIER INC.",0,0,2023-12-18,22333.00,22333.00,Contribution,"Theatrical Exhibition Program",
2023-2024,P3,"Cinema Carnaval inc",Chateauguay,Quebec,Canada,"Theatrical Exhibition Program  Cinema Carnaval inc",0,0,2023-12-11,12889.00,12889.00,Contribution,"Theatrical Exhibition Program",
2023-2024,P3,"Circle Theatre Inc.",Alliston,Ontario,Canada,"Theatrical Exhibition Program  Circle Theatre Inc.",0,0,2023-12-14,9444.00,9444.00,Contribution,"Theatrical Exhibition Program",
2023-2024,P3,"Cochrane Theatres Inc",Cochrane,Alberta,Canada,"Theatrical Exhibition Program  Cochrane Theatres Inc",0,0,2023-12-14,9444.00,9444.00,Contribution,"Theatrical Exhibition Program",
2023-2024,P3,"Cottonwood 4 Cinemas Ltd",Chilliwack,"British Columbia",Canada,"Theatrical Exhibition Program  Cottonwood 4 Cinemas Ltd",0,0,2023-12-18,9444.00,9444.00,Contribution,"Theatrical Exhibition Program",
2023-2024,P3,"DCG INVESTMENTS INC.",Duncan,"British Columbia",Canada,"Theatrical Exhibition Program  DCG INVESTMENTS INC.",0,0,2023-12-14,15444.00,15444.00,Contribution,"Theatrical Exhibition Program",
2023-2024,P3,"Film.Ca Cinemas Inc.",Oakville,Ontario,Canada,"Theatrical Exhibition Program  Film.Ca Cinemas Inc.",0,0,2023-12-11,9444.00,9444.00,Contribution,"Theatrical Exhibition Program",
2023-2024,P3,"First Run Theatres Inc.",Vancouver,"British Columbia",Canada,"Theatrical Exhibition Program  First Run Theatres Inc.",0,0,2023-12-11,9444.00,9444.00,Contribution,"Theatrical Exhibition Program",
2023-2024,P3,"Greater Vancouver International Film Festival Society",Vancouver,"British Columbia",Canada,"Theatrical Exhibition Program  Greater Vancouver International Film Festival Society",0,0,2023-12-14,12889.00,12889.00,Contribution,"Theatrical Exhibition Program",
2023-2024,P3,"Hot Docs",Toronto,Ontario,Canada,"Theatrical Exhibition Program  Hot Docs",0,0,2023-12-18,16333.00,16333.00,Contribution,"Theatrical Exhibition Program",
2023-2024,P3,"Hyland Cinema Inc.",London,Ontario,Canada,"Theatrical Exhibition Program  Hyland Cinema Inc.",0,0,2023-12-11,12889.00,12889.00,Contribution,"Theatrical Exhibition Program",
2023-2024,P3,"Kamloops Film Society",Kamloops,"British Columbia",Canada,"Theatrical Exhibition Program  Kamloops Film Society",0,0,2023-12-13,12889.00,12889.00,Contribution,"Theatrical Exhibition Program",
2023-2024,P3,"Kicking Horse Movies Ltd.",Golden,"British Columbia",Canada,"Theatrical Exhibition Program  Kicking Horse Movies Ltd.",0,0,2023-12-12,9444.00,9444.00,Contribution,"Theatrical Exhibition Program",
2023-2024,P3,"Landmark Cinemas Holding Ltd.",Calgary,Alberta,Canada,"Theatrical Exhibition Program  Landmark Cinemas Holding Ltd.",0,0,2023-12-12,29222.00,29222.00,Contribution,"Theatrical Exhibition Program",
2023-2024,P3,"MAGIC LANTERN THEATRES LTD.",Edmonton,Alberta,Canada,"Theatrical Exhibition Program  MAGIC LANTERN THEATRES LTD.",0,0,2023-12-11,22333.00,22333.00,Contribution,"Theatrical Exhibition Program",
2023-2024,P3,"May Theatres (1984) Limited","Sherwood Park",Alberta,Canada,"Theatrical Exhibition Program  May Theatres (1984) Limited",0,0,2023-12-14,15444.00,15444.00,Contribution,"Theatrical Exhibition Program",
2023-2024,P3,"Muskoka Cinema 3 Inc",Bracebridge,Ontario,Canada,"Theatrical Exhibition Program  Muskoka Cinema 3 Inc",0,0,2023-12-11,9444.00,9444.00,Contribution,"Theatrical Exhibition Program",
2023-2024,P3,"Nelson Civic Theatre Society",Nelson,"British Columbia",Canada,"Theatrical Exhibition Program  Nelson Civic Theatre Society",0,0,2023-12-13,18889.00,18889.00,Contribution,"Theatrical Exhibition Program",
2023-2024,P3,"Okanagan Screen Arts Society",Vernon,"British Columbia",Canada,"Theatrical Exhibition Program  Okanagan Screen Arts Society",0,0,2023-12-11,12889.00,12889.00,Contribution,"Theatrical Exhibition Program",
2023-2024,P3,"Omra Technologies Ltd.","High River",Alberta,Canada,"Theatrical Exhibition Program  Omra Technologies Ltd.",0,0,2023-12-19,9444.00,9444.00,Contribution,"Theatrical Exhibition Program",
2023-2024,P3,"Orpheum Theatre Limited",Estevan,Saskatchewan,Canada,"Theatrical Exhibition Program  Orpheum Theatre Limited",0,0,2023-12-20,9444.00,9444.00,Contribution,"Theatrical Exhibition Program",
2023-2024,P3,"Pacific Cinematheque Pacifique",Vancouver,"British Columbia",Canada,"Theatrical Exhibition Program  Pacific Cinematheque Pacifique",0,0,2023-12-14,16333.00,16333.00,Contribution,"Theatrical Exhibition Program",
2023-2024,P3,"Paradise Cinemas Ltd.","Williams Lake","British Columbia",Canada,"Theatrical Exhibition Program  Paradise Cinemas Ltd.",0,0,2023-12-18,9444.00,9444.00,Contribution,"Theatrical Exhibition Program",
2023-2024,P3,"Patricia Entertainment Company Ltd.","Powell River","British Columbia",Canada,"Theatrical Exhibition Program  Patricia Entertainment Company Ltd.",0,0,2023-12-18,12889.00,12889.00,Contribution,"Theatrical Exhibition Program",
2023-2024,P3,"Premier Operating Corporation Ltd.","North York",Ontario,Canada,"Theatrical Exhibition Program  Premier Operating Corporation Ltd.",0,0,2023-12-11,18889.00,18889.00,Contribution,"Theatrical Exhibition Program",
2023-2024,P3,"Revue Film Society",Toronto,Ontario,Canada,"Theatrical Exhibition Program  Revue Film Society",0,0,2023-12-15,9444.00,9444.00,Contribution,"Theatrical Exhibition Program",
2023-2024,P3,"Salmar Community Association","Salmon Arm","British Columbia",Canada,"Theatrical Exhibition Program  Salmar Community Association",0,0,2023-12-11,9444.00,9444.00,Contribution,"Theatrical Exhibition Program",
2023-2024,P3,"South Cariboo Movie Theatre Inc.","100 Mile House","British Columbia",Canada,"Theatrical Exhibition Program  South Cariboo Movie Theatre Inc.",0,0,2023-12-11,9444.00,9444.00,Contribution,"Theatrical Exhibition Program",
2023-2024,P3,"The Book Shelf of Guelph Limited",Guelph,Ontario,Canada,"Theatrical Exhibition Program  The Book Shelf of Guelph Limited",0,0,2023-12-20,12889.00,12889.00,Contribution,"Theatrical Exhibition Program",
2023-2024,P3,"The Movie Mill Inc.",Lethbridge,Alberta,Canada,"Theatrical Exhibition Program  The Movie Mill Inc.",0,0,2023-12-14,12889.00,12889.00,Contribution,"Theatrical Exhibition Program",
2023-2024,P3,"The Princess Cinema Inc",Waterloo,Ontario,Canada,"Theatrical Exhibition Program  The Princess Cinema Inc",0,0,2023-12-11,25778.00,25778.00,Contribution,"Theatrical Exhibition Program",
2023-2024,P3,"The Regent Theatre Foundation",Picton,Ontario,Canada,"Theatrical Exhibition Program  The Regent Theatre Foundation",0,0,2023-12-12,12889.00,12889.00,Contribution,"Theatrical Exhibition Program",
2023-2024,P3,"The Screening Room Inc.",Kingston,Ontario,Canada,"Theatrical Exhibition Program  The Screening Room Inc.",0,0,2023-12-14,12889.00,12889.00,Contribution,"Theatrical Exhibition Program",
2023-2024,P3,"Victoria Independent Film and Video Festival",Victoria,"British Columbia",Canada,"Theatrical Exhibition Program  Victoria Independent Film and Video Festival",0,0,2023-12-21,9444.00,9444.00,Contribution,"Theatrical Exhibition Program",
2023-2024,P3,"Westdale Cinema Group",Hamilton,Ontario,Canada,"Theatrical Exhibition Program  Westdale Cinema Group",0,0,2023-12-19,12889.00,12889.00,Contribution,"Theatrical Exhibition Program",
2023-2024,P3,"Yukon Film Society",Whitehorse,Yukon,Canada,"Theatrical Exhibition Program  Yukon Film Society",0,0,2023-12-14,12889.00,12889.00,Contribution,"Theatrical Exhibition Program",
2023-2024,P3,"DM FILMS INC.",Toronto,Ontario,Canada,Thespian,English,Drama,2023-11-22,62500.00,62500.00,Advance,"Development Program",
2023-2024,P3,"Things That You Kill Inc.",Toronto,Ontario,Canada,"Things That You Kill",Other,Drama,2023-11-24,142065.00,142065.00,Investment,"Production Program",
2023-2024,P3,"Productions l'unité centrale inc.",Montréal,Quebec,Canada,"This sacred heart",English,Comedy,2023-12-11,43000.00,43000.00,Advance,"Development Program",
2023-2024,P3,"Full Regalia Enterprises Inc.",Gibsons,"British Columbia",Canada,TIDELINE,English,Drama,2023-12-18,35000.00,35000.00,Advance,"Development Program",
2023-2024,P3,"EVA THOMAS INC.",Wallaceburg,Ontario,Canada,"Tina & Amber",English,Drama,2023-12-14,37500.00,37500.00,Advance,"Development Program",
2023-2024,P3,"Productions Caramel Film Inc.",Montréal,Quebec,Canada,Tinderness,English,Comedy,2023-12-20,56000.00,56000.00,Advance,"Development Program",
2023-2024,P3,"Cinémaginaire Inc.",Montréal,Quebec,Canada,"Tout va bien (c'est normal)",French,Comedy,2023-11-23,52580.00,52580.00,Advance,"Development Program",
2023-2024,P3,"Kingulliit Productions Inc.",Igloolik,Nunavut,Canada,"Uiksaringitara (Wrong Husband)",Indigenous,Drama,2023-12-07,500000.00,500000.00,Investment,"Production Program",
2023-2024,P3,"Forum Films 2005 Inc.",Montréal,Quebec,Canada,"Un film de pêche",French,Drama,2023-10-09,37500.00,37500.00,Advance,"Development Program",
2023-2024,P3,"9361-4378 Québec inc.",Montréal,Quebec,Canada,"Un goût amer d'éternité",French,Drama,2023-12-11,985000.00,985000.00,Investment,"Production Program",
2023-2024,P3,"C7 Galerie Productions Inc.","East York",Ontario,Canada,"Under Duress: Max Stern and the Nazi Art War",English,Documentary,2023-10-24,75000.00,75000.00,Investment,"Theatrical Documentary Program",
2023-2024,P3,"Productions Leitmotiv Inc.",Montréal,Quebec,Canada,Undertow,French,Thriller,2023-11-16,2000.00,2000.00,Contribution,"International Marketing Program",
2023-2024,P3,"Association coopérative de productions audio-visuelles",Montréal,Quebec,Canada,"Une odeur rouge comme le miel",French,Drama,2023-11-21,45464.00,45464.00,Advance,"Development Program",
2023-2024,P3,"Unseen Film NS Ltd.",Halifax,"Nova Scotia",Canada,Unseen,English,Drama,2023-12-18,500000.00,500000.00,Contribution,"Production Program",
2023-2024,P3,"Serendipity Point Films Inc.",Toronto,Ontario,Canada,"Untitled Leonard Cohen Project",English,Drama,2023-11-14,100000.00,100000.00,Advance,"Development Program",
2023-2024,P3,"Canesugar Filmworks Inc.",Toronto,Ontario,Canada,"Untitled Moses Projet",English,Drama,2023-10-12,28584.00,28584.00,Advance,"Development Program",
2023-2024,P3,"8314136 Canada Inc.",Charlottetown,"Prince Edward Island",Canada,"Unwed Mother",English,Drama,2023-10-17,37500.00,37500.00,Advance,"Development Program",
2023-2024,P3,"SHERPAS FILMS INC.",Montréal,Quebec,Canada,"Va me chercher Baby Doll",French,Drama,2023-12-18,37500.00,37500.00,Advance,"Development Program",
2023-2024,P3,"9382-7004 Québec Inc.",Montréal,Quebec,Canada,"Vampire Humaniste cherche suicidaire consentant",French,Comedy,2023-11-29,2000.00,2000.00,Contribution,"International Marketing Program",
2023-2024,P3,"STUDIOS H264 INC.",Montréal,Quebec,Canada,"Vampire Humaniste cherche suicidaire consentant",French,Comedy,2023-10-16,135810.00,119070.00,Advance,"Marketing Program","Amended Contract Signed 04-Aug-2023"
2023-2024,P3,"Christal Films Productions Inc.",Montréal,Quebec,Canada,Villeneuve,French,"Historical Drama",2023-11-09,500000.00,287000.00,Advance,"Production Program","Amended Contract Signed 27-Jun-2023"
2023-2024,P3,"Productions pas seuls inc.",Montreal,Quebec,Canada,"Vous n'êtes pas seuls",French,"Romantic Comedy",2023-10-19,995000.00,935000.00,Advance,"Production Program","Amended Contract Signed 13-Jul-2023"
2023-2024,P3,"Christal Films Productions Inc.",Montréal,Quebec,Canada,"We Are Zombies",English,Horror,2023-11-22,5000.00,5000.00,Contribution,"International Marketing Program",
2023-2024,P3,"Christal Films Productions Inc.",Montréal,Quebec,Canada,"We Are Zombies",English,Horror,2023-11-21,2000.00,2000.00,Contribution,"International Marketing Program",
2023-2024,P3,"Fall Back Down Productions Inc.",Vancouver,"British Columbia",Canada,"WE WANT IT ALL",English,"Romantic Comedy",2023-12-19,37500.00,37500.00,Advance,"Development Program",
2023-2024,P3,"Alphakitty Film Inc.",Saskatoon,Saskatchewan,Canada,"Welcome To Kittytown",English,Horror,2023-10-10,30000.00,30000.00,Contribution,"Production Program",
2023-2024,P3,"Soonias Industries Inc.",Calgary,Alberta,Canada,"West Ed Stag",English,"Romantic Comedy",2023-12-15,37500.00,37500.00,Advance,"Development Program",
2023-2024,P3,"6566049 Canada Inc. d/b/u Poutine Studios",Vaudreuil-Dorion,Quebec,Canada,Whalebone,English,Drama,2023-12-15,37500.00,37500.00,Advance,"Development Program",
2023-2024,P3,"Wildling Pictures Inc.",Dundas,Ontario,Canada,"What's Grandad",English,Horror,2023-10-12,41144.44,41144.44,Advance,"Development Program",
2023-2024,P3,"86 Media House Inc.",Toronto,Ontario,Canada,"What's My Name? Priyanka!",English,Documentary,2023-12-19,37454.00,37454.00,Advance,"Development Program",
2023-2024,P3,"Level Film Inc.",Toronto,Ontario,Canada,"Who's Yer Father?",English,Comedy,2023-12-07,53595.00,53595.00,Advance,"Marketing Program",
2023-2024,P3,"Pallasite Films Inc.",Toronto,Ontario,Canada,"Wilfred Buck",English,Documentary,2023-12-13,200000.00,150000.00,Investment,"Theatrical Documentary Program","Amended Contract Signed 10-Feb-2022"
2023-2024,P3,"Mugaliyombo Media Inc.",Toronto,Ontario,Canada,"Woman Meets Girl",English,Drama,2023-12-14,2000.00,2000.00,Contribution,"International Marketing Program",
2023-2024,P3,"2557505 ALBERTA INC.",Calgary,Alberta,Canada,"Women of No Nation",Other,Documentary,2023-12-15,150000.00,150000.00,Contribution,"Talent To Watch Program",
2023-2024,P3,"CUT/OFF/TAIL Pictures Inc.","West Pennant","Nova Scotia",Canada,"X'ed Out",English,Thriller,2023-11-28,70000.00,70000.00,Advance,"Development Program",
2023-2024,P3,"Productions Microclimat Inc.",Sutton,Quebec,Canada,Yunan,Other,Drama,2023-11-15,350000.00,350000.00,Contribution,"Production Program",
2023-2024,P4,"Productions Sons of Manual Inc.",Montr�al,Quebec,Canada,"Aunt Jane",English,Drama,2024-01-12,0.00,95000.00,Advance,"Development Program","Amended Contract Signed 09-Oct-2020"
2023-2024,P4,"Productions In Cold Light inc./In Cold Light Productions inc.",Montreal,Quebec,Canada,"In Cold Light",English,Thriller,2024-02-29,3750000.00,3350000.00,Investment,"Production Program","Amended Contract Signed 24-Mar-2022"
2023-2024,P4,"Les Productions du Moment Inc.","�le des Soeurs, Montr�al",Quebec,Canada,"La fi�vre (titre de travail)",French,"Historical Drama",2024-02-12,21700.00,0.00,Advance,"Development Program","Amended Contract Signed 24-Nov-2021"
2023-2024,P4,"Les Productions du Moment Inc.","�le des Soeurs, Montr�al",Quebec,Canada,"La jungle (titre de travail)",French,Comedy,2024-02-12,0.00,21700.00,Advance,"Development Program","Amended Contract Signed 24-Nov-2021"
2023-2024,P4,"Werther Motion Picture Corporation",Hamilton,Ontario,Canada,"Young Werther",English,Comedy,2024-02-08,2514746.00,2214746.00,Investment,"Production Program","Amended Contract Signed 16-Mar-2023"
2023-2024,P4,"Silent Planet Ontario Productions Inc.",Toronto,Ontario,Canada,"The Silent Planet",English,"Science fiction/Fantasy/Tale",2024-02-09,1250000.00,1150000.00,Investment,"Production Program","Amended Contract Signed 15-Dec-2022"
2023-2024,P4,"TTPS Production Ltd.",Calgary,Alberta,Canada,"This Too Shall Pass",English,Drama,2024-03-15,450000.00,400000.00,Investment,"Production Program","Amended Contract Signed 19-Dec-2022"
2023-2024,P4,"ChakasTeTin Productions Inc",Vancouver,"British Columbia",Canada,"Angela's Shadow",English,Thriller,2024-01-04,727000.00,637000.00,Investment,"Production Program","Amended Contract Signed 10-Feb-2023"
2023-2024,P4,"SAB Films Inc.","St. John's",Newfoundland/Labrador,Canada,"Sweet Angel Baby",English,Drama,2024-03-13,560000.00,500000.00,Investment,"Production Program","Amended Contract Signed 20-Dec-2022"
2023-2024,P4,"THERE THERE FILM INC.",Dartmouth,"Nova Scotia",Canada,"There, There",English,Drama,2024-02-16,549379.00,420000.00,Contribution,"Production Program","Amended Contract Signed 20-Dec-2022"
2023-2024,P4,"Echo Media T&B Film Production Inc.",Montr�al,Quebec,Canada,"Toupie et Binou, Le Film",French,Action/Adventure,2024-01-08,140000.00,90000.00,Investment,"Production Program","Amended Contract Signed 15-Dec-2022"
2023-2024,P4,"AOW Productions Inc.",Toronto,Ontario,Canada,"Any Other Way: The Jackie Shane Story",English,Documentary,2024-01-02,400000.00,350000.00,Investment,"Theatrical Documentary Program","Amended Contract Signed 12-Dec-2022"
2023-2024,P4,"Ugly Duckling Media Inc.",Toronto,Ontario,Canada,"Swan Song",English,Documentary,2024-01-03,225000.00,175000.00,Investment,"Theatrical Documentary Program","Amended Contract Signed 09-Dec-2022"
2023-2024,P4,"4T Productions Inc.",Toronto,Ontario,Canada,"40 Acres",English,Thriller,2024-01-24,3200000.00,2900000.00,Investment,"Production Program","Amended Contract Signed 20-Mar-2023"
2023-2024,P4,"Object ON Productions Inc.",Toronto,Ontario,Canada,"I, Object",English,Drama,2024-02-12,500000.00,500000.00,Investment,"Production Program",
2023-2024,P4,"1989 Movie Manitoba Inc.",Winnipeg,Manitoba,Canada,"Deaner 89�",English,Comedy,2024-03-21,3400000.00,3250000.00,Investment,"Production Program","Amended Contract Signed 10-Mar-2023"
2023-2024,P4,"Mongrel Media Inc.",Toronto,Ontario,Canada,"Into the Weeds",English,Documentary,2024-03-15,15462.00,22500.00,Advance,"Marketing Program","Amended Contract Signed 28-Sep-2022"
2023-2024,P4,"Mongrel Media Inc.",Toronto,Ontario,Canada,Slash/Back,English,"Science fiction/Fantasy/Tale",2024-02-29,164933.00,297150.00,Advance,"Marketing Program","Amended Contract Signed 21-Sep-2022"
2023-2024,P4,"Mongrel Media Inc.",Toronto,Ontario,Canada,"Framing Agnes",English,Documentary,2024-03-15,12022.00,35280.00,Advance,"Marketing Program","Amended Contract Signed 15-Dec-2022"
2023-2024,P4,"Ann�es lumi�re films inc.",Quebec,Quebec,Canada,"L'enfant b�lier",French,Drama,2024-02-01,192500.00,192500.00,Contribution,"Production Program",
2023-2024,P4,"Forest Green Pictures Inc",Halifax,"Nova Scotia",Canada,"Skite'kmujua'kik (Place of Ghosts)",English,Thriller,2024-02-05,2750000.00,2750000.00,Investment,"Production Program",
2023-2024,P4,"Steal Away Productions Inc.",Toronto,Ontario,Canada,"Steal Away Home",English,Thriller,2024-03-06,3050000.00,3050000.00,Investment,"Production Program",
